Organisation Code,Organisation Label,Effective Date,Organisational Unit,Service Division Label,Category Internal Name,Purpose,Detailed Expenditure Code,Payment Date,Transaction Number,Irrecoverable VAT Amount,Amount,Capital Or Revenue,Benificiary Name,Procurement Card
Http://opendatacommunities.org/id/metropolitan-district-council/leeds,Leeds City Council,31/07/2018,Resources and Housing,Leeds Building Services,Supplies and Services,Operational Materials,205,05/07/2018,0718-00001,0.00,22.20,R,A Andrews & Sons (Marbles & Tiles),No
Http://opendatacommunities.org/id/metropolitan-district-council/leeds,Leeds City Council,31/07/2018,Resources and Housing,Leeds Building Services,Supplies and Services,Operational Materials,205,05/07/2018,0718-00002,0.00,110.20,R,A Andrews & Sons (Marbles & Tiles),No
Http://opendatacommunities.org/id/metropolitan-district-council/leeds,Leeds City Council,31/07/2018,Resources and Housing,Leeds Building Services,Supplies and Services,Operational Materials,205,05/07/2018,0718-00003,0.00,75.93,R,A Andrews & Sons (Marbles & Tiles),No
Http://opendatacommunities.org/id/metropolitan-district-council/leeds,Leeds City Council,31/07/2018,Resources and Housing,Leeds Building Services,Supplies and Services,Operational Materials,205,13/07/2018,0718-00004,0.00,42.09,R,A Andrews & Sons (Marbles & Tiles),No
Http://opendatacommunities.org/id/metropolitan-district-council/leeds,Leeds City Council,31/07/2018,Resources and Housing,Leeds Building Services,Supplies and Services,Operational Materials,205,23/07/2018,0718-00005,0.00,25.54,R,A Andrews & Sons (Marbles & Tiles),No
Http://opendatacommunities.org/id/metropolitan-district-council/leeds,Leeds City Council,31/07/2018,Resources and Housing,Leeds Building Services,Supplies and Services,Operational Materials,205,25/07/2018,0718-00006,0.00,12.77,R,A Andrews & Sons (Marbles & Tiles),No
Http://opendatacommunities.org/id/metropolitan-district-council/leeds,Leeds City Council,31/07/2018,Resources and Housing,Leeds Building Services,Supplies and Services,Operational Materials,205,25/07/2018,0718-00007,0.00,86.50,R,A Andrews & Sons (Marbles & Tiles),No
Http://opendatacommunities.org/id/metropolitan-district-council/leeds,Leeds City Council,31/07/2018,Resources and Housing,Leeds Building Services,Supplies and Services,Operational Materials,205,27/07/2018,0718-00008,0.00,18.51,R,A Andrews & Sons (Marbles & Tiles),No
Http://opendatacommunities.org/id/metropolitan-district-council/leeds,Leeds City Council,31/07/2018,Resources and Housing,Leeds Building Services,Supplies and Services,Operational Materials,205,30/07/2018,0718-00009,0.00,58.97,R,A Andrews & Sons (Marbles & Tiles),No
Http://opendatacommunities.org/id/metropolitan-district-council/leeds,Leeds City Council,31/07/2018,Children and Families,Social Care,Third Party Payments,Services Rendered By Other Organisations,511,13/07/2018,0718-00010,0.00,103.35,R,REDACTED PERSONAL DATA,No
Http://opendatacommunities.org/id/metropolitan-district-council/leeds,Leeds City Council,31/07/2018,Children and Families,Social Care,Third Party Payments,Services Rendered By Other Organisations,511,13/07/2018,0718-00011,0.00,165.75,R,REDACTED PERSONAL DATA,No
Http://opendatacommunities.org/id/metropolitan-district-council/leeds,Leeds City Council,31/07/2018,Children and Families,Social Care,Third Party Payments,Services Rendered By Other Organisations,511,13/07/2018,0718-00012,0.00,3315.00,R,REDACTED PERSONAL DATA,No
Http://opendatacommunities.org/id/metropolitan-district-council/leeds,Leeds City Council,31/07/2018,Children and Families,Social Care,Third Party Payments,Services Rendered By Other Organisations,511,11/07/2018,0718-00013,0.00,198.90,R,A Clarkson,No
Http://opendatacommunities.org/id/metropolitan-district-council/leeds,Leeds City Council,31/07/2018,Children and Families,Social Care,Third Party Payments,Services Rendered By Other Organisations,511,13/07/2018,0718-00014,0.00,165.75,R,A Clarkson,No
Http://opendatacommunities.org/id/metropolitan-district-council/leeds,Leeds City Council,31/07/2018,Children and Families,Social Care,Third Party Payments,Services Rendered By Voluntary Sector,505,11/07/2018,0718-00015,0.00,3978.00,R,REDACTED PERSONAL DATA,No
Http://opendatacommunities.org/id/metropolitan-district-council/leeds,Leeds City Council,31/07/2018,Children and Families,Social Care,Third Party Payments,Services Rendered By Voluntary Sector,505,13/07/2018,0718-00016,0.00,3613.35,R,REDACTED PERSONAL DATA,No
Http://opendatacommunities.org/id/metropolitan-district-council/leeds,Leeds City Council,31/07/2018,Children and Families,Social Care,Third Party Payments,Services Rendered By Voluntary Sector,505,13/07/2018,0718-00017,0.00,620.10,R,REDACTED PERSONAL DATA,No
Http://opendatacommunities.org/id/metropolitan-district-council/leeds,Leeds City Council,31/07/2018,City Development,Highways,Capital,Construction,3,27/07/2018,0718-00018,0.00,302893.08,C,A E Yates Ltd,No
Http://opendatacommunities.org/id/metropolitan-district-council/leeds,Leeds City Council,31/07/2018,Children and Families,Social Care,Third Party Payments,Services Rendered By Other Organisations,511,13/07/2018,0718-00019,0.00,331.50,R,A Foley,No
Http://opendatacommunities.org/id/metropolitan-district-council/leeds,Leeds City Council,31/07/2018,Children and Families,Social Care,Third Party Payments,Services Rendered By Other Organisations,511,13/07/2018,0718-00020,0.00,1215.50,R,REDACTED PERSONAL DATA,No
Http://opendatacommunities.org/id/metropolitan-district-council/leeds,Leeds City Council,31/07/2018,Children and Families,Social Care,Third Party Payments,Services Rendered By Other Organisations,511,13/07/2018,0718-00021,0.00,607.75,R,REDACTED PERSONAL DATA,No
Http://opendatacommunities.org/id/metropolitan-district-council/leeds,Leeds City Council,31/07/2018,Communities and Environment,Customer Access,Supplies and Services,Bought In Professional Services,277,18/07/2018,0718-00022,0.00,110.20,R,A Haythornthwaite,No
Http://opendatacommunities.org/id/metropolitan-district-council/leeds,Leeds City Council,31/07/2018,Children and Families,Social Care,Third Party Payments,Services Rendered By Other Organisations,511,13/07/2018,0718-00023,0.00,734.83,R,A Hodgson,No
Http://opendatacommunities.org/id/metropolitan-district-council/leeds,Leeds City Council,31/07/2018,Children and Families,Social Care,Third Party Payments,Services Rendered By Other Organisations,511,13/07/2018,0718-00024,0.00,908.65,R,REDACTED PERSONAL DATA,No
Http://opendatacommunities.org/id/metropolitan-district-council/leeds,Leeds City Council,31/07/2018,Children and Families,Social Care,Third Party Payments,Services Rendered By Other Organisations,511,13/07/2018,0718-00025,0.00,663.00,R,REDACTED PERSONAL DATA,No
Http://opendatacommunities.org/id/metropolitan-district-council/leeds,Leeds City Council,31/07/2018,Resources and Housing,Leeds Building Services,Supplies and Services,Operational Furniture And Equipment,203,05/07/2018,0718-00026,0.00,110.00,R,A J H  Pump Supply & Repair Ltd,No
Http://opendatacommunities.org/id/metropolitan-district-council/leeds,Leeds City Council,31/07/2018,Resources and Housing,Leeds Building Services,Supplies and Services,Operational Materials,205,05/07/2018,0718-00027,0.00,16.50,R,A J H  Pump Supply & Repair Ltd,No
Http://opendatacommunities.org/id/metropolitan-district-council/leeds,Leeds City Council,31/07/2018,Resources and Housing,Leeds Building Services,Supplies and Services,Operational Materials,205,05/07/2018,0718-00028,0.00,62.00,R,A J H  Pump Supply & Repair Ltd,No
Http://opendatacommunities.org/id/metropolitan-district-council/leeds,Leeds City Council,31/07/2018,Resources and Housing,Leeds Building Services,Supplies and Services,Operational Materials,205,05/07/2018,0718-00029,0.00,15.95,R,A J H  Pump Supply & Repair Ltd,No
Http://opendatacommunities.org/id/metropolitan-district-council/leeds,Leeds City Council,31/07/2018,Resources and Housing,Leeds Building Services,Supplies and Services,Operational Materials,205,05/07/2018,0718-00030,0.00,220.00,R,A J H  Pump Supply & Repair Ltd,No
Http://opendatacommunities.org/id/metropolitan-district-council/leeds,Leeds City Council,31/07/2018,Resources and Housing,Leeds Building Services,Supplies and Services,Operational Materials,205,05/07/2018,0718-00031,0.00,181.50,R,A J H  Pump Supply & Repair Ltd,No
Http://opendatacommunities.org/id/metropolitan-district-council/leeds,Leeds City Council,31/07/2018,Resources and Housing,Leeds Building Services,Supplies and Services,Operational Materials,205,05/07/2018,0718-00032,0.00,37.85,R,A J H  Pump Supply & Repair Ltd,No
Http://opendatacommunities.org/id/metropolitan-district-council/leeds,Leeds City Council,31/07/2018,Resources and Housing,Leeds Building Services,Supplies and Services,Operational Materials,205,05/07/2018,0718-00033,0.00,461.15,R,A J H  Pump Supply & Repair Ltd,No
Http://opendatacommunities.org/id/metropolitan-district-council/leeds,Leeds City Council,31/07/2018,Resources and Housing,Leeds Building Services,Supplies and Services,Operational Materials,205,05/07/2018,0718-00034,0.00,503.00,R,A J H  Pump Supply & Repair Ltd,No
Http://opendatacommunities.org/id/metropolitan-district-council/leeds,Leeds City Council,31/07/2018,Resources and Housing,Leeds Building Services,Supplies and Services,Operational Materials,205,05/07/2018,0718-00035,0.00,65.45,R,A J H  Pump Supply & Repair Ltd,No
Http://opendatacommunities.org/id/metropolitan-district-council/leeds,Leeds City Council,31/07/2018,Resources and Housing,Leeds Building Services,Supplies and Services,Operational Materials,205,05/07/2018,0718-00036,0.00,303.45,R,A J H  Pump Supply & Repair Ltd,No
Http://opendatacommunities.org/id/metropolitan-district-council/leeds,Leeds City Council,31/07/2018,Resources and Housing,Leeds Building Services,Supplies and Services,Operational Materials,205,05/07/2018,0718-00037,0.00,340.25,R,A J H  Pump Supply & Repair Ltd,No
Http://opendatacommunities.org/id/metropolitan-district-council/leeds,Leeds City Council,31/07/2018,Resources and Housing,Leeds Building Services,Supplies and Services,Operational Materials,205,05/07/2018,0718-00038,0.00,98.16,R,A J H  Pump Supply & Repair Ltd,No
Http://opendatacommunities.org/id/metropolitan-district-council/leeds,Leeds City Council,31/07/2018,Resources and Housing,Leeds Building Services,Supplies and Services,Operational Materials,205,05/07/2018,0718-00039,0.00,1.86,R,A J H  Pump Supply & Repair Ltd,No
Http://opendatacommunities.org/id/metropolitan-district-council/leeds,Leeds City Council,31/07/2018,Resources and Housing,Leeds Building Services,Supplies and Services,Operational Materials,205,05/07/2018,0718-00040,0.00,53.35,R,A J H  Pump Supply & Repair Ltd,No
Http://opendatacommunities.org/id/metropolitan-district-council/leeds,Leeds City Council,31/07/2018,Resources and Housing,Leeds Building Services,Supplies and Services,Operational Materials,205,05/07/2018,0718-00041,0.00,51.75,R,A J H  Pump Supply & Repair Ltd,No
Http://opendatacommunities.org/id/metropolitan-district-council/leeds,Leeds City Council,31/07/2018,Resources and Housing,Leeds Building Services,Supplies and Services,Operational Materials,205,05/07/2018,0718-00042,0.00,50.00,R,A J H  Pump Supply & Repair Ltd,No
Http://opendatacommunities.org/id/metropolitan-district-council/leeds,Leeds City Council,31/07/2018,Resources and Housing,Leeds Building Services,Supplies and Services,Operational Materials,205,05/07/2018,0718-00043,0.00,264.51,R,A J H  Pump Supply & Repair Ltd,No
Http://opendatacommunities.org/id/metropolitan-district-council/leeds,Leeds City Council,31/07/2018,Resources and Housing,Leeds Building Services,Supplies and Services,Operational Materials,205,05/07/2018,0718-00044,0.00,265.25,R,A J H  Pump Supply & Repair Ltd,No
Http://opendatacommunities.org/id/metropolitan-district-council/leeds,Leeds City Council,31/07/2018,Resources and Housing,Leeds Building Services,Supplies and Services,Operational Materials,205,05/07/2018,0718-00045,0.00,41.00,R,A J H  Pump Supply & Repair Ltd,No
Http://opendatacommunities.org/id/metropolitan-district-council/leeds,Leeds City Council,31/07/2018,Resources and Housing,Leeds Building Services,Supplies and Services,Operational Materials,205,05/07/2018,0718-00046,0.00,15.75,R,A J H  Pump Supply & Repair Ltd,No
Http://opendatacommunities.org/id/metropolitan-district-council/leeds,Leeds City Council,31/07/2018,Resources and Housing,Leeds Building Services,Supplies and Services,Operational Materials,205,05/07/2018,0718-00047,0.00,698.00,R,A J H  Pump Supply & Repair Ltd,No
Http://opendatacommunities.org/id/metropolitan-district-council/leeds,Leeds City Council,31/07/2018,Resources and Housing,Leeds Building Services,Supplies and Services,Operational Materials,205,05/07/2018,0718-00048,0.00,93.00,R,A J H  Pump Supply & Repair Ltd,No
Http://opendatacommunities.org/id/metropolitan-district-council/leeds,Leeds City Council,31/07/2018,Resources and Housing,Leeds Building Services,Supplies and Services,Operational Materials,205,05/07/2018,0718-00049,0.00,66.38,R,A J H  Pump Supply & Repair Ltd,No
Http://opendatacommunities.org/id/metropolitan-district-council/leeds,Leeds City Council,31/07/2018,Resources and Housing,Leeds Building Services,Supplies and Services,Operational Materials,205,05/07/2018,0718-00050,0.00,48.85,R,A J H  Pump Supply & Repair Ltd,No
Http://opendatacommunities.org/id/metropolitan-district-council/leeds,Leeds City Council,31/07/2018,Resources and Housing,Leeds Building Services,Supplies and Services,Operational Materials,205,05/07/2018,0718-00051,0.00,110.00,R,A J H  Pump Supply & Repair Ltd,No
Http://opendatacommunities.org/id/metropolitan-district-council/leeds,Leeds City Council,31/07/2018,Resources and Housing,Leeds Building Services,Supplies and Services,Operational Materials,205,13/07/2018,0718-00052,0.00,36.50,R,A J H  Pump Supply & Repair Ltd,No
Http://opendatacommunities.org/id/metropolitan-district-council/leeds,Leeds City Council,31/07/2018,Resources and Housing,Leeds Building Services,Supplies and Services,Operational Materials,205,13/07/2018,0718-00053,0.00,67.08,R,A J H  Pump Supply & Repair Ltd,No
Http://opendatacommunities.org/id/metropolitan-district-council/leeds,Leeds City Council,31/07/2018,Resources and Housing,Leeds Building Services,Supplies and Services,Operational Materials,205,13/07/2018,0718-00054,0.00,118.00,R,A J H  Pump Supply & Repair Ltd,No
Http://opendatacommunities.org/id/metropolitan-district-council/leeds,Leeds City Council,31/07/2018,Resources and Housing,Leeds Building Services,Supplies and Services,Operational Materials,205,13/07/2018,0718-00055,0.00,42.60,R,A J H  Pump Supply & Repair Ltd,No
Http://opendatacommunities.org/id/metropolitan-district-council/leeds,Leeds City Council,31/07/2018,Resources and Housing,Leeds Building Services,Supplies and Services,Operational Materials,205,13/07/2018,0718-00056,0.00,249.00,R,A J H  Pump Supply & Repair Ltd,No
Http://opendatacommunities.org/id/metropolitan-district-council/leeds,Leeds City Council,31/07/2018,Resources and Housing,Leeds Building Services,Supplies and Services,Operational Materials,205,13/07/2018,0718-00057,0.00,18.25,R,A J H  Pump Supply & Repair Ltd,No
Http://opendatacommunities.org/id/metropolitan-district-council/leeds,Leeds City Council,31/07/2018,Resources and Housing,Leeds Building Services,Supplies and Services,Operational Materials,205,13/07/2018,0718-00058,0.00,134.85,R,A J H  Pump Supply & Repair Ltd,No
Http://opendatacommunities.org/id/metropolitan-district-council/leeds,Leeds City Council,31/07/2018,Resources and Housing,Leeds Building Services,Supplies and Services,Operational Materials,205,13/07/2018,0718-00059,0.00,129.85,R,A J H  Pump Supply & Repair Ltd,No
Http://opendatacommunities.org/id/metropolitan-district-council/leeds,Leeds City Council,31/07/2018,Resources and Housing,Leeds Building Services,Supplies and Services,Operational Materials,205,13/07/2018,0718-00060,0.00,35.25,R,A J H  Pump Supply & Repair Ltd,No
Http://opendatacommunities.org/id/metropolitan-district-council/leeds,Leeds City Council,31/07/2018,Resources and Housing,Leeds Building Services,Supplies and Services,Operational Materials,205,13/07/2018,0718-00061,0.00,90.45,R,A J H  Pump Supply & Repair Ltd,No
Http://opendatacommunities.org/id/metropolitan-district-council/leeds,Leeds City Council,31/07/2018,Resources and Housing,Leeds Building Services,Supplies and Services,Operational Materials,205,13/07/2018,0718-00062,0.00,515.90,R,A J H  Pump Supply & Repair Ltd,No
Http://opendatacommunities.org/id/metropolitan-district-council/leeds,Leeds City Council,31/07/2018,Resources and Housing,Leeds Building Services,Supplies and Services,Operational Materials,205,13/07/2018,0718-00063,0.00,34.75,R,A J H  Pump Supply & Repair Ltd,No
Http://opendatacommunities.org/id/metropolitan-district-council/leeds,Leeds City Council,31/07/2018,Resources and Housing,Leeds Building Services,Supplies and Services,Operational Materials,205,13/07/2018,0718-00064,0.00,165.00,R,A J H  Pump Supply & Repair Ltd,No
Http://opendatacommunities.org/id/metropolitan-district-council/leeds,Leeds City Council,31/07/2018,Resources and Housing,Leeds Building Services,Supplies and Services,Operational Materials,205,13/07/2018,0718-00065,0.00,449.00,R,A J H  Pump Supply & Repair Ltd,No
Http://opendatacommunities.org/id/metropolitan-district-council/leeds,Leeds City Council,31/07/2018,Resources and Housing,Leeds Building Services,Supplies and Services,Operational Materials,205,17/07/2018,0718-00066,0.00,35.00,R,A J H  Pump Supply & Repair Ltd,No
Http://opendatacommunities.org/id/metropolitan-district-council/leeds,Leeds City Council,31/07/2018,Resources and Housing,Leeds Building Services,Supplies and Services,Operational Materials,205,19/07/2018,0718-00067,0.00,139.88,R,A J H  Pump Supply & Repair Ltd,No
Http://opendatacommunities.org/id/metropolitan-district-council/leeds,Leeds City Council,31/07/2018,Resources and Housing,Leeds Building Services,Supplies and Services,Operational Materials,205,19/07/2018,0718-00068,0.00,97.25,R,A J H  Pump Supply & Repair Ltd,No
Http://opendatacommunities.org/id/metropolitan-district-council/leeds,Leeds City Council,31/07/2018,Resources and Housing,Leeds Building Services,Supplies and Services,Operational Materials,205,19/07/2018,0718-00069,0.00,244.74,R,A J H  Pump Supply & Repair Ltd,No
Http://opendatacommunities.org/id/metropolitan-district-council/leeds,Leeds City Council,31/07/2018,Resources and Housing,Leeds Building Services,Supplies and Services,Operational Materials,205,19/07/2018,0718-00070,0.00,130.50,R,A J H  Pump Supply & Repair Ltd,No
Http://opendatacommunities.org/id/metropolitan-district-council/leeds,Leeds City Council,31/07/2018,Resources and Housing,Leeds Building Services,Supplies and Services,Operational Materials,205,19/07/2018,0718-00071,0.00,425.39,R,A J H  Pump Supply & Repair Ltd,No
Http://opendatacommunities.org/id/metropolitan-district-council/leeds,Leeds City Council,31/07/2018,Resources and Housing,Leeds Building Services,Supplies and Services,Operational Materials,205,19/07/2018,0718-00072,0.00,125.50,R,A J H  Pump Supply & Repair Ltd,No
Http://opendatacommunities.org/id/metropolitan-district-council/leeds,Leeds City Council,31/07/2018,Resources and Housing,Leeds Building Services,Supplies and Services,Operational Materials,205,19/07/2018,0718-00073,0.00,110.00,R,A J H  Pump Supply & Repair Ltd,No
Http://opendatacommunities.org/id/metropolitan-district-council/leeds,Leeds City Council,31/07/2018,Resources and Housing,Leeds Building Services,Supplies and Services,Operational Materials,205,19/07/2018,0718-00074,0.00,122.76,R,A J H  Pump Supply & Repair Ltd,No
Http://opendatacommunities.org/id/metropolitan-district-council/leeds,Leeds City Council,31/07/2018,Resources and Housing,Leeds Building Services,Supplies and Services,Operational Materials,205,19/07/2018,0718-00075,0.00,64.22,R,A J H  Pump Supply & Repair Ltd,No
Http://opendatacommunities.org/id/metropolitan-district-council/leeds,Leeds City Council,31/07/2018,Resources and Housing,Leeds Building Services,Supplies and Services,Operational Materials,205,19/07/2018,0718-00076,0.00,112.50,R,A J H  Pump Supply & Repair Ltd,No
Http://opendatacommunities.org/id/metropolitan-district-council/leeds,Leeds City Council,31/07/2018,Resources and Housing,Leeds Building Services,Supplies and Services,Operational Materials,205,19/07/2018,0718-00077,0.00,21.00,R,A J H  Pump Supply & Repair Ltd,No
Http://opendatacommunities.org/id/metropolitan-district-council/leeds,Leeds City Council,31/07/2018,Resources and Housing,Leeds Building Services,Supplies and Services,Operational Materials,205,23/07/2018,0718-00078,0.00,46.50,R,A J H  Pump Supply & Repair Ltd,No
Http://opendatacommunities.org/id/metropolitan-district-council/leeds,Leeds City Council,31/07/2018,Resources and Housing,Leeds Building Services,Supplies and Services,Operational Materials,205,23/07/2018,0718-00079,0.00,26.80,R,A J H  Pump Supply & Repair Ltd,No
Http://opendatacommunities.org/id/metropolitan-district-council/leeds,Leeds City Council,31/07/2018,Resources and Housing,Leeds Building Services,Supplies and Services,Operational Materials,205,23/07/2018,0718-00080,0.00,520.47,R,A J H  Pump Supply & Repair Ltd,No
Http://opendatacommunities.org/id/metropolitan-district-council/leeds,Leeds City Council,31/07/2018,Resources and Housing,Leeds Building Services,Supplies and Services,Operational Materials,205,27/07/2018,0718-00081,0.00,222.00,R,A J H  Pump Supply & Repair Ltd,No
Http://opendatacommunities.org/id/metropolitan-district-council/leeds,Leeds City Council,31/07/2018,Resources and Housing,Leeds Building Services,Supplies and Services,Operational Materials,205,30/07/2018,0718-00082,0.00,204.20,R,A J H  Pump Supply & Repair Ltd,No
Http://opendatacommunities.org/id/metropolitan-district-council/leeds,Leeds City Council,31/07/2018,Resources and Housing,Leeds Building Services,Supplies and Services,Operational Materials,205,31/07/2018,0718-00083,0.00,65.00,R,A J H  Pump Supply & Repair Ltd,No
Http://opendatacommunities.org/id/metropolitan-district-council/leeds,Leeds City Council,31/07/2018,Resources and Housing,Leeds Building Services,Supplies and Services,Operational Materials,205,31/07/2018,0718-00084,0.00,38.75,R,A J H  Pump Supply & Repair Ltd,No
Http://opendatacommunities.org/id/metropolitan-district-council/leeds,Leeds City Council,31/07/2018,Resources and Housing,Leeds Building Services,Supplies and Services,Operational Materials,205,31/07/2018,0718-00085,0.00,8.00,R,A J H  Pump Supply & Repair Ltd,No
Http://opendatacommunities.org/id/metropolitan-district-council/leeds,Leeds City Council,31/07/2018,Resources and Housing,Leeds Building Services,Supplies and Services,Operational Materials,205,31/07/2018,0718-00086,0.00,121.00,R,A J H  Pump Supply & Repair Ltd,No
Http://opendatacommunities.org/id/metropolitan-district-council/leeds,Leeds City Council,31/07/2018,Resources and Housing,Leeds Building Services,Supplies and Services,Operational Materials,205,31/07/2018,0718-00087,0.00,122.45,R,A J H  Pump Supply & Repair Ltd,No
Http://opendatacommunities.org/id/metropolitan-district-council/leeds,Leeds City Council,31/07/2018,Resources and Housing,Leeds Building Services,Supplies and Services,Operational Materials,205,31/07/2018,0718-00088,0.00,304.48,R,A J H  Pump Supply & Repair Ltd,No
Http://opendatacommunities.org/id/metropolitan-district-council/leeds,Leeds City Council,31/07/2018,Resources and Housing,Leeds Building Services,Supplies and Services,Operational Materials,205,31/07/2018,0718-00089,0.00,779.45,R,A J H  Pump Supply & Repair Ltd,No
Http://opendatacommunities.org/id/metropolitan-district-council/leeds,Leeds City Council,31/07/2018,Resources and Housing,Leeds Building Services,Supplies and Services,Operational Materials,205,31/07/2018,0718-00090,0.00,192.48,R,A J H  Pump Supply & Repair Ltd,No
Http://opendatacommunities.org/id/metropolitan-district-council/leeds,Leeds City Council,31/07/2018,Resources and Housing,Leeds Building Services,Supplies and Services,Operational Materials,205,31/07/2018,0718-00091,0.00,153.55,R,A J H  Pump Supply & Repair Ltd,No
Http://opendatacommunities.org/id/metropolitan-district-council/leeds,Leeds City Council,31/07/2018,Resources and Housing,Leeds Building Services,Supplies and Services,Operational Materials,205,31/07/2018,0718-00092,0.00,109.94,R,A J H  Pump Supply & Repair Ltd,No
Http://opendatacommunities.org/id/metropolitan-district-council/leeds,Leeds City Council,31/07/2018,Resources and Housing,Leeds Building Services,Supplies and Services,Operational Materials,205,31/07/2018,0718-00093,0.00,230.00,R,A J H  Pump Supply & Repair Ltd,No
Http://opendatacommunities.org/id/metropolitan-district-council/leeds,Leeds City Council,31/07/2018,Resources and Housing,Leeds Building Services,Supplies and Services,Operational Materials,205,31/07/2018,0718-00094,0.00,122.76,R,A J H  Pump Supply & Repair Ltd,No
Http://opendatacommunities.org/id/metropolitan-district-council/leeds,Leeds City Council,31/07/2018,Resources and Housing,Leeds Building Services,Supplies and Services,Operational Materials,205,31/07/2018,0718-00095,0.00,132.70,R,A J H  Pump Supply & Repair Ltd,No
Http://opendatacommunities.org/id/metropolitan-district-council/leeds,Leeds City Council,31/07/2018,Resources and Housing,Leeds Building Services,Supplies and Services,Operational Materials,205,31/07/2018,0718-00096,0.00,49.56,R,A J H  Pump Supply & Repair Ltd,No
Http://opendatacommunities.org/id/metropolitan-district-council/leeds,Leeds City Council,31/07/2018,Resources and Housing,Leeds Building Services,Supplies and Services,Operational Materials,205,31/07/2018,0718-00097,0.00,196.91,R,A J H  Pump Supply & Repair Ltd,No
Http://opendatacommunities.org/id/metropolitan-district-council/leeds,Leeds City Council,31/07/2018,Resources and Housing,Leeds Building Services,Supplies and Services,Operational Materials,205,31/07/2018,0718-00098,0.00,717.35,R,A J H  Pump Supply & Repair Ltd,No
Http://opendatacommunities.org/id/metropolitan-district-council/leeds,Leeds City Council,31/07/2018,Resources and Housing,Leeds Building Services,Supplies and Services,Operational Materials,205,31/07/2018,0718-00099,0.00,133.50,R,A J H  Pump Supply & Repair Ltd,No
Http://opendatacommunities.org/id/metropolitan-district-council/leeds,Leeds City Council,31/07/2018,Resources and Housing,Leeds Building Services,Supplies and Services,Operational Materials,205,31/07/2018,0718-00100,0.00,33.22,R,A J H  Pump Supply & Repair Ltd,No
Http://opendatacommunities.org/id/metropolitan-district-council/leeds,Leeds City Council,31/07/2018,Resources and Housing,Leeds Building Services,Supplies and Services,Operational Materials,205,31/07/2018,0718-00101,0.00,93.95,R,A J H  Pump Supply & Repair Ltd,No
Http://opendatacommunities.org/id/metropolitan-district-council/leeds,Leeds City Council,31/07/2018,Resources and Housing,Leeds Building Services,Supplies and Services,Operational Materials,205,31/07/2018,0718-00102,0.00,141.75,R,A J H  Pump Supply & Repair Ltd,No
Http://opendatacommunities.org/id/metropolitan-district-council/leeds,Leeds City Council,31/07/2018,Resources and Housing,Leeds Building Services,Supplies and Services,Operational Materials,205,31/07/2018,0718-00103,0.00,30.00,R,A J H  Pump Supply & Repair Ltd,No
Http://opendatacommunities.org/id/metropolitan-district-council/leeds,Leeds City Council,31/07/2018,Resources and Housing,Leeds Building Services,Supplies and Services,Operational Materials,205,31/07/2018,0718-00104,0.00,340.00,R,A J H  Pump Supply & Repair Ltd,No
Http://opendatacommunities.org/id/metropolitan-district-council/leeds,Leeds City Council,31/07/2018,Resources and Housing,Leeds Building Services,Supplies and Services,Operational Materials,205,31/07/2018,0718-00105,0.00,68.28,R,A J H  Pump Supply & Repair Ltd,No
Http://opendatacommunities.org/id/metropolitan-district-council/leeds,Leeds City Council,31/07/2018,Resources and Housing,Leeds Building Services,Supplies and Services,Operational Materials,205,31/07/2018,0718-00106,0.00,74.45,R,A J H  Pump Supply & Repair Ltd,No
Http://opendatacommunities.org/id/metropolitan-district-council/leeds,Leeds City Council,31/07/2018,Resources and Housing,Leeds Building Services,Supplies and Services,Operational Materials,205,31/07/2018,0718-00107,0.00,89.45,R,A J H  Pump Supply & Repair Ltd,No
Http://opendatacommunities.org/id/metropolitan-district-council/leeds,Leeds City Council,31/07/2018,Resources and Housing,Leeds Building Services,Supplies and Services,Operational Materials,205,31/07/2018,0718-00108,0.00,110.00,R,A J H  Pump Supply & Repair Ltd,No
Http://opendatacommunities.org/id/metropolitan-district-council/leeds,Leeds City Council,31/07/2018,Resources and Housing,Leeds Building Services,Supplies and Services,Operational Materials,205,31/07/2018,0718-00109,0.00,215.00,R,A J H  Pump Supply & Repair Ltd,No
Http://opendatacommunities.org/id/metropolitan-district-council/leeds,Leeds City Council,31/07/2018,Communities and Environment,Customer Access,Supplies and Services,Resaleable Materials,204,05/07/2018,0718-00110,0.00,80.46,R,A J Promotions,No
Http://opendatacommunities.org/id/metropolitan-district-council/leeds,Leeds City Council,31/07/2018,Communities and Environment,Parks and Countryside,Supplies and Services,Resaleable Materials,204,05/07/2018,0718-00111,0.00,867.30,R,A J Promotions,No
Http://opendatacommunities.org/id/metropolitan-district-council/leeds,Leeds City Council,31/07/2018,City Development,Libraries  Arts & Heritage,Supplies and Services,Art Galleries Total Stores,003,20/07/2018,0718-00112,0.00,864.53,R,A J Promotions,No
Http://opendatacommunities.org/id/metropolitan-district-council/leeds,Leeds City Council,31/07/2018,Children and Families,Social Care,Third Party Payments,Services Rendered By Other Organisations,511,11/07/2018,0718-00113,0.00,596.70,R,A K Walsh,No
Http://opendatacommunities.org/id/metropolitan-district-council/leeds,Leeds City Council,31/07/2018,Children and Families,Social Care,Third Party Payments,Services Rendered By Other Organisations,511,13/07/2018,0718-00114,0.00,165.75,R,A K Walsh,No
Http://opendatacommunities.org/id/metropolitan-district-council/leeds,Leeds City Council,31/07/2018,Children and Families,Social Care,Third Party Payments,Contact,548,02/07/2018,0718-00115,0.00,16.00,R,REDACTED PERSONAL DATA,No
Http://opendatacommunities.org/id/metropolitan-district-council/leeds,Leeds City Council,31/07/2018,Strategic Landlord,Housing Management,Supplies and Services,Grants To Voluntary Organisations,293,11/07/2018,0718-00116,0.00,131.25,R,A Little Something Extra Ltd,No
Http://opendatacommunities.org/id/metropolitan-district-council/leeds,Leeds City Council,31/07/2018,Strategic Landlord,Housing Management,Supplies and Services,Grants To Voluntary Organisations,293,23/07/2018,0718-00117,0.00,315.00,R,A Little Something Extra Ltd,No
Http://opendatacommunities.org/id/metropolitan-district-council/leeds,Leeds City Council,31/07/2018,Children and Families,Social Care,Third Party Payments,Services Rendered By Other Organisations,511,31/07/2018,0718-00118,0.00,700.00,R,A Little Something Extra Ltd,No
Http://opendatacommunities.org/id/metropolitan-district-council/leeds,Leeds City Council,31/07/2018,Children and Families,Social Care,Third Party Payments,Services Rendered By Other Organisations,511,31/07/2018,0718-00119,0.00,875.00,R,A Little Something Extra Ltd,No
Http://opendatacommunities.org/id/metropolitan-district-council/leeds,Leeds City Council,31/07/2018,Communities and Environment,Customer Access,Supplies and Services,Other Hired And Contracted Services,265,05/07/2018,0718-00120,0.00,1018.75,R,A Mohammed,No
Http://opendatacommunities.org/id/metropolitan-district-council/leeds,Leeds City Council,31/07/2018,Communities and Environment,Customer Access,Supplies and Services,Other Hired And Contracted Services,265,05/07/2018,0718-00121,0.00,54.75,R,A Musalam,No
Http://opendatacommunities.org/id/metropolitan-district-council/leeds,Leeds City Council,31/07/2018,Communities and Environment,Customer Access,Supplies and Services,Other Hired And Contracted Services,265,05/07/2018,0718-00122,0.00,210.00,R,A Namaki,No
Http://opendatacommunities.org/id/metropolitan-district-council/leeds,Leeds City Council,31/07/2018,Children and Families,Social Care,Third Party Payments,Services Rendered By Other Organisations,511,13/07/2018,0718-00123,0.00,165.75,R,REDACTED PERSONAL DATA,No
Http://opendatacommunities.org/id/metropolitan-district-council/leeds,Leeds City Council,31/07/2018,Communities and Environment,Parks and Countryside,Supplies and Services,Other Hired And Contracted Services,265,23/07/2018,0718-00124,0.00,1449.50,R,A Nicholls,No
Http://opendatacommunities.org/id/metropolitan-district-council/leeds,Leeds City Council,31/07/2018,Children and Families,Social Care,Supplies and Services,Publication And Promotion,267,31/07/2018,0718-00125,0.00,175.00,R,A Robling,No
Http://opendatacommunities.org/id/metropolitan-district-council/leeds,Leeds City Council,31/07/2018,Resources and Housing,Shared Services,Supplies and Services,Other Hired And Contracted Services,265,12/07/2018,0718-00126,0.00,35.00,R,A Star Couriers Ltd,No
Http://opendatacommunities.org/id/metropolitan-district-council/leeds,Leeds City Council,31/07/2018,Children and Families,Social Care,Third Party Payments,Services Rendered By Other Organisations,511,13/07/2018,0718-00127,0.00,1989.00,R,REDACTED PERSONAL DATA,No
Http://opendatacommunities.org/id/metropolitan-district-council/leeds,Leeds City Council,31/07/2018,Children and Families,Social Care,Third Party Payments,Services Rendered By Other Organisations,511,13/07/2018,0718-00128,0.00,390.15,R,REDACTED PERSONAL DATA,No
Http://opendatacommunities.org/id/metropolitan-district-council/leeds,Leeds City Council,31/07/2018,Children and Families,Social Care,Third Party Payments,Services Rendered By Other Organisations,511,13/07/2018,0718-00129,0.00,165.75,R,REDACTED PERSONAL DATA,No
Http://opendatacommunities.org/id/metropolitan-district-council/leeds,Leeds City Council,31/07/2018,Children and Families,Social Care,Third Party Payments,Placement Support,550,18/07/2018,0718-00130,0.00,310.50,R,A Wilderness Way Ltd,No
Http://opendatacommunities.org/id/metropolitan-district-council/leeds,Leeds City Council,31/07/2018,Children and Families,Social Care,Third Party Payments,Placement Support,550,18/07/2018,0718-00131,0.00,321.30,R,A Wilderness Way Ltd,No
Http://opendatacommunities.org/id/metropolitan-district-council/leeds,Leeds City Council,31/07/2018,Children and Families,Social Care,Third Party Payments,Placement Support,550,18/07/2018,0718-00132,0.00,107.10,R,A Wilderness Way Ltd,No
Http://opendatacommunities.org/id/metropolitan-district-council/leeds,Leeds City Council,31/07/2018,Children and Families,Social Care,Third Party Payments,Placement Support,550,18/07/2018,0718-00133,0.00,1849.81,R,A Wilderness Way Ltd,No
Http://opendatacommunities.org/id/metropolitan-district-council/leeds,Leeds City Council,31/07/2018,Children and Families,Social Care,Third Party Payments,General External Residential Placements,507,20/07/2018,0718-00134,0.00,1400.00,R,A Wilderness Way Ltd,No
Http://opendatacommunities.org/id/metropolitan-district-council/leeds,Leeds City Council,31/07/2018,Children and Families,Social Care,Third Party Payments,General External Residential Placements,507,20/07/2018,0718-00135,0.00,17828.40,R,A Wilderness Way Ltd,No
Http://opendatacommunities.org/id/metropolitan-district-council/leeds,Leeds City Council,31/07/2018,Resources and Housing,Leeds Building Services,Supplies and Services,Other Hired And Contracted Services,265,13/07/2018,0718-00136,0.00,825.00,R,A1 Stair Lift Services,No
Http://opendatacommunities.org/id/metropolitan-district-council/leeds,Leeds City Council,31/07/2018,Resources and Housing,Leeds Building Services,Supplies and Services,Other Hired And Contracted Services,265,27/07/2018,0718-00137,0.00,1450.00,R,A1 Stair Lift Services,No
Http://opendatacommunities.org/id/metropolitan-district-council/leeds,Leeds City Council,31/07/2018,Resources and Housing,Leeds Building Services  ,Supplies and Services,Other Hired And Contracted Services,265,25/06/2018,0718-00138,0.00,1422.00,R,Aaa Training Co Lt,Yes
Http://opendatacommunities.org/id/metropolitan-district-council/leeds,Leeds City Council,31/07/2018,City Development,Recreation  ,Supplies and Services,Office Consumables,210,22/06/2018,0718-00139,0.00,156.00,R,Aal Ltd,Yes
Http://opendatacommunities.org/id/metropolitan-district-council/leeds,Leeds City Council as Accountable Body,31/07/2018,Social Services Pooled Budgets,Leeds Community Equip Store Pooled Budgt,Supplies and Services,Other Equipment,203,13/07/2018,0718-00140,0.00,444.00,R,Aat (Gb) Ltd,No
Http://opendatacommunities.org/id/metropolitan-district-council/leeds,Leeds City Council as Accountable Body,31/07/2018,Social Services Pooled Budgets,Leeds Community Equip Store Pooled Budgt,Supplies and Services,Other Equipment,203,13/07/2018,0718-00141,0.00,458.00,R,Aat (Gb) Ltd,No
Http://opendatacommunities.org/id/metropolitan-district-council/leeds,Leeds City Council as Accountable Body,31/07/2018,Social Services Pooled Budgets,Leeds Community Equip Store Pooled Budgt,Supplies and Services,Other Equipment,203,25/07/2018,0718-00142,0.00,458.00,R,Aat (Gb) Ltd,No
Http://opendatacommunities.org/id/metropolitan-district-council/leeds,Leeds City Council as Accountable Body,31/07/2018,Social Services Pooled Budgets,Leeds Community Equip Store Pooled Budgt,Supplies and Services,Other Equipment,203,27/07/2018,0718-00143,0.00,774.00,R,Aat (Gb) Ltd,No
Http://opendatacommunities.org/id/metropolitan-district-council/leeds,Leeds City Council,31/07/2018,Adults and Health,Social Services Support Services,Transport,Public Transport Expenses,310,11/07/2018,0718-00144,0.00,272.00,R,Ab Cars,No
Http://opendatacommunities.org/id/metropolitan-district-council/leeds,Leeds City Council,31/07/2018,Communities and Environment,Car Parking Services  ,Supplies and Services,Postages,212,01/06/2018,0718-00145,0.00,14.50,R,Abacus Express,Yes
Http://opendatacommunities.org/id/metropolitan-district-council/leeds,Leeds City Council,31/07/2018,Children and Families,Social Care,Support Services,Legal Disbursements,411,10/07/2018,0718-00146,0.00,31.02,R,Abacus Express Limited,No
Http://opendatacommunities.org/id/metropolitan-district-council/leeds,Leeds City Council,31/07/2018,Children and Families,Social Care,Support Services,Legal Disbursements,411,10/07/2018,0718-00147,0.00,16.66,R,Abacus Express Limited,No
Http://opendatacommunities.org/id/metropolitan-district-council/leeds,Leeds City Council,31/07/2018,Children and Families,Social Care,Support Services,Legal Disbursements,411,10/07/2018,0718-00148,0.00,16.66,R,Abacus Express Limited,No
Http://opendatacommunities.org/id/metropolitan-district-council/leeds,Leeds City Council,31/07/2018,Children and Families,Social Care,Support Services,Legal Disbursements,411,10/07/2018,0718-00149,0.00,53.75,R,Abacus Express Limited,No
Http://opendatacommunities.org/id/metropolitan-district-council/leeds,Leeds City Council,31/07/2018,City Development,Planning & Sustainable Development,Supplies and Services,Other Hired And Contracted Services,265,10/07/2018,0718-00150,0.00,17.73,R,Abacus Express Limited,No
Http://opendatacommunities.org/id/metropolitan-district-council/leeds,Leeds City Council,31/07/2018,City Development,Planning & Sustainable Development,Supplies and Services,Other Hired And Contracted Services,265,10/07/2018,0718-00151,0.00,-17.73,R,Abacus Express Limited,No
Http://opendatacommunities.org/id/metropolitan-district-council/leeds,Leeds City Council,31/07/2018,City Development,Planning & Sustainable Development,Supplies and Services,Other Hired And Contracted Services,265,10/07/2018,0718-00152,0.00,-15.58,R,Abacus Express Limited,No
Http://opendatacommunities.org/id/metropolitan-district-council/leeds,Leeds City Council,31/07/2018,City Development,Planning & Sustainable Development,Supplies and Services,Other Hired And Contracted Services,265,12/07/2018,0718-00153,0.00,64.50,R,Abacus Express Limited,No
Http://opendatacommunities.org/id/metropolitan-district-council/leeds,Leeds City Council,31/07/2018,Children and Families,Social Care,Support Services,Legal Disbursements,411,13/07/2018,0718-00154,0.00,31.02,R,Abacus Express Limited,No
Http://opendatacommunities.org/id/metropolitan-district-council/leeds,Leeds City Council,31/07/2018,Children and Families,Social Care,Support Services,Legal Disbursements,411,13/07/2018,0718-00155,0.00,62.04,R,Abacus Express Limited,No
Http://opendatacommunities.org/id/metropolitan-district-council/leeds,Leeds City Council,31/07/2018,Children and Families,Social Care,Support Services,Legal Disbursements,411,19/07/2018,0718-00156,0.00,48.38,R,Abacus Express Limited,No
Http://opendatacommunities.org/id/metropolitan-district-council/leeds,Leeds City Council,31/07/2018,Children and Families,Social Care,Support Services,Legal Disbursements,411,20/07/2018,0718-00157,0.00,26.77,R,Abacus Express Limited,No
Http://opendatacommunities.org/id/metropolitan-district-council/leeds,Leeds City Council,31/07/2018,Children and Families,Social Care,Support Services,Legal Disbursements,411,27/07/2018,0718-00158,0.00,24.19,R,Abacus Express Limited,No
Http://opendatacommunities.org/id/metropolitan-district-council/leeds,Leeds City Council,31/07/2018,Adults and Health,Services For Older People - 65 And Over,Third Party Payments,Nursing Care Dementia,574,25/07/2018,0718-00159,0.00,1556.00,R,Abbendon Nursing Home,No
Http://opendatacommunities.org/id/metropolitan-district-council/leeds,Leeds City Council,31/07/2018,Adults and Health,Services For Adults Under 65 Mental/Dis,Third Party Payments,Nursing Home,570,25/07/2018,0718-00160,0.00,1852.00,R,Abbey Grange Nursing Home,No
Http://opendatacommunities.org/id/metropolitan-district-council/leeds,Leeds City Council,31/07/2018,Communities and Environment,Cleaner Neighbourhood Teams,Supplies and Services,Bought In Professional Services,277,17/07/2018,0718-00161,0.00,277.36,R,Abbey House Veterinary Hospital,No
Http://opendatacommunities.org/id/metropolitan-district-council/leeds,Leeds City Council,31/07/2018,Children and Families,Social Care,Third Party Payments,Services Rendered By Other Organisations,511,11/07/2018,0718-00162,0.00,2218.50,R,Abc Daycare And Ozone Out Of School,No
Http://opendatacommunities.org/id/metropolitan-district-council/leeds,Leeds City Council,31/07/2018,Children and Families,Social Care,Third Party Payments,Services Rendered By Other Organisations,511,13/07/2018,0718-00163,0.00,11351.76,R,Abc Daycare And Ozone Out Of School,No
Http://opendatacommunities.org/id/metropolitan-district-council/leeds,Leeds City Council,31/07/2018,Children and Families,Social Care,Third Party Payments,Services Rendered By Other Organisations,511,13/07/2018,0718-00164,0.00,190.80,R,Abc Daycare And Ozone Out Of School,No
Http://opendatacommunities.org/id/metropolitan-district-council/leeds,Leeds City Council,31/07/2018,Children and Families,Social Care,Third Party Payments,Services Rendered By Other Organisations,511,11/07/2018,0718-00165,0.00,994.50,R,Abc Nursery At Lufc,No
Http://opendatacommunities.org/id/metropolitan-district-council/leeds,Leeds City Council,31/07/2018,Children and Families,Social Care,Third Party Payments,Services Rendered By Other Organisations,511,13/07/2018,0718-00166,0.00,413.40,R,Abc Nursery At Lufc,No
Http://opendatacommunities.org/id/metropolitan-district-council/leeds,Leeds City Council,31/07/2018,Children and Families,Social Care,Third Party Payments,Services Rendered By Other Organisations,511,13/07/2018,0718-00167,0.00,335.75,R,Abc Nursery At Lufc,No
Http://opendatacommunities.org/id/metropolitan-district-council/leeds,Leeds City Council,31/07/2018,Children and Families,Social Care,Third Party Payments,Services Rendered By Other Organisations,511,11/07/2018,0718-00168,0.00,3983.10,R,Abc@D'S Childcare Services,No
Http://opendatacommunities.org/id/metropolitan-district-council/leeds,Leeds City Council,31/07/2018,Children and Families,Social Care,Third Party Payments,Services Rendered By Other Organisations,511,13/07/2018,0718-00169,0.00,9201.25,R,Abc@D'S Childcare Services,No
Http://opendatacommunities.org/id/metropolitan-district-council/leeds,Leeds City Council,31/07/2018,Children and Families,Social Care,Third Party Payments,Services Rendered By Other Organisations,511,13/07/2018,0718-00170,0.00,310.05,R,Abc@D'S Childcare Services,No
Http://opendatacommunities.org/id/metropolitan-district-council/leeds,Leeds City Council,31/07/2018,Communities and Environment,Customer Access,Supplies and Services,Other Hired And Contracted Services,265,05/07/2018,0718-00171,0.00,171.75,R,Abdulahad Denha,No
Http://opendatacommunities.org/id/metropolitan-district-council/leeds,Leeds City Council,31/07/2018,Children and Families,Social Care,Transfer Payments,Leaving Care Allowances,634,23/07/2018,0718-00172,0.00,100.00,R,REDACTED PERSONAL DATA,No
Http://opendatacommunities.org/id/metropolitan-district-council/leeds,Leeds City Council,31/07/2018,Communities and Environment,Customer Access,Supplies and Services,Other Hired And Contracted Services,265,05/07/2018,0718-00173,0.00,25.75,R,Abdur Rahman Khan,No
Http://opendatacommunities.org/id/metropolitan-district-council/leeds,Leeds City Council,31/07/2018,City Development,Libraries  Arts & Heritage  ,Supplies and Services,Operational Materials,205,20/06/2018,0718-00174,0.00,55.63,R,Abel Magnets Ltd,Yes
Http://opendatacommunities.org/id/metropolitan-district-council/leeds,Leeds City Council,31/07/2018,Strategic Accounts,Miscellaneous,Supplies and Services,Non-Recurring Grants,227,23/07/2018,0718-00175,0.00,230.00,R,Aberford Cofe Primary School Pta,No
Http://opendatacommunities.org/id/metropolitan-district-council/leeds,Leeds City Council,31/07/2018,Adults and Health,Services For Older People - 65 And Over,Third Party Payments,Nursing Home,570,25/07/2018,0718-00176,0.00,35645.83,R,Aberford Hall,No
Http://opendatacommunities.org/id/metropolitan-district-council/leeds,Leeds City Council,31/07/2018,Adults and Health,Services For Older People - 65 And Over,Third Party Payments,Nursing Care Dementia,574,25/07/2018,0718-00177,0.00,3517.84,R,Aberford Hall,No
Http://opendatacommunities.org/id/metropolitan-district-council/leeds,Leeds City Council,31/07/2018,Adults and Health,Services For Older People - 65 And Over,Third Party Payments,Residential,580,25/07/2018,0718-00178,0.00,-7423.69,R,Aberford Hall,No
Http://opendatacommunities.org/id/metropolitan-district-council/leeds,Leeds City Council,31/07/2018,Resources and Housing,Leeds Building Services,Supplies and Services,Operational Materials,205,04/07/2018,0718-00179,0.00,33.33,R,Abi Garage Doors Ltd,No
Http://opendatacommunities.org/id/metropolitan-district-council/leeds,Leeds City Council,31/07/2018,Resources and Housing,Leeds Building Services,Supplies and Services,Operational Materials,205,05/07/2018,0718-00180,0.00,250.45,R,Abi Garage Doors Ltd,No
Http://opendatacommunities.org/id/metropolitan-district-council/leeds,Leeds City Council,31/07/2018,Resources and Housing,Leeds Building Services,Supplies and Services,Operational Materials,205,05/07/2018,0718-00181,0.00,6.67,R,Abi Garage Doors Ltd,No
Http://opendatacommunities.org/id/metropolitan-district-council/leeds,Leeds City Council,31/07/2018,Resources and Housing,Leeds Building Services,Supplies and Services,Operational Materials,205,13/07/2018,0718-00182,0.00,250.45,R,Abi Garage Doors Ltd,No
Http://opendatacommunities.org/id/metropolitan-district-council/leeds,Leeds City Council,31/07/2018,Children and Families,Social Care,Employees,Training & Development,70,31/07/2018,0718-00183,0.00,150.00,R,Ability Smart Limited,No
Http://opendatacommunities.org/id/metropolitan-district-council/leeds,Leeds City Council,31/07/2018,Children and Families,Social Care,Employees,Agency Staff,8,20/07/2018,0718-00184,0.00,705.00,R,Academic Appointments Ltd,No
Http://opendatacommunities.org/id/metropolitan-district-council/leeds,Leeds City Council,31/07/2018,Children and Families,Social Care,Employees,Agency Staff,8,27/07/2018,0718-00185,0.00,1191.00,R,Academic Appointments Ltd,No
Http://opendatacommunities.org/id/metropolitan-district-council/leeds,Leeds City Council,31/07/2018,Children and Families,Social Care,Employees,Agency Staff,8,27/07/2018,0718-00186,0.00,1269.00,R,Academic Appointments Ltd,No
Http://opendatacommunities.org/id/metropolitan-district-council/leeds,Leeds City Council,31/07/2018,Communities and Environment,Parks And Countryside  ,Supplies and Services,Operational Materials,205,05/06/2018,0718-00187,0.00,24.03,R,Access Locksmiths,Yes
Http://opendatacommunities.org/id/metropolitan-district-council/leeds,Leeds City Council,31/07/2018,Children and Families,Social Care  ,Supplies and Services,Operational Furniture And Equipment,203,07/06/2018,0718-00188,0.00,31.01,R,Access Locksmiths,Yes
Http://opendatacommunities.org/id/metropolitan-district-council/leeds,Leeds City Council,31/07/2018,Children and Families,Social Care  ,Supplies and Services,Operational Furniture And Equipment,203,21/06/2018,0718-00189,0.00,6.96,R,Access Locksmiths,Yes
Http://opendatacommunities.org/id/metropolitan-district-council/leeds,Leeds City Council,31/07/2018,Resources and Housing,Leeds Building Services,Supplies and Services,Other Hired And Contracted Services,265,04/07/2018,0718-00190,0.00,112.00,R,Access Locksmiths (Leeds) Limited,No
Http://opendatacommunities.org/id/metropolitan-district-council/leeds,Leeds City Council,31/07/2018,Resources and Housing,Leeds Building Services,Supplies and Services,Operational Materials,205,05/07/2018,0718-00191,0.00,18.27,R,Access Locksmiths (Leeds) Limited,No
Http://opendatacommunities.org/id/metropolitan-district-council/leeds,Leeds City Council,31/07/2018,Resources and Housing,Leeds Building Services,Supplies and Services,Operational Materials,205,05/07/2018,0718-00192,0.00,251.24,R,Access Locksmiths (Leeds) Limited,No
Http://opendatacommunities.org/id/metropolitan-district-council/leeds,Leeds City Council,31/07/2018,Resources and Housing,Leeds Building Services,Supplies and Services,Operational Materials,205,05/07/2018,0718-00193,0.00,6.72,R,Access Locksmiths (Leeds) Limited,No
Http://opendatacommunities.org/id/metropolitan-district-council/leeds,Leeds City Council,31/07/2018,Resources and Housing,Leeds Building Services,Supplies and Services,Operational Materials,205,05/07/2018,0718-00194,0.00,80.81,R,Access Locksmiths (Leeds) Limited,No
Http://opendatacommunities.org/id/metropolitan-district-council/leeds,Leeds City Council,31/07/2018,Resources and Housing,Leeds Building Services,Supplies and Services,Operational Materials,205,05/07/2018,0718-00195,0.00,251.02,R,Access Locksmiths (Leeds) Limited,No
Http://opendatacommunities.org/id/metropolitan-district-council/leeds,Leeds City Council,31/07/2018,Resources and Housing,Leeds Building Services,Supplies and Services,Operational Materials,205,05/07/2018,0718-00196,0.00,51.00,R,Access Locksmiths (Leeds) Limited,No
Http://opendatacommunities.org/id/metropolitan-district-council/leeds,Leeds City Council,31/07/2018,Resources and Housing,Leeds Building Services,Supplies and Services,Operational Materials,205,05/07/2018,0718-00197,0.00,72.72,R,Access Locksmiths (Leeds) Limited,No
Http://opendatacommunities.org/id/metropolitan-district-council/leeds,Leeds City Council,31/07/2018,Resources and Housing,Leeds Building Services,Supplies and Services,Operational Materials,205,05/07/2018,0718-00198,0.00,28.73,R,Access Locksmiths (Leeds) Limited,No
Http://opendatacommunities.org/id/metropolitan-district-council/leeds,Leeds City Council,31/07/2018,Resources and Housing,Leeds Building Services,Supplies and Services,Operational Materials,205,05/07/2018,0718-00199,0.00,17.78,R,Access Locksmiths (Leeds) Limited,No
Http://opendatacommunities.org/id/metropolitan-district-council/leeds,Leeds City Council,31/07/2018,Resources and Housing,Leeds Building Services,Supplies and Services,Operational Materials,205,05/07/2018,0718-00200,0.00,18.77,R,Access Locksmiths (Leeds) Limited,No
Http://opendatacommunities.org/id/metropolitan-district-council/leeds,Leeds City Council,31/07/2018,Resources and Housing,Leeds Building Services,Supplies and Services,Operational Materials,205,05/07/2018,0718-00201,0.00,50.01,R,Access Locksmiths (Leeds) Limited,No
Http://opendatacommunities.org/id/metropolitan-district-council/leeds,Leeds City Council,31/07/2018,Resources and Housing,Leeds Building Services,Supplies and Services,Operational Materials,205,05/07/2018,0718-00202,0.00,140.43,R,Access Locksmiths (Leeds) Limited,No
Http://opendatacommunities.org/id/metropolitan-district-council/leeds,Leeds City Council,31/07/2018,Resources and Housing,Leeds Building Services,Supplies and Services,Operational Materials,205,05/07/2018,0718-00203,0.00,10.71,R,Access Locksmiths (Leeds) Limited,No
Http://opendatacommunities.org/id/metropolitan-district-council/leeds,Leeds City Council,31/07/2018,Resources and Housing,Leeds Building Services,Supplies and Services,Operational Materials,205,05/07/2018,0718-00204,0.00,1.35,R,Access Locksmiths (Leeds) Limited,No
Http://opendatacommunities.org/id/metropolitan-district-council/leeds,Leeds City Council,31/07/2018,Resources and Housing,Leeds Building Services,Supplies and Services,Operational Materials,205,05/07/2018,0718-00205,0.00,7.30,R,Access Locksmiths (Leeds) Limited,No
Http://opendatacommunities.org/id/metropolitan-district-council/leeds,Leeds City Council,31/07/2018,Resources and Housing,Leeds Building Services,Supplies and Services,Operational Materials,205,05/07/2018,0718-00206,0.00,18.77,R,Access Locksmiths (Leeds) Limited,No
Http://opendatacommunities.org/id/metropolitan-district-council/leeds,Leeds City Council,31/07/2018,Strategic Landlord,Property and Contracts,Premises,General Maintenance,104,13/07/2018,0718-00207,0.00,259.31,R,Access Locksmiths (Leeds) Limited,No
Http://opendatacommunities.org/id/metropolitan-district-council/leeds,Leeds City Council,31/07/2018,Strategic Landlord,Housing Management,Premises,General Maintenance,104,17/07/2018,0718-00208,0.00,114.00,R,Access Locksmiths (Leeds) Limited,No
Http://opendatacommunities.org/id/metropolitan-district-council/leeds,Leeds City Council,31/07/2018,Strategic Landlord,Housing Management,Supplies and Services,Resaleable Materials,204,17/07/2018,0718-00209,0.00,171.00,R,Access Locksmiths (Leeds) Limited,No
Http://opendatacommunities.org/id/metropolitan-district-council/leeds,Leeds City Council,31/07/2018,Strategic Landlord,Property and Contracts,Supplies and Services,Office Consumables,210,17/07/2018,0718-00210,0.00,57.00,R,Access Locksmiths (Leeds) Limited,No
Http://opendatacommunities.org/id/metropolitan-district-council/leeds,Leeds City Council,31/07/2018,Resources and Housing,Leeds Building Services,Supplies and Services,Other Hired And Contracted Services,265,18/07/2018,0718-00211,0.00,20.00,R,Access Locksmiths (Leeds) Limited,No
Http://opendatacommunities.org/id/metropolitan-district-council/leeds,Leeds City Council,31/07/2018,Resources and Housing,Leeds Building Services,Supplies and Services,Operational Materials,205,23/07/2018,0718-00212,0.00,37.44,R,Access Locksmiths (Leeds) Limited,No
Http://opendatacommunities.org/id/metropolitan-district-council/leeds,Leeds City Council,31/07/2018,Resources and Housing,Leeds Building Services,Supplies and Services,Operational Materials,205,23/07/2018,0718-00213,0.00,67.74,R,Access Locksmiths (Leeds) Limited,No
Http://opendatacommunities.org/id/metropolitan-district-council/leeds,Leeds City Council,31/07/2018,Resources and Housing,Leeds Building Services,Supplies and Services,Operational Materials,205,23/07/2018,0718-00214,0.00,114.75,R,Access Locksmiths (Leeds) Limited,No
Http://opendatacommunities.org/id/metropolitan-district-council/leeds,Leeds City Council,31/07/2018,Resources and Housing,Leeds Building Services,Supplies and Services,Operational Materials,205,23/07/2018,0718-00215,0.00,62.76,R,Access Locksmiths (Leeds) Limited,No
Http://opendatacommunities.org/id/metropolitan-district-council/leeds,Leeds City Council,31/07/2018,Resources and Housing,Leeds Building Services,Supplies and Services,Operational Materials,205,23/07/2018,0718-00216,0.00,128.05,R,Access Locksmiths (Leeds) Limited,No
Http://opendatacommunities.org/id/metropolitan-district-council/leeds,Leeds City Council,31/07/2018,Resources and Housing,Leeds Building Services,Supplies and Services,Operational Materials,205,23/07/2018,0718-00217,0.00,240.00,R,Access Locksmiths (Leeds) Limited,No
Http://opendatacommunities.org/id/metropolitan-district-council/leeds,Leeds City Council,31/07/2018,Resources and Housing,Leeds Building Services,Supplies and Services,Operational Materials,205,23/07/2018,0718-00218,0.00,226.00,R,Access Locksmiths (Leeds) Limited,No
Http://opendatacommunities.org/id/metropolitan-district-council/leeds,Leeds City Council,31/07/2018,Resources and Housing,Leeds Building Services,Supplies and Services,Operational Materials,205,23/07/2018,0718-00219,0.00,34.71,R,Access Locksmiths (Leeds) Limited,No
Http://opendatacommunities.org/id/metropolitan-district-council/leeds,Leeds City Council,31/07/2018,Resources and Housing,Leeds Building Services,Supplies and Services,Other Hired And Contracted Services,265,23/07/2018,0718-00220,0.00,129.60,R,Access Locksmiths (Leeds) Limited,No
Http://opendatacommunities.org/id/metropolitan-district-council/leeds,Leeds City Council,31/07/2018,Strategic Landlord,Housing Management,Premises,General Maintenance,104,25/07/2018,0718-00221,0.00,456.00,R,Access Locksmiths (Leeds) Limited,No
Http://opendatacommunities.org/id/metropolitan-district-council/leeds,Leeds City Council,31/07/2018,Strategic Landlord,Property and Contracts,Premises,General Maintenance,104,25/07/2018,0718-00222,0.00,5145.00,R,Access Locksmiths (Leeds) Limited,No
Http://opendatacommunities.org/id/metropolitan-district-council/leeds,Leeds City Council,31/07/2018,Strategic Landlord,Property and Contracts,Premises,General Maintenance,104,25/07/2018,0718-00223,0.00,749.00,R,Access Locksmiths (Leeds) Limited,No
Http://opendatacommunities.org/id/metropolitan-district-council/leeds,Leeds City Council,31/07/2018,Resources and Housing,Leeds Building Services,Supplies and Services,Operational Materials,205,27/07/2018,0718-00224,0.00,372.11,R,Access Locksmiths (Leeds) Limited,No
Http://opendatacommunities.org/id/metropolitan-district-council/leeds,Leeds City Council,31/07/2018,Resources and Housing,Leeds Building Services,Supplies and Services,Operational Materials,205,27/07/2018,0718-00225,0.00,2.32,R,Access Locksmiths (Leeds) Limited,No
Http://opendatacommunities.org/id/metropolitan-district-council/leeds,Leeds City Council,31/07/2018,Resources and Housing,Leeds Building Services,Supplies and Services,Operational Materials,205,27/07/2018,0718-00226,0.00,143.77,R,Access Locksmiths (Leeds) Limited,No
Http://opendatacommunities.org/id/metropolitan-district-council/leeds,Leeds City Council,31/07/2018,Resources and Housing,Leeds Building Services,Supplies and Services,Operational Materials,205,27/07/2018,0718-00227,0.00,123.61,R,Access Locksmiths (Leeds) Limited,No
Http://opendatacommunities.org/id/metropolitan-district-council/leeds,Leeds City Council,31/07/2018,Resources and Housing,Leeds Building Services,Supplies and Services,Operational Materials,205,27/07/2018,0718-00228,0.00,52.50,R,Access Locksmiths (Leeds) Limited,No
Http://opendatacommunities.org/id/metropolitan-district-council/leeds,Leeds City Council,31/07/2018,Resources and Housing,Leeds Building Services,Supplies and Services,Operational Materials,205,27/07/2018,0718-00229,0.00,65.72,R,Access Locksmiths (Leeds) Limited,No
Http://opendatacommunities.org/id/metropolitan-district-council/leeds,Leeds City Council,31/07/2018,Resources and Housing,Leeds Building Services,Supplies and Services,Operational Materials,205,27/07/2018,0718-00230,0.00,84.13,R,Access Locksmiths (Leeds) Limited,No
Http://opendatacommunities.org/id/metropolitan-district-council/leeds,Leeds City Council,31/07/2018,Resources and Housing,Leeds Building Services,Supplies and Services,Operational Materials,205,27/07/2018,0718-00231,0.00,15.85,R,Access Locksmiths (Leeds) Limited,No
Http://opendatacommunities.org/id/metropolitan-district-council/leeds,Leeds City Council,31/07/2018,Resources and Housing,Leeds Building Services,Supplies and Services,Operational Materials,205,27/07/2018,0718-00232,0.00,109.30,R,Access Locksmiths (Leeds) Limited,No
Http://opendatacommunities.org/id/metropolitan-district-council/leeds,Leeds City Council,31/07/2018,Resources and Housing,Leeds Building Services,Supplies and Services,Other Hired And Contracted Services,265,27/07/2018,0718-00233,0.00,11.25,R,Access Locksmiths (Leeds) Limited,No
Http://opendatacommunities.org/id/metropolitan-district-council/leeds,Leeds City Council,31/07/2018,Resources and Housing,Leeds Building Services,Supplies and Services,Operational Materials,205,31/07/2018,0718-00234,0.00,31.45,R,Access Locksmiths (Leeds) Limited,No
Http://opendatacommunities.org/id/metropolitan-district-council/leeds,Leeds City Council,31/07/2018,Resources and Housing,Leeds Building Services,Supplies and Services,Other Hired And Contracted Services,265,31/07/2018,0718-00235,0.00,408.00,R,Access Locksmiths (Leeds) Limited,No
Http://opendatacommunities.org/id/metropolitan-district-council/leeds,Leeds City Council,31/07/2018,Strategic Landlord,Property and Contracts,Premises,General Maintenance,104,31/07/2018,0718-00236,0.00,5842.98,R,Access Locksmiths (Leeds) Limited,No
Http://opendatacommunities.org/id/metropolitan-district-council/leeds,Leeds City Council,31/07/2018,Resources and Housing,Leeds Building Services,Supplies and Services,Other Hired And Contracted Services,265,02/07/2018,0718-00237,0.00,85.00,R,Access Opening Systems,No
Http://opendatacommunities.org/id/metropolitan-district-council/leeds,Leeds City Council,31/07/2018,Resources and Housing,Leeds Building Services,Supplies and Services,Operational Materials,205,03/07/2018,0718-00238,0.00,12.50,R,Access Opening Systems,No
Http://opendatacommunities.org/id/metropolitan-district-council/leeds,Leeds City Council,31/07/2018,Resources and Housing,Leeds Building Services,Supplies and Services,Operational Materials,205,03/07/2018,0718-00239,0.00,325.00,R,Access Opening Systems,No
Http://opendatacommunities.org/id/metropolitan-district-council/leeds,Leeds City Council,31/07/2018,Resources and Housing,Leeds Building Services,Supplies and Services,Operational Materials,205,03/07/2018,0718-00240,0.00,500.00,R,Access Opening Systems,No
Http://opendatacommunities.org/id/metropolitan-district-council/leeds,Leeds City Council,31/07/2018,Resources and Housing,Leeds Building Services,Supplies and Services,Operational Materials,205,05/07/2018,0718-00241,0.00,50.00,R,Access Opening Systems,No
Http://opendatacommunities.org/id/metropolitan-district-council/leeds,Leeds City Council,31/07/2018,Resources and Housing,Leeds Building Services,Supplies and Services,Operational Materials,205,05/07/2018,0718-00242,0.00,1151.60,R,Access Opening Systems,No
Http://opendatacommunities.org/id/metropolitan-district-council/leeds,Leeds City Council,31/07/2018,Resources and Housing,Leeds Building Services,Supplies and Services,Operational Materials,205,05/07/2018,0718-00243,0.00,64.00,R,Access Opening Systems,No
Http://opendatacommunities.org/id/metropolitan-district-council/leeds,Leeds City Council,31/07/2018,Resources and Housing,Leeds Building Services,Supplies and Services,Operational Materials,205,05/07/2018,0718-00244,0.00,175.00,R,Access Opening Systems,No
Http://opendatacommunities.org/id/metropolitan-district-council/leeds,Leeds City Council,31/07/2018,Resources and Housing,Leeds Building Services,Supplies and Services,Operational Materials,205,05/07/2018,0718-00245,0.00,175.00,R,Access Opening Systems,No
Http://opendatacommunities.org/id/metropolitan-district-council/leeds,Leeds City Council,31/07/2018,Resources and Housing,Leeds Building Services,Supplies and Services,Operational Materials,205,13/07/2018,0718-00246,0.00,162.50,R,Access Opening Systems,No
Http://opendatacommunities.org/id/metropolitan-district-council/leeds,Leeds City Council,31/07/2018,Resources and Housing,Leeds Building Services,Supplies and Services,Operational Materials,205,19/07/2018,0718-00247,0.00,212.50,R,Access Opening Systems,No
Http://opendatacommunities.org/id/metropolitan-district-council/leeds,Leeds City Council,31/07/2018,Resources and Housing,Leeds Building Services,Supplies and Services,Operational Materials,205,23/07/2018,0718-00248,0.00,25.00,R,Access Opening Systems,No
Http://opendatacommunities.org/id/metropolitan-district-council/leeds,Leeds City Council,31/07/2018,Resources and Housing,Leeds Building Services,Supplies and Services,Operational Materials,205,23/07/2018,0718-00249,0.00,38.50,R,Access Opening Systems,No
Http://opendatacommunities.org/id/metropolitan-district-council/leeds,Leeds City Council,31/07/2018,Resources and Housing,Leeds Building Services,Supplies and Services,Operational Materials,205,23/07/2018,0718-00250,0.00,327.00,R,Access Opening Systems,No
Http://opendatacommunities.org/id/metropolitan-district-council/leeds,Leeds City Council,31/07/2018,Resources and Housing,Leeds Building Services,Supplies and Services,Other Hired And Contracted Services,265,23/07/2018,0718-00251,0.00,85.00,R,Access Opening Systems,No
Http://opendatacommunities.org/id/metropolitan-district-council/leeds,Leeds City Council,31/07/2018,Resources and Housing,Leeds Building Services,Supplies and Services,Operational Materials,205,26/07/2018,0718-00252,0.00,152.00,R,Access Opening Systems,No
Http://opendatacommunities.org/id/metropolitan-district-council/leeds,Leeds City Council,31/07/2018,Resources and Housing,Leeds Building Services,Supplies and Services,Operational Materials,205,30/07/2018,0718-00253,0.00,107.50,R,Access Opening Systems,No
Http://opendatacommunities.org/id/metropolitan-district-council/leeds,Leeds City Council,31/07/2018,Resources and Housing,Leeds Building Services,Supplies and Services,Operational Materials,205,30/07/2018,0718-00254,0.00,321.27,R,Access Opening Systems,No
Http://opendatacommunities.org/id/metropolitan-district-council/leeds,Leeds City Council,31/07/2018,Resources and Housing,Leeds Building Services,Supplies and Services,Other Hired And Contracted Services,265,30/07/2018,0718-00255,0.00,123.00,R,Access Opening Systems,No
Http://opendatacommunities.org/id/metropolitan-district-council/leeds,Leeds City Council,31/07/2018,Resources and Housing,Leeds Building Services,Supplies and Services,Operational Materials,205,31/07/2018,0718-00256,0.00,18.92,R,Access Opening Systems,No
Http://opendatacommunities.org/id/metropolitan-district-council/leeds,Leeds City Council,31/07/2018,Resources and Housing,Leeds Building Services,Supplies and Services,Operational Materials,205,31/07/2018,0718-00257,0.00,162.50,R,Access Opening Systems,No
Http://opendatacommunities.org/id/metropolitan-district-council/leeds,Leeds City Council as Accountable Body,31/07/2018,Social Services Pooled Budgets,Jcs For People With Learning Disabilitie,Supplies and Services,Other Equipment,203,20/07/2018,0718-00258,0.00,195.00,R,Accora,No
Http://opendatacommunities.org/id/metropolitan-district-council/leeds,Leeds City Council,31/07/2018,City Development,Recreation,Supplies and Services,Other Hired And Contracted Services,265,06/07/2018,0718-00259,0.00,90.00,R,Ace Container Services Limited,No
Http://opendatacommunities.org/id/metropolitan-district-council/leeds,Leeds City Council,31/07/2018,City Development,Recreation,Transport,External Hire -Occasional,304,30/07/2018,0718-00260,0.00,128.65,R,Ace Container Services Limited,No
Http://opendatacommunities.org/id/metropolitan-district-council/leeds,Leeds City Council,31/07/2018,Resources and Housing,Sustainable Energy & Air Quality,Supplies and Services,Advertising,211,09/07/2018,0718-00261,0.00,12218.21,R,Ace Leaflet Distribution & Print Ltd,No
Http://opendatacommunities.org/id/metropolitan-district-council/leeds,Leeds City Council,31/07/2018,Children and Families,Partnerships & Health,Third Party Payments,SEN Placements,566,06/07/2018,0718-00262,0.00,25198.47,R,Ackworth School,No
Http://opendatacommunities.org/id/metropolitan-district-council/leeds,Leeds City Council,31/07/2018,Children and Families,Partnerships & Health,Third Party Payments,SEN Placements,566,06/07/2018,0718-00263,0.00,17476.47,R,Ackworth School,No
Http://opendatacommunities.org/id/metropolitan-district-council/leeds,Leeds City Council,31/07/2018,Children and Families,Partnerships & Health,Third Party Payments,SEN Placements,566,09/07/2018,0718-00264,0.00,17476.47,R,Ackworth School,No
Http://opendatacommunities.org/id/metropolitan-district-council/leeds,Leeds City Council,31/07/2018,Children and Families,Partnerships & Health,Third Party Payments,SEN Placements,566,11/07/2018,0718-00265,0.00,17476.47,R,Ackworth School,No
Http://opendatacommunities.org/id/metropolitan-district-council/leeds,Leeds City Council,31/07/2018,Children and Families,Partnerships & Health,Third Party Payments,SEN Placements,566,11/07/2018,0718-00266,0.00,17476.47,R,Ackworth School,No
Http://opendatacommunities.org/id/metropolitan-district-council/leeds,Leeds City Council,31/07/2018,Children and Families,Partnerships & Health,Third Party Payments,SEN Placements,566,11/07/2018,0718-00267,0.00,17476.47,R,Ackworth School,No
Http://opendatacommunities.org/id/metropolitan-district-council/leeds,Leeds City Council,31/07/2018,Resources and Housing,Leeds Building Services,Supplies and Services,Operational Materials,205,02/07/2018,0718-00268,0.00,1027.00,R,Acme Facilities Group Ltd,No
Http://opendatacommunities.org/id/metropolitan-district-council/leeds,Leeds City Council,31/07/2018,Communities and Environment,Waste Management,Supplies and Services,Other Hired And Contracted Services,265,12/07/2018,0718-00269,0.00,200.00,R,Acorn Analytical Services Limited,No
Http://opendatacommunities.org/id/metropolitan-district-council/leeds,Leeds City Council,31/07/2018,Adults and Health,Services For Older People - 65 And Over,Third Party Payments,Nursing Care Dementia,574,25/07/2018,0718-00270,0.00,1610.80,R,Acorn Nursing Home,No
Http://opendatacommunities.org/id/metropolitan-district-council/leeds,Leeds City Council,31/07/2018,City Development,Libraries  Arts & Heritage,Supplies and Services,Other Hired And Contracted Services,265,30/07/2018,0718-00271,0.00,9140.00,R,Acorn Scaffolding (Yorkshire) Ltd,No
Http://opendatacommunities.org/id/metropolitan-district-council/leeds,Leeds City Council,31/07/2018,Adults and Health,Other Adult Services,Third Party Payments,Residential - Drugs & Alcohol,583,06/07/2018,0718-00272,0.00,550.00,R,Acorn Treatment & Housing,No
Http://opendatacommunities.org/id/metropolitan-district-council/leeds,Leeds City Council,31/07/2018,Adults and Health,Other Adult Services,Third Party Payments,Residential - Drugs & Alcohol,583,06/07/2018,0718-00273,0.00,2124.83,R,Acorn Treatment & Housing,No
Http://opendatacommunities.org/id/metropolitan-district-council/leeds,Leeds City Council,31/07/2018,Adults and Health,Other Adult Services,Third Party Payments,Residential - Drugs & Alcohol,583,20/07/2018,0718-00274,0.00,2357.14,R,Acorn Treatment & Housing,No
Http://opendatacommunities.org/id/metropolitan-district-council/leeds,Leeds City Council,31/07/2018,Adults and Health,Other Adult Services,Third Party Payments,Residential - Drugs & Alcohol,583,20/07/2018,0718-00275,0.00,1370.86,R,Acorn Treatment & Housing,No
Http://opendatacommunities.org/id/metropolitan-district-council/leeds,Leeds City Council,31/07/2018,Adults and Health,Other Adult Services,Third Party Payments,Residential - Drugs & Alcohol,583,20/07/2018,0718-00276,0.00,2056.29,R,Acorn Treatment & Housing,No
Http://opendatacommunities.org/id/metropolitan-district-council/leeds,Leeds City Council,31/07/2018,Children and Families,Social Care,Third Party Payments,Services Rendered By Other Organisations,511,13/07/2018,0718-00277,0.00,20189.41,R,Acorns Nursery,No
Http://opendatacommunities.org/id/metropolitan-district-council/leeds,Leeds City Council,31/07/2018,Adults and Health,Services For Older People - 65 And Over,Third Party Payments,Nursing Home,570,04/07/2018,0718-00278,0.00,1379.11,R,Acre Green,No
Http://opendatacommunities.org/id/metropolitan-district-council/leeds,Leeds City Council,31/07/2018,Adults and Health,Services For Older People - 65 And Over,Third Party Payments,Nursing Home,570,25/07/2018,0718-00279,0.00,46137.81,R,Acre Green,No
Http://opendatacommunities.org/id/metropolitan-district-council/leeds,Leeds City Council,31/07/2018,Adults and Health,Services For Older People - 65 And Over,Third Party Payments,Residential,580,25/07/2018,0718-00280,0.00,10282.26,R,Acre Green,No
Http://opendatacommunities.org/id/metropolitan-district-council/leeds,Leeds City Council,31/07/2018,Adults and Health,Services For Older People Under 65 P/Dis,Third Party Payments,Nursing Home,570,25/07/2018,0718-00281,0.00,2200.00,R,Acre Green,No
Http://opendatacommunities.org/id/metropolitan-district-council/leeds,Leeds City Council,31/07/2018,Adults and Health,Services For Older People Under 65 P/Dis,Third Party Payments,Residential,580,25/07/2018,0718-00282,0.00,-1172.86,R,Acre Green,No
Http://opendatacommunities.org/id/metropolitan-district-council/leeds,Leeds City Council,31/07/2018,Children and Families,Social Care,Third Party Payments,Services Rendered By Other Organisations,511,11/07/2018,0718-00283,0.00,4469.67,R,Acre Wood Day Nursery,No
Http://opendatacommunities.org/id/metropolitan-district-council/leeds,Leeds City Council,31/07/2018,Children and Families,Social Care,Third Party Payments,Services Rendered By Other Organisations,511,13/07/2018,0718-00284,0.00,9728.25,R,Acre Wood Day Nursery,No
Http://opendatacommunities.org/id/metropolitan-district-council/leeds,Leeds City Council,31/07/2018,City Development,Highways,Supplies and Services,Operational Materials,205,19/07/2018,0718-00285,0.00,723.75,R,Actavo (Leeds H & S),No
Http://opendatacommunities.org/id/metropolitan-district-council/leeds,Leeds City Council,31/07/2018,Resources and Housing,Leeds Building Services,Supplies and Services,Operational Materials,205,19/07/2018,0718-00286,0.00,57.00,R,Actavo (Leeds H & S),No
Http://opendatacommunities.org/id/metropolitan-district-council/leeds,Leeds City Council,31/07/2018,Resources and Housing,Shared Services,Supplies and Services,Licences,266,19/07/2018,0718-00287,0.00,-527.45,R,Actavo (Leeds H & S),No
Http://opendatacommunities.org/id/metropolitan-district-council/leeds,Leeds City Council,31/07/2018,City Development,Highways,Supplies and Services,Operational Materials,205,27/07/2018,0718-00288,0.00,985.00,R,Actavo (Leeds H & S),No
Http://opendatacommunities.org/id/metropolitan-district-council/leeds,Leeds City Council,31/07/2018,Adults and Health,Services For Adults Under 65 Mental/Dis,Third Party Payments,Fees - Level 4,520,05/07/2018,0718-00289,0.00,220.00,R,Action First Recruitment Ltd,No
Http://opendatacommunities.org/id/metropolitan-district-council/leeds,Leeds City Council,31/07/2018,Adults and Health,Services For Adults Under 65 Mental/Dis,Third Party Payments,Fees - Level 4,520,05/07/2018,0718-00290,0.00,220.00,R,Action First Recruitment Ltd,No
Http://opendatacommunities.org/id/metropolitan-district-council/leeds,Leeds City Council,31/07/2018,Adults and Health,Services For Adults Under 65 Mental/Dis,Third Party Payments,Fees - Level 4,520,05/07/2018,0718-00291,0.00,220.00,R,Action First Recruitment Ltd,No
Http://opendatacommunities.org/id/metropolitan-district-council/leeds,Leeds City Council,31/07/2018,Adults and Health,Services For Adults Under 65 Mental/Dis,Third Party Payments,Fees - Level 4,520,05/07/2018,0718-00292,0.00,220.00,R,Action First Recruitment Ltd,No
Http://opendatacommunities.org/id/metropolitan-district-council/leeds,Leeds City Council,31/07/2018,Adults and Health,Services For Adults Under 65 Mental/Dis,Third Party Payments,Fees - Level 4,520,05/07/2018,0718-00293,0.00,250.00,R,Action First Recruitment Ltd,No
Http://opendatacommunities.org/id/metropolitan-district-council/leeds,Leeds City Council,31/07/2018,Adults and Health,Services For Adults Under 65 Mental/Dis,Third Party Payments,Fees - Level 4,520,05/07/2018,0718-00294,0.00,220.00,R,Action First Recruitment Ltd,No
Http://opendatacommunities.org/id/metropolitan-district-council/leeds,Leeds City Council,31/07/2018,Adults and Health,Services For Adults Under 65 Mental/Dis,Third Party Payments,Fees - Level 4,520,05/07/2018,0718-00295,0.00,220.00,R,Action First Recruitment Ltd,No
Http://opendatacommunities.org/id/metropolitan-district-council/leeds,Leeds City Council,31/07/2018,Adults and Health,Services For Adults Under 65 Mental/Dis,Third Party Payments,Fees - Level 4,520,06/07/2018,0718-00296,0.00,250.00,R,Action First Recruitment Ltd,No
Http://opendatacommunities.org/id/metropolitan-district-council/leeds,Leeds City Council,31/07/2018,Adults and Health,Services For Adults Under 65 Mental/Dis,Third Party Payments,Fees - Level 4,520,13/07/2018,0718-00297,0.00,220.00,R,Action First Recruitment Ltd,No
Http://opendatacommunities.org/id/metropolitan-district-council/leeds,Leeds City Council,31/07/2018,Adults and Health,Services For Adults Under 65 Mental/Dis,Third Party Payments,Fees - Level 4,520,17/07/2018,0718-00298,0.00,220.00,R,Action First Recruitment Ltd,No
Http://opendatacommunities.org/id/metropolitan-district-council/leeds,Leeds City Council,31/07/2018,Adults and Health,Services For Adults Under 65 Mental/Dis,Third Party Payments,Fees - Level 4,520,17/07/2018,0718-00299,0.00,250.00,R,Action First Recruitment Ltd,No
Http://opendatacommunities.org/id/metropolitan-district-council/leeds,Leeds City Council,31/07/2018,Adults and Health,Services For Adults Under 65 Mental/Dis,Third Party Payments,Fees - Level 4,520,17/07/2018,0718-00300,0.00,250.00,R,Action First Recruitment Ltd,No
Http://opendatacommunities.org/id/metropolitan-district-council/leeds,Leeds City Council,31/07/2018,Adults and Health,Services For Adults Under 65 Mental/Dis,Third Party Payments,Fees - Level 4,520,17/07/2018,0718-00301,0.00,250.00,R,Action First Recruitment Ltd,No
Http://opendatacommunities.org/id/metropolitan-district-council/leeds,Leeds City Council,31/07/2018,Adults and Health,Services For Adults Under 65 Mental/Dis,Third Party Payments,Fees - Level 4,520,17/07/2018,0718-00302,0.00,250.00,R,Action First Recruitment Ltd,No
Http://opendatacommunities.org/id/metropolitan-district-council/leeds,Leeds City Council,31/07/2018,Adults and Health,Services For Adults Under 65 Mental/Dis,Third Party Payments,Fees - Level 4,520,17/07/2018,0718-00303,0.00,250.00,R,Action First Recruitment Ltd,No
Http://opendatacommunities.org/id/metropolitan-district-council/leeds,Leeds City Council,31/07/2018,Adults and Health,Services For Adults Under 65 Mental/Dis,Third Party Payments,Fees - Level 4,520,17/07/2018,0718-00304,0.00,250.00,R,Action First Recruitment Ltd,No
Http://opendatacommunities.org/id/metropolitan-district-council/leeds,Leeds City Council,31/07/2018,Adults and Health,Services For Adults Under 65 Mental/Dis,Third Party Payments,Fees - Level 4,520,17/07/2018,0718-00305,0.00,250.00,R,Action First Recruitment Ltd,No
Http://opendatacommunities.org/id/metropolitan-district-council/leeds,Leeds City Council,31/07/2018,Adults and Health,Services For Adults Under 65 Mental/Dis,Third Party Payments,Fees - Level 4,520,17/07/2018,0718-00306,0.00,250.00,R,Action First Recruitment Ltd,No
Http://opendatacommunities.org/id/metropolitan-district-council/leeds,Leeds City Council,31/07/2018,Adults and Health,Services For Adults Under 65 Mental/Dis,Third Party Payments,Fees - Level 4,520,17/07/2018,0718-00307,0.00,250.00,R,Action First Recruitment Ltd,No
Http://opendatacommunities.org/id/metropolitan-district-council/leeds,Leeds City Council,31/07/2018,Adults and Health,Services For Adults Under 65 Mental/Dis,Third Party Payments,Fees - Level 4,520,17/07/2018,0718-00308,0.00,250.00,R,Action First Recruitment Ltd,No
Http://opendatacommunities.org/id/metropolitan-district-council/leeds,Leeds City Council,31/07/2018,Adults and Health,Services For Adults Under 65 Mental/Dis,Third Party Payments,Fees - Level 4,520,17/07/2018,0718-00309,0.00,250.00,R,Action First Recruitment Ltd,No
Http://opendatacommunities.org/id/metropolitan-district-council/leeds,Leeds City Council,31/07/2018,Adults and Health,Services For Adults Under 65 Mental/Dis,Third Party Payments,Fees - Level 4,520,17/07/2018,0718-00310,0.00,250.00,R,Action First Recruitment Ltd,No
Http://opendatacommunities.org/id/metropolitan-district-council/leeds,Leeds City Council,31/07/2018,Adults and Health,Services For Adults Under 65 Mental/Dis,Third Party Payments,Fees - Level 4,520,17/07/2018,0718-00311,0.00,220.00,R,Action First Recruitment Ltd,No
Http://opendatacommunities.org/id/metropolitan-district-council/leeds,Leeds City Council,31/07/2018,Adults and Health,Services For Adults Under 65 Mental/Dis,Third Party Payments,Fees - Level 4,520,17/07/2018,0718-00312,0.00,220.00,R,Action First Recruitment Ltd,No
Http://opendatacommunities.org/id/metropolitan-district-council/leeds,Leeds City Council,31/07/2018,Adults and Health,Services For Adults Under 65 Mental/Dis,Third Party Payments,Fees - Level 4,520,17/07/2018,0718-00313,0.00,220.00,R,Action First Recruitment Ltd,No
Http://opendatacommunities.org/id/metropolitan-district-council/leeds,Leeds City Council,31/07/2018,Adults and Health,Services For Adults Under 65 Mental/Dis,Third Party Payments,Fees - Level 4,520,17/07/2018,0718-00314,0.00,220.00,R,Action First Recruitment Ltd,No
Http://opendatacommunities.org/id/metropolitan-district-council/leeds,Leeds City Council,31/07/2018,Adults and Health,Services For Adults Under 65 Mental/Dis,Third Party Payments,Fees - Level 4,520,27/07/2018,0718-00315,0.00,250.00,R,Action First Recruitment Ltd,No
Http://opendatacommunities.org/id/metropolitan-district-council/leeds,Leeds City Council,31/07/2018,Adults and Health,Services For Adults Under 65 Mental/Dis,Third Party Payments,Fees - Level 4,520,27/07/2018,0718-00316,0.00,250.00,R,Action First Recruitment Ltd,No
Http://opendatacommunities.org/id/metropolitan-district-council/leeds,Leeds City Council,31/07/2018,Adults and Health,Services For Adults Under 65 Mental/Dis,Third Party Payments,Fees - Level 4,520,27/07/2018,0718-00317,0.00,250.00,R,Action First Recruitment Ltd,No
Http://opendatacommunities.org/id/metropolitan-district-council/leeds,Leeds City Council,31/07/2018,Adults and Health,Services For Adults Under 65 Mental/Dis,Third Party Payments,Fees - Level 4,520,27/07/2018,0718-00318,0.00,250.00,R,Action First Recruitment Ltd,No
Http://opendatacommunities.org/id/metropolitan-district-council/leeds,Leeds City Council,31/07/2018,Adults and Health,Services For Adults Under 65 Mental/Dis,Third Party Payments,Fees - Level 4,520,27/07/2018,0718-00319,0.00,250.00,R,Action First Recruitment Ltd,No
Http://opendatacommunities.org/id/metropolitan-district-council/leeds,Leeds City Council,31/07/2018,Adults and Health,Services For Adults Under 65 Mental/Dis,Third Party Payments,Fees - Level 4,520,27/07/2018,0718-00320,0.00,250.00,R,Action First Recruitment Ltd,No
Http://opendatacommunities.org/id/metropolitan-district-council/leeds,Leeds City Council,31/07/2018,Adults and Health,Services For Adults Under 65 Mental/Dis,Third Party Payments,Fees - Level 4,520,27/07/2018,0718-00321,0.00,250.00,R,Action First Recruitment Ltd,No
Http://opendatacommunities.org/id/metropolitan-district-council/leeds,Leeds City Council,31/07/2018,Adults and Health,Services For Adults Under 65 Mental/Dis,Third Party Payments,Fees - Level 4,520,27/07/2018,0718-00322,0.00,250.00,R,Action First Recruitment Ltd,No
Http://opendatacommunities.org/id/metropolitan-district-council/leeds,Leeds City Council,31/07/2018,Adults and Health,Services For Adults Under 65 Mental/Dis,Third Party Payments,Fees - Level 4,520,27/07/2018,0718-00323,0.00,250.00,R,Action First Recruitment Ltd,No
Http://opendatacommunities.org/id/metropolitan-district-council/leeds,Leeds City Council,31/07/2018,Adults and Health,Services For Adults Under 65 Mental/Dis,Third Party Payments,Fees - Level 4,520,27/07/2018,0718-00324,0.00,250.00,R,Action First Recruitment Ltd,No
Http://opendatacommunities.org/id/metropolitan-district-council/leeds,Leeds City Council,31/07/2018,Children and Families,Social Care,Third Party Payments,Independent Fostering Agencies,509,18/07/2018,0718-00325,0.00,4622.40,R,Action For Children,No
Http://opendatacommunities.org/id/metropolitan-district-council/leeds,Leeds City Council,31/07/2018,Children and Families,Social Care,Third Party Payments,Independent Fostering Agencies,509,18/07/2018,0718-00326,0.00,4622.40,R,Action For Children,No
Http://opendatacommunities.org/id/metropolitan-district-council/leeds,Leeds City Council,31/07/2018,Children and Families,Social Care,Third Party Payments,Independent Fostering Agencies,509,18/07/2018,0718-00327,0.00,4622.40,R,Action For Children,No
Http://opendatacommunities.org/id/metropolitan-district-council/leeds,Leeds City Council,31/07/2018,Children and Families,Social Care,Third Party Payments,Independent Fostering Agencies,509,18/07/2018,0718-00328,0.00,4622.40,R,Action For Children,No
Http://opendatacommunities.org/id/metropolitan-district-council/leeds,Leeds City Council,31/07/2018,Children and Families,Social Care,Third Party Payments,Independent Fostering Agencies,509,18/07/2018,0718-00329,0.00,4897.20,R,Action For Children Services Ltd,No
Http://opendatacommunities.org/id/metropolitan-district-council/leeds,Leeds City Council,31/07/2018,Communities and Environment,Communities,Supplies and Services,'Well Being' Large Grants Projects,230,27/07/2018,0718-00330,0.00,1000.00,R,Active Community Education In Sport Ltd,No
Http://opendatacommunities.org/id/metropolitan-district-council/leeds,Leeds City Council,31/07/2018,Children and Families,Social Care,Third Party Payments,Services Rendered By Other Organisations,511,11/07/2018,0718-00331,0.00,836.40,R,Active Kids Yeadon Llp,No
Http://opendatacommunities.org/id/metropolitan-district-council/leeds,Leeds City Council,31/07/2018,Children and Families,Social Care,Third Party Payments,Services Rendered By Other Organisations,511,13/07/2018,0718-00332,0.00,103.35,R,Active Kids Yeadon Llp,No
Http://opendatacommunities.org/id/metropolitan-district-council/leeds,Leeds City Council,31/07/2018,Communities and Environment,Waste Management,Supplies and Services,Recycling & Reuse Charges,234,04/07/2018,0718-00333,0.00,5792.15,R,Acumen Waste Services Ltd,No
Http://opendatacommunities.org/id/metropolitan-district-council/leeds,Leeds City Council,31/07/2018,Communities and Environment,Waste Management,Supplies and Services,Recycling & Reuse Charges,234,04/07/2018,0718-00334,0.00,5584.45,R,Acumen Waste Services Ltd,No
Http://opendatacommunities.org/id/metropolitan-district-council/leeds,Leeds City Council,31/07/2018,Communities and Environment,Cleaner Neighbourhood Teams,Premises,Removal Of Workplace Waste,126,06/07/2018,0718-00335,0.00,110.00,R,Acumen Waste Services Ltd,No
Http://opendatacommunities.org/id/metropolitan-district-council/leeds,Leeds City Council,31/07/2018,Communities and Environment,Cleaner Neighbourhood Teams,Premises,Removal Of Workplace Waste,126,06/07/2018,0718-00336,0.00,110.00,R,Acumen Waste Services Ltd,No
Http://opendatacommunities.org/id/metropolitan-district-council/leeds,Leeds City Council,31/07/2018,Communities and Environment,Cleaner Neighbourhood Teams,Premises,Removal Of Workplace Waste,126,06/07/2018,0718-00337,0.00,110.00,R,Acumen Waste Services Ltd,No
Http://opendatacommunities.org/id/metropolitan-district-council/leeds,Leeds City Council,31/07/2018,Communities and Environment,Cleaner Neighbourhood Teams,Premises,Removal Of Workplace Waste,126,06/07/2018,0718-00338,0.00,110.00,R,Acumen Waste Services Ltd,No
Http://opendatacommunities.org/id/metropolitan-district-council/leeds,Leeds City Council,31/07/2018,Communities and Environment,Cleaner Neighbourhood Teams,Premises,Removal Of Workplace Waste,126,11/07/2018,0718-00339,0.00,110.00,R,Acumen Waste Services Ltd,No
Http://opendatacommunities.org/id/metropolitan-district-council/leeds,Leeds City Council,31/07/2018,Communities and Environment,Cleaner Neighbourhood Teams,Premises,Removal Of Workplace Waste,126,19/07/2018,0718-00340,0.00,110.00,R,Acumen Waste Services Ltd,No
Http://opendatacommunities.org/id/metropolitan-district-council/leeds,Leeds City Council,31/07/2018,Communities and Environment,Cleaner Neighbourhood Teams,Premises,Removal Of Workplace Waste,126,19/07/2018,0718-00341,0.00,110.00,R,Acumen Waste Services Ltd,No
Http://opendatacommunities.org/id/metropolitan-district-council/leeds,Leeds City Council,31/07/2018,Communities and Environment,Waste Management,Supplies and Services,Recycling & Reuse Charges,234,20/07/2018,0718-00342,0.00,8415.87,R,Acumen Waste Services Ltd,No
Http://opendatacommunities.org/id/metropolitan-district-council/leeds,Leeds City Council,31/07/2018,Communities and Environment,Waste Management,Supplies and Services,Recycling & Reuse Charges,234,20/07/2018,0718-00343,0.00,5738.55,R,Acumen Waste Services Ltd,No
Http://opendatacommunities.org/id/metropolitan-district-council/leeds,Leeds City Council,31/07/2018,Communities and Environment,Cleaner Neighbourhood Teams,Premises,Removal Of Workplace Waste,126,27/07/2018,0718-00344,0.00,110.00,R,Acumen Waste Services Ltd,No
Http://opendatacommunities.org/id/metropolitan-district-council/leeds,Leeds City Council,31/07/2018,Communities and Environment,Cleaner Neighbourhood Teams,Premises,Removal Of Workplace Waste,126,27/07/2018,0718-00345,0.00,110.00,R,Acumen Waste Services Ltd,No
Http://opendatacommunities.org/id/metropolitan-district-council/leeds,Leeds City Council,31/07/2018,Communities and Environment,Cleaner Neighbourhood Teams,Premises,Removal Of Workplace Waste,126,27/07/2018,0718-00346,0.00,110.00,R,Acumen Waste Services Ltd,No
Http://opendatacommunities.org/id/metropolitan-district-council/leeds,Leeds City Council,31/07/2018,Communities and Environment,Cleaner Neighbourhood Teams,Premises,Removal Of Workplace Waste,126,27/07/2018,0718-00347,0.00,110.00,R,Acumen Waste Services Ltd,No
Http://opendatacommunities.org/id/metropolitan-district-council/leeds,Leeds City Council,31/07/2018,Communities and Environment,Cleaner Neighbourhood Teams,Premises,Removal Of Workplace Waste,126,27/07/2018,0718-00348,0.00,110.00,R,Acumen Waste Services Ltd,No
Http://opendatacommunities.org/id/metropolitan-district-council/leeds,Leeds City Council,31/07/2018,Communities and Environment,Waste Management,Supplies and Services,Recycling & Reuse Charges,234,27/07/2018,0718-00349,0.00,6628.98,R,Acumen Waste Services Ltd,No
Http://opendatacommunities.org/id/metropolitan-district-council/leeds,Leeds City Council,31/07/2018,Communities and Environment,Cleaner Neighbourhood Teams,Premises,Removal Of Workplace Waste,126,31/07/2018,0718-00350,0.00,110.00,R,Acumen Waste Services Ltd,No
Http://opendatacommunities.org/id/metropolitan-district-council/leeds,Leeds City Council,31/07/2018,Communities and Environment,Cleaner Neighbourhood Teams,Premises,Removal Of Workplace Waste,126,31/07/2018,0718-00351,0.00,110.00,R,Acumen Waste Services Ltd,No
Http://opendatacommunities.org/id/metropolitan-district-council/leeds,Leeds City Council,31/07/2018,Communities and Environment,Cleaner Neighbourhood Teams,Premises,Removal Of Workplace Waste,126,31/07/2018,0718-00352,0.00,110.00,R,Acumen Waste Services Ltd,No
Http://opendatacommunities.org/id/metropolitan-district-council/leeds,Leeds City Council,31/07/2018,Communities and Environment,Cleaner Neighbourhood Teams,Premises,Removal Of Workplace Waste,126,31/07/2018,0718-00353,0.00,110.00,R,Acumen Waste Services Ltd,No
Http://opendatacommunities.org/id/metropolitan-district-council/leeds,Leeds City Council,31/07/2018,Communities and Environment,Cleaner Neighbourhood Teams,Premises,Removal Of Workplace Waste,126,31/07/2018,0718-00354,0.00,110.00,R,Acumen Waste Services Ltd,No
Http://opendatacommunities.org/id/metropolitan-district-council/leeds,Leeds City Council,31/07/2018,Communities and Environment,Cleaner Neighbourhood Teams,Premises,Removal Of Workplace Waste,126,31/07/2018,0718-00355,0.00,110.00,R,Acumen Waste Services Ltd,No
Http://opendatacommunities.org/id/metropolitan-district-council/leeds,Leeds City Council,31/07/2018,Communities and Environment,Cleaner Neighbourhood Teams,Premises,Removal Of Workplace Waste,126,31/07/2018,0718-00356,0.00,110.00,R,Acumen Waste Services Ltd,No
Http://opendatacommunities.org/id/metropolitan-district-council/leeds,Leeds City Council,31/07/2018,Communities and Environment,Cleaner Neighbourhood Teams,Premises,Removal Of Workplace Waste,126,31/07/2018,0718-00357,0.00,110.00,R,Acumen Waste Services Ltd,No
Http://opendatacommunities.org/id/metropolitan-district-council/leeds,Leeds City Council,31/07/2018,Communities and Environment,Cleaner Neighbourhood Teams,Premises,Removal Of Workplace Waste,126,31/07/2018,0718-00358,0.00,110.00,R,Acumen Waste Services Ltd,No
Http://opendatacommunities.org/id/metropolitan-district-council/leeds,Leeds City Council,31/07/2018,Communities and Environment,Parks and Countryside,Supplies and Services,Resaleable Materials,204,02/07/2018,0718-00359,0.00,-18.75,R,Acushnet Europe Limited,No
Http://opendatacommunities.org/id/metropolitan-district-council/leeds,Leeds City Council,31/07/2018,Communities and Environment,Parks and Countryside,Supplies and Services,Resaleable Materials,204,02/07/2018,0718-00360,0.00,120.00,R,Acushnet Europe Limited,No
Http://opendatacommunities.org/id/metropolitan-district-council/leeds,Leeds City Council,31/07/2018,Communities and Environment,Parks and Countryside,Supplies and Services,Resaleable Materials,204,02/07/2018,0718-00361,0.00,21.00,R,Acushnet Europe Limited,No
Http://opendatacommunities.org/id/metropolitan-district-council/leeds,Leeds City Council,31/07/2018,Communities and Environment,Parks and Countryside,Supplies and Services,Resaleable Materials,204,02/07/2018,0718-00362,0.00,125.00,R,Acushnet Europe Limited,No
Http://opendatacommunities.org/id/metropolitan-district-council/leeds,Leeds City Council,31/07/2018,Communities and Environment,Parks and Countryside,Supplies and Services,Resaleable Materials,204,02/07/2018,0718-00363,0.00,267.00,R,Acushnet Europe Limited,No
Http://opendatacommunities.org/id/metropolitan-district-council/leeds,Leeds City Council,31/07/2018,Communities and Environment,Parks and Countryside,Supplies and Services,Resaleable Materials,204,04/07/2018,0718-00364,0.00,92.50,R,Acushnet Europe Limited,No
Http://opendatacommunities.org/id/metropolitan-district-council/leeds,Leeds City Council,31/07/2018,Communities and Environment,Parks and Countryside,Supplies and Services,Resaleable Materials,204,18/07/2018,0718-00365,0.00,98.98,R,Acushnet Europe Limited,No
Http://opendatacommunities.org/id/metropolitan-district-council/leeds,Leeds City Council,31/07/2018,Resources and Housing,Shared Services,Supplies and Services,Operational Materials,205,12/07/2018,0718-00366,0.00,705.00,R,Ad3 Envelope Printers Limited,No
Http://opendatacommunities.org/id/metropolitan-district-council/leeds,Leeds City Council,31/07/2018,Resources and Housing,Shared Services,Supplies and Services,Operational Materials,205,27/07/2018,0718-00367,0.00,705.00,R,Ad3 Envelope Printers Limited,No
Http://opendatacommunities.org/id/metropolitan-district-council/leeds,Leeds City Council,31/07/2018,Resources and Housing,Shared Services,Supplies and Services,Other Hired And Contracted Services,265,27/07/2018,0718-00368,0.00,70.40,R,Ad3 Envelope Printers Limited,No
Http://opendatacommunities.org/id/metropolitan-district-council/leeds,Leeds City Council,31/07/2018,Resources and Housing,Democratic Services  ,Supplies and Services,Subsistence,256,05/06/2018,0718-00369,0.00,27.55,R,Adam & Eve,Yes
Http://opendatacommunities.org/id/metropolitan-district-council/leeds,Leeds City Council,31/07/2018,Communities and Environment,Car Parking Services,Income,Penalties  Fines & Car Parking Charges,934,18/07/2018,0718-00370,0.00,68.00,R,REDACTED PERSONAL DATA,No
Http://opendatacommunities.org/id/metropolitan-district-council/leeds,Leeds City Council,31/07/2018,Adults and Health,Services For Older People - 65 And Over,Third Party Payments,Nursing Home,570,25/07/2018,0718-00371,0.00,3897.12,R,Adbolton Hall,No
Http://opendatacommunities.org/id/metropolitan-district-council/leeds,Leeds City Council,31/07/2018,Children and Families,Social Care,Supplies and Services,Bought In Professional Services,277,02/07/2018,0718-00372,0.00,2194.50,R,Adcs,No
Http://opendatacommunities.org/id/metropolitan-district-council/leeds,Leeds City Council,31/07/2018,Children and Families,Social Care,Supplies and Services,Conference Meetings,253,06/07/2018,0718-00373,0.00,416.00,R,Adcs,No
Http://opendatacommunities.org/id/metropolitan-district-council/leeds,Leeds City Council,31/07/2018,Resources and Housing,Sustainable Energy & Climate Change,Capital,Other Costs,7,30/07/2018,0718-00374,0.00,1273.50,C,Addleshaw Goddard Llp,No
Http://opendatacommunities.org/id/metropolitan-district-council/leeds,Leeds City Council,31/07/2018,Resources and Housing,Technology  ,Employees,Agency Staff,8,08/06/2018,0718-00375,0.00,57615.66,R,Adecco Alfred Marks,Yes
Http://opendatacommunities.org/id/metropolitan-district-council/leeds,Leeds City Council,31/07/2018,Resources and Housing,Technology  ,Employees,Agency Staff,8,28/06/2018,0718-00376,0.00,44877.91,R,Adecco Alfred Marks,Yes
Http://opendatacommunities.org/id/metropolitan-district-council/leeds,Leeds City Council,31/07/2018,Children and Families,Social Care,Third Party Payments,Services Rendered By Voluntary Sector,505,11/07/2018,0718-00377,0.00,198.90,R,Adel Pre School,No
Http://opendatacommunities.org/id/metropolitan-district-council/leeds,Leeds City Council,31/07/2018,Children and Families,Social Care,Third Party Payments,Services Rendered By Voluntary Sector,505,13/07/2018,0718-00378,0.00,6696.30,R,Adel Pre School,No
Http://opendatacommunities.org/id/metropolitan-district-council/leeds,Leeds City Council,31/07/2018,Children and Families,Social Care,Third Party Payments,Services Rendered By Other Organisations,511,13/07/2018,0718-00379,0.00,1491.75,R,REDACTED PERSONAL DATA,No
Http://opendatacommunities.org/id/metropolitan-district-council/leeds,Leeds City Council,31/07/2018,Children and Families,Social Care,Third Party Payments,Services Rendered By Other Organisations,511,13/07/2018,0718-00380,0.00,198.90,R,REDACTED PERSONAL DATA,No
Http://opendatacommunities.org/id/metropolitan-district-council/leeds,Leeds City Council,31/07/2018,Children and Families,Social Care,Third Party Payments,Services Rendered By Other Organisations,511,13/07/2018,0718-00381,0.00,99.45,R,Adele Thompson,No
Http://opendatacommunities.org/id/metropolitan-district-council/leeds,Leeds City Council,31/07/2018,Adults and Health,Services For Older People - 65 And Over,Third Party Payments,Nursing Home,570,25/07/2018,0718-00382,0.00,1184.76,R,Aden House,No
Http://opendatacommunities.org/id/metropolitan-district-council/leeds,Leeds City Council,31/07/2018,Resources and Housing,Leeds Building Services,Supplies and Services,Operational Materials,205,05/07/2018,0718-00383,0.00,816.45,R,Adi Global,No
Http://opendatacommunities.org/id/metropolitan-district-council/leeds,Leeds City Council,31/07/2018,Resources and Housing,Leeds Building Services,Supplies and Services,Operational Materials,205,05/07/2018,0718-00384,0.00,33.58,R,Adi Global,No
Http://opendatacommunities.org/id/metropolitan-district-council/leeds,Leeds City Council,31/07/2018,Resources and Housing,Leeds Building Services,Supplies and Services,Operational Materials,205,05/07/2018,0718-00385,0.00,63.60,R,Adi Global,No
Http://opendatacommunities.org/id/metropolitan-district-council/leeds,Leeds City Council,31/07/2018,Resources and Housing,Leeds Building Services,Supplies and Services,Operational Materials,205,05/07/2018,0718-00386,0.00,369.84,R,Adi Global,No
Http://opendatacommunities.org/id/metropolitan-district-council/leeds,Leeds City Council,31/07/2018,Resources and Housing,Leeds Building Services,Supplies and Services,Operational Materials,205,05/07/2018,0718-00387,0.00,3401.04,R,Adi Global,No
Http://opendatacommunities.org/id/metropolitan-district-council/leeds,Leeds City Council,31/07/2018,Resources and Housing,Leeds Building Services,Supplies and Services,Operational Materials,205,05/07/2018,0718-00388,0.00,2485.91,R,Adi Global,No
Http://opendatacommunities.org/id/metropolitan-district-council/leeds,Leeds City Council,31/07/2018,Resources and Housing,Leeds Building Services,Supplies and Services,Operational Materials,205,06/07/2018,0718-00389,0.00,1168.80,R,Adi Global,No
Http://opendatacommunities.org/id/metropolitan-district-council/leeds,Leeds City Council,31/07/2018,Resources and Housing,Leeds Building Services,Supplies and Services,Operational Materials,205,13/07/2018,0718-00390,0.00,22.94,R,Adi Global,No
Http://opendatacommunities.org/id/metropolitan-district-council/leeds,Leeds City Council,31/07/2018,Resources and Housing,Leeds Building Services,Supplies and Services,Operational Materials,205,13/07/2018,0718-00391,0.00,22.94,R,Adi Global,No
Http://opendatacommunities.org/id/metropolitan-district-council/leeds,Leeds City Council,31/07/2018,Resources and Housing,Leeds Building Services,Supplies and Services,Operational Materials,205,13/07/2018,0718-00392,0.00,58.89,R,Adi Global,No
Http://opendatacommunities.org/id/metropolitan-district-council/leeds,Leeds City Council,31/07/2018,Resources and Housing,Leeds Building Services,Supplies and Services,Operational Materials,205,13/07/2018,0718-00393,0.00,51.99,R,Adi Global,No
Http://opendatacommunities.org/id/metropolitan-district-council/leeds,Leeds City Council,31/07/2018,Resources and Housing,Leeds Building Services,Supplies and Services,Operational Materials,205,18/07/2018,0718-00394,0.00,472.88,R,Adi Global,No
Http://opendatacommunities.org/id/metropolitan-district-council/leeds,Leeds City Council,31/07/2018,Resources and Housing,Leeds Building Services,Supplies and Services,Operational Materials,205,18/07/2018,0718-00395,0.00,472.88,R,Adi Global,No
Http://opendatacommunities.org/id/metropolitan-district-council/leeds,Leeds City Council,31/07/2018,Resources and Housing,Leeds Building Services,Supplies and Services,Operational Materials,205,18/07/2018,0718-00396,0.00,567.84,R,Adi Global,No
Http://opendatacommunities.org/id/metropolitan-district-council/leeds,Leeds City Council,31/07/2018,Resources and Housing,Leeds Building Services,Supplies and Services,Operational Materials,205,18/07/2018,0718-00397,0.00,2786.71,R,Adi Global,No
Http://opendatacommunities.org/id/metropolitan-district-council/leeds,Leeds City Council,31/07/2018,Resources and Housing,Leeds Building Services,Supplies and Services,Operational Materials,205,18/07/2018,0718-00398,0.00,1874.40,R,Adi Global,No
Http://opendatacommunities.org/id/metropolitan-district-council/leeds,Leeds City Council,31/07/2018,Resources and Housing,Leeds Building Services,Supplies and Services,Operational Materials,205,18/07/2018,0718-00399,0.00,1251.20,R,Adi Global,No
Http://opendatacommunities.org/id/metropolitan-district-council/leeds,Leeds City Council,31/07/2018,Resources and Housing,Leeds Building Services,Supplies and Services,Operational Materials,205,18/07/2018,0718-00400,0.00,408.41,R,Adi Global,No
Http://opendatacommunities.org/id/metropolitan-district-council/leeds,Leeds City Council,31/07/2018,Resources and Housing,Leeds Building Services,Supplies and Services,Operational Materials,205,18/07/2018,0718-00401,0.00,178.05,R,Adi Global,No
Http://opendatacommunities.org/id/metropolitan-district-council/leeds,Leeds City Council,31/07/2018,Resources and Housing,Leeds Building Services,Supplies and Services,Operational Materials,205,18/07/2018,0718-00402,0.00,178.05,R,Adi Global,No
Http://opendatacommunities.org/id/metropolitan-district-council/leeds,Leeds City Council,31/07/2018,Resources and Housing,Leeds Building Services,Supplies and Services,Operational Materials,205,18/07/2018,0718-00403,0.00,242.52,R,Adi Global,No
Http://opendatacommunities.org/id/metropolitan-district-council/leeds,Leeds City Council,31/07/2018,Resources and Housing,Leeds Building Services,Supplies and Services,Operational Materials,205,20/07/2018,0718-00404,0.00,23.37,R,Adi Global,No
Http://opendatacommunities.org/id/metropolitan-district-council/leeds,Leeds City Council,31/07/2018,Resources and Housing,Leeds Building Services,Supplies and Services,Operational Materials,205,20/07/2018,0718-00405,0.00,25.89,R,Adi Global,No
Http://opendatacommunities.org/id/metropolitan-district-council/leeds,Leeds City Council,31/07/2018,Resources and Housing,Leeds Building Services,Supplies and Services,Operational Materials,205,20/07/2018,0718-00406,0.00,25.89,R,Adi Global,No
Http://opendatacommunities.org/id/metropolitan-district-council/leeds,Leeds City Council,31/07/2018,Resources and Housing,Leeds Building Services,Supplies and Services,Operational Materials,205,20/07/2018,0718-00407,0.00,25.89,R,Adi Global,No
Http://opendatacommunities.org/id/metropolitan-district-council/leeds,Leeds City Council,31/07/2018,Resources and Housing,Leeds Building Services,Supplies and Services,Operational Materials,205,20/07/2018,0718-00408,0.00,25.89,R,Adi Global,No
Http://opendatacommunities.org/id/metropolitan-district-council/leeds,Leeds City Council,31/07/2018,Resources and Housing,Leeds Building Services,Supplies and Services,Operational Materials,205,20/07/2018,0718-00409,0.00,51.48,R,Adi Global,No
Http://opendatacommunities.org/id/metropolitan-district-council/leeds,Leeds City Council,31/07/2018,Resources and Housing,Leeds Building Services,Supplies and Services,Operational Materials,205,20/07/2018,0718-00410,0.00,2.58,R,Adi Global,No
Http://opendatacommunities.org/id/metropolitan-district-council/leeds,Leeds City Council,31/07/2018,Resources and Housing,Leeds Building Services,Supplies and Services,Operational Materials,205,20/07/2018,0718-00411,0.00,2.58,R,Adi Global,No
Http://opendatacommunities.org/id/metropolitan-district-council/leeds,Leeds City Council,31/07/2018,Resources and Housing,Leeds Building Services,Supplies and Services,Operational Materials,205,20/07/2018,0718-00412,0.00,2.58,R,Adi Global,No
Http://opendatacommunities.org/id/metropolitan-district-council/leeds,Leeds City Council,31/07/2018,Resources and Housing,Leeds Building Services,Supplies and Services,Operational Materials,205,30/07/2018,0718-00413,0.00,2337.60,R,Adi Global,No
Http://opendatacommunities.org/id/metropolitan-district-council/leeds,Leeds City Council,31/07/2018,Resources and Housing,Leeds Building Services,Supplies and Services,Operational Materials,205,30/07/2018,0718-00414,0.00,2337.60,R,Adi Global,No
Http://opendatacommunities.org/id/metropolitan-district-council/leeds,Leeds City Council,31/07/2018,Resources and Housing,Leeds Building Services,Supplies and Services,Operational Materials,205,30/07/2018,0718-00415,0.00,2337.60,R,Adi Global,No
Http://opendatacommunities.org/id/metropolitan-district-council/leeds,Leeds City Council,31/07/2018,Resources and Housing,Leeds Building Services,Supplies and Services,Operational Materials,205,30/07/2018,0718-00416,0.00,2337.60,R,Adi Global,No
Http://opendatacommunities.org/id/metropolitan-district-council/leeds,Leeds City Council,31/07/2018,Resources and Housing,Leeds Building Services,Supplies and Services,Operational Materials,205,31/07/2018,0718-00417,0.00,341.71,R,Adi Global,No
Http://opendatacommunities.org/id/metropolitan-district-council/leeds,Leeds City Council,31/07/2018,Communities and Environment,Community Safety  ,Supplies and Services,Other Hired And Contracted Services,265,15/06/2018,0718-00418,0.00,1198.00,R,Adi-Gardiner Ltd,Yes
Http://opendatacommunities.org/id/metropolitan-district-council/leeds,Leeds City Council,31/07/2018,Communities and Environment,Community Safety  ,Supplies and Services,Other Hired And Contracted Services,265,20/06/2018,0718-00419,0.00,53.64,R,Adi-Gardiner Ltd,Yes
Http://opendatacommunities.org/id/metropolitan-district-council/leeds,Leeds City Council,31/07/2018,Adults and Health,Services For Older People - 65 And Over,Third Party Payments,Home Care,568,13/07/2018,0718-00420,0.00,5596.00,R,Adjuvo (North) Support For Living Ltd,No
Http://opendatacommunities.org/id/metropolitan-district-council/leeds,Leeds City Council,31/07/2018,Adults and Health,Services For Older People - 65 And Over,Third Party Payments,Home Care,568,13/07/2018,0718-00421,0.00,11254.00,R,Adjuvo (North) Support For Living Ltd,No
Http://opendatacommunities.org/id/metropolitan-district-council/leeds,Leeds City Council,31/07/2018,Adults and Health,Services For Older People Under 65 P/Dis,Third Party Payments,Home Care,568,13/07/2018,0718-00422,0.00,357.00,R,Adjuvo (North) Support For Living Ltd,No
Http://opendatacommunities.org/id/metropolitan-district-council/leeds,Leeds City Council,31/07/2018,Adults and Health,Services For Older People - 65 And Over,Third Party Payments,Home Care,568,27/07/2018,0718-00423,0.00,6117.60,R,Adjuvo (North) Support For Living Ltd,No
Http://opendatacommunities.org/id/metropolitan-district-council/leeds,Leeds City Council,31/07/2018,Children and Families,Social Care,Third Party Payments,Independent Fostering Agencies,509,04/07/2018,0718-00424,0.00,2945.00,R,Adolescent And Childrens Trust,No
Http://opendatacommunities.org/id/metropolitan-district-council/leeds,Leeds City Council,31/07/2018,Children and Families,Social Care,Third Party Payments,Independent Fostering Agencies,509,04/07/2018,0718-00425,0.00,2945.00,R,Adolescent And Childrens Trust,No
Http://opendatacommunities.org/id/metropolitan-district-council/leeds,Leeds City Council,31/07/2018,Children and Families,Social Care,Third Party Payments,Independent Fostering Agencies,509,04/07/2018,0718-00426,0.00,2850.00,R,Adolescent And Childrens Trust,No
Http://opendatacommunities.org/id/metropolitan-district-council/leeds,Leeds City Council,31/07/2018,Children and Families,Social Care,Third Party Payments,Independent Fostering Agencies,509,04/07/2018,0718-00427,0.00,2945.00,R,Adolescent And Childrens Trust,No
Http://opendatacommunities.org/id/metropolitan-district-council/leeds,Leeds City Council,31/07/2018,Children and Families,Social Care,Third Party Payments,Independent Fostering Agencies,509,04/07/2018,0718-00428,0.00,3224.00,R,Adolescent And Childrens Trust,No
Http://opendatacommunities.org/id/metropolitan-district-council/leeds,Leeds City Council,31/07/2018,Children and Families,Social Care,Third Party Payments,Placement Support,550,02/07/2018,0718-00429,0.00,142.86,R,REDACTED PERSONAL DATA,No
Http://opendatacommunities.org/id/metropolitan-district-council/leeds,Leeds City Council,31/07/2018,Children and Families,Social Care,Third Party Payments,Placement Support,550,06/07/2018,0718-00430,0.00,142.86,R,REDACTED PERSONAL DATA,No
Http://opendatacommunities.org/id/metropolitan-district-council/leeds,Leeds City Council,31/07/2018,Children and Families,Social Care,Third Party Payments,Placement Support,550,10/07/2018,0718-00431,0.00,157.14,R,REDACTED PERSONAL DATA,No
Http://opendatacommunities.org/id/metropolitan-district-council/leeds,Leeds City Council,31/07/2018,Children and Families,Social Care,Third Party Payments,Placement Support,550,11/07/2018,0718-00432,0.00,118.84,R,REDACTED PERSONAL DATA,No
Http://opendatacommunities.org/id/metropolitan-district-council/leeds,Leeds City Council,31/07/2018,Children and Families,Social Care,Third Party Payments,Placement Support,550,13/07/2018,0718-00433,0.00,142.86,R,REDACTED PERSONAL DATA,No
Http://opendatacommunities.org/id/metropolitan-district-council/leeds,Leeds City Council,31/07/2018,Children and Families,Social Care,Third Party Payments,Placement Support,550,20/07/2018,0718-00434,0.00,142.86,R,REDACTED PERSONAL DATA,No
Http://opendatacommunities.org/id/metropolitan-district-council/leeds,Leeds City Council,31/07/2018,Children and Families,Social Care,Third Party Payments,Placement Support,550,27/07/2018,0718-00435,0.00,142.86,R,REDACTED PERSONAL DATA,No
Http://opendatacommunities.org/id/metropolitan-district-council/leeds,Leeds City Council as Accountable Body,31/07/2018,Social Services Pooled Budgets,Jcs For People With Learning Disabilitie,Third Party Payments,Home Care,568,26/07/2018,0718-00436,0.00,2609.36,R,Adrian House,No
Http://opendatacommunities.org/id/metropolitan-district-council/leeds,Leeds City Council,31/07/2018,Strategic Landlord,Housing Management,Premises,Premises Security Services,162,02/07/2018,0718-00437,0.00,149.60,R,Adt Fire And Security Plc,No
Http://opendatacommunities.org/id/metropolitan-district-council/leeds,Leeds City Council,31/07/2018,Strategic Landlord,Housing Management,Premises,Premises Security Services,162,03/07/2018,0718-00438,0.00,157.00,R,Adt Fire And Security Plc,No
Http://opendatacommunities.org/id/metropolitan-district-council/leeds,Leeds City Council,31/07/2018,Resources and Housing,Shared Services,Supplies and Services,Licences,266,24/07/2018,0718-00439,0.00,695.54,R,Adt Fire And Security Plc,No
Http://opendatacommunities.org/id/metropolitan-district-council/leeds,Leeds City Council,31/07/2018,City Development,Libraries  Arts & Heritage,Supplies and Services,External Audit Fees,261,05/07/2018,0718-00440,0.00,90.00,R,Advance Stocks Ltd,No
Http://opendatacommunities.org/id/metropolitan-district-council/leeds,Leeds City Council,31/07/2018,City Development,Libraries  Arts & Heritage,Supplies and Services,External Audit Fees,261,06/07/2018,0718-00441,0.00,85.00,R,Advance Stocks Ltd,No
Http://opendatacommunities.org/id/metropolitan-district-council/leeds,Leeds City Council,31/07/2018,City Development,Libraries  Arts & Heritage,Supplies and Services,External Audit Fees,261,06/07/2018,0718-00442,0.00,90.00,R,Advance Stocks Ltd,No
Http://opendatacommunities.org/id/metropolitan-district-council/leeds,Leeds City Council,31/07/2018,City Development,Recreation,Supplies and Services,External Audit Fees,261,11/07/2018,0718-00443,0.00,135.00,R,Advance Stocks Ltd,No
Http://opendatacommunities.org/id/metropolitan-district-council/leeds,Leeds City Council,31/07/2018,City Development,Recreation,Supplies and Services,External Audit Fees,261,11/07/2018,0718-00444,0.00,85.00,R,Advance Stocks Ltd,No
Http://opendatacommunities.org/id/metropolitan-district-council/leeds,Leeds City Council,31/07/2018,Children and Families,Social Care,Support Services,Legal Disbursements,411,04/07/2018,0718-00445,0.00,412.03,R,Advanced Child Care Assessments Ltd,No
Http://opendatacommunities.org/id/metropolitan-district-council/leeds,Leeds City Council,31/07/2018,Resources and Housing,Leeds Building Services,Supplies and Services,Operational Furniture And Equipment,203,05/07/2018,0718-00446,0.00,139.00,R,Advanced Labelling Limited,No
Http://opendatacommunities.org/id/metropolitan-district-council/leeds,Leeds City Council,31/07/2018,City Development,Libraries  Arts & Heritage  ,Supplies and Services,Operational Materials,205,13/06/2018,0718-00447,0.00,107.50,R,Advancedscape Limi,Yes
Http://opendatacommunities.org/id/metropolitan-district-council/leeds,Leeds City Council,31/07/2018,City Development,Recreation,Supplies and Services,Licences,266,25/07/2018,0718-00448,0.00,715.00,R,Adventure Activities Licensing Authority,No
Http://opendatacommunities.org/id/metropolitan-district-council/leeds,Leeds City Council as Accountable Body,31/07/2018,Social Services Pooled Budgets,Jcs For People With Learning Disabilitie,Third Party Payments,Residential,580,25/07/2018,0718-00449,0.00,17782.08,R,Advitam Ltd,No
Http://opendatacommunities.org/id/metropolitan-district-council/leeds,Leeds City Council,31/07/2018,Adults and Health,Services For Older People - 65 And Over,Third Party Payments,Payments To Voluntary Organisations,561,19/07/2018,0718-00450,0.00,103916.67,R,Advonet,No
Http://opendatacommunities.org/id/metropolitan-district-council/leeds,Leeds City Council,31/07/2018,City Development,Highways,Capital,Other Costs,7,24/07/2018,0718-00451,0.00,22782.06,C,Aecom Limited,No
Http://opendatacommunities.org/id/metropolitan-district-council/leeds,Leeds City Council,31/07/2018,Adults and Health,Assessment And Care Management,Third Party Payments,Home Care,568,04/07/2018,0718-00452,0.00,439.45,R,Affinity Trust,No
Http://opendatacommunities.org/id/metropolitan-district-council/leeds,Leeds City Council as Accountable Body,31/07/2018,Social Services Pooled Budgets,Jcs For People With Learning Disabilitie,Third Party Payments,Day Centre,564,04/07/2018,0718-00453,0.00,670.40,R,Affinity Trust,No
Http://opendatacommunities.org/id/metropolitan-district-council/leeds,Leeds City Council,31/07/2018,Adults and Health,Services For Older People Under 65 P/Dis,Third Party Payments,Home Care,568,18/07/2018,0718-00454,0.00,605.52,R,Affinity Trust,No
Http://opendatacommunities.org/id/metropolitan-district-council/leeds,Leeds City Council,31/07/2018,Adults and Health,Services For Older People Under 65 P/Dis,Third Party Payments,Home Care,568,18/07/2018,0718-00455,0.00,100.92,R,Affinity Trust,No
Http://opendatacommunities.org/id/metropolitan-district-council/leeds,Leeds City Council,31/07/2018,Adults and Health,Services For Older People Under 65 P/Dis,Third Party Payments,Home Care,568,18/07/2018,0718-00456,0.00,239.70,R,Affinity Trust,No
Http://opendatacommunities.org/id/metropolitan-district-council/leeds,Leeds City Council as Accountable Body,31/07/2018,Social Services Pooled Budgets,Jcs For People With Learning Disabilitie,Third Party Payments,Home Care,568,24/07/2018,0718-00457,0.00,399.50,R,Affinity Trust,No
Http://opendatacommunities.org/id/metropolitan-district-council/leeds,Leeds City Council,31/07/2018,Adults and Health,Services For Older People - 65 And Over,Third Party Payments,Home Care,568,25/07/2018,0718-00458,0.00,479.40,R,Affinity Trust,No
Http://opendatacommunities.org/id/metropolitan-district-council/leeds,Leeds City Council as Accountable Body,31/07/2018,Social Services Pooled Budgets,Jcs For People With Learning Disabilitie,Third Party Payments,Home Care,568,25/07/2018,0718-00459,0.00,306.48,R,Affinity Trust,No
Http://opendatacommunities.org/id/metropolitan-district-council/leeds,Leeds City Council as Accountable Body,31/07/2018,Social Services Pooled Budgets,Jcs For People With Learning Disabilitie,Third Party Payments,Day Centre,564,26/07/2018,0718-00460,0.00,364.56,R,Affinity Trust,No
Http://opendatacommunities.org/id/metropolitan-district-council/leeds,Leeds City Council as Accountable Body,31/07/2018,Social Services Pooled Budgets,Jcs For People With Learning Disabilitie,Third Party Payments,Home Care,568,26/07/2018,0718-00461,0.00,1086.64,R,Affinity Trust,No
Http://opendatacommunities.org/id/metropolitan-district-council/leeds,Leeds City Council as Accountable Body,31/07/2018,Social Services Pooled Budgets,Jcs For People With Learning Disabilitie,Third Party Payments,Home Care,568,26/07/2018,0718-00462,0.00,2812.48,R,Affinity Trust,No
Http://opendatacommunities.org/id/metropolitan-district-council/leeds,Leeds City Council as Accountable Body,31/07/2018,Social Services Pooled Budgets,Jcs For People With Learning Disabilitie,Third Party Payments,Home Care,568,26/07/2018,0718-00463,0.00,941.92,R,Affinity Trust,No
Http://opendatacommunities.org/id/metropolitan-district-council/leeds,Leeds City Council as Accountable Body,31/07/2018,Social Services Pooled Budgets,Jcs For People With Learning Disabilitie,Third Party Payments,Home Care,568,26/07/2018,0718-00464,0.00,958.80,R,Affinity Trust,No
Http://opendatacommunities.org/id/metropolitan-district-council/leeds,Leeds City Council as Accountable Body,31/07/2018,Social Services Pooled Budgets,Jcs For People With Learning Disabilitie,Third Party Payments,Home Care,568,26/07/2018,0718-00465,0.00,415.48,R,Affinity Trust,No
Http://opendatacommunities.org/id/metropolitan-district-council/leeds,Leeds City Council as Accountable Body,31/07/2018,Social Services Pooled Budgets,Jcs For People With Learning Disabilitie,Third Party Payments,Home Care,568,26/07/2018,0718-00466,0.00,383.52,R,Affinity Trust,No
Http://opendatacommunities.org/id/metropolitan-district-council/leeds,Leeds City Council as Accountable Body,31/07/2018,Social Services Pooled Budgets,Jcs For People With Learning Disabilitie,Third Party Payments,Home Care,568,26/07/2018,0718-00467,0.00,255.68,R,Affinity Trust,No
Http://opendatacommunities.org/id/metropolitan-district-council/leeds,Leeds City Council as Accountable Body,31/07/2018,Social Services Pooled Budgets,Jcs For People With Learning Disabilitie,Third Party Payments,Home Care,568,26/07/2018,0718-00468,0.00,535.33,R,Affinity Trust,No
Http://opendatacommunities.org/id/metropolitan-district-council/leeds,Leeds City Council as Accountable Body,31/07/2018,Social Services Pooled Budgets,Jcs For People With Learning Disabilitie,Third Party Payments,Home Care,568,26/07/2018,0718-00469,0.00,255.68,R,Affinity Trust,No
Http://opendatacommunities.org/id/metropolitan-district-council/leeds,Leeds City Council as Accountable Body,31/07/2018,Social Services Pooled Budgets,Jcs For People With Learning Disabilitie,Third Party Payments,Home Care,568,26/07/2018,0718-00470,0.00,982.77,R,Affinity Trust,No
Http://opendatacommunities.org/id/metropolitan-district-council/leeds,Leeds City Council as Accountable Body,31/07/2018,Social Services Pooled Budgets,Jcs For People With Learning Disabilitie,Third Party Payments,Home Care,568,26/07/2018,0718-00471,0.00,1286.39,R,Affinity Trust,No
Http://opendatacommunities.org/id/metropolitan-district-council/leeds,Leeds City Council as Accountable Body,31/07/2018,Social Services Pooled Budgets,Jcs For People With Learning Disabilitie,Third Party Payments,Home Care,568,26/07/2018,0718-00472,0.00,287.64,R,Affinity Trust,No
Http://opendatacommunities.org/id/metropolitan-district-council/leeds,Leeds City Council as Accountable Body,31/07/2018,Social Services Pooled Budgets,Jcs For People With Learning Disabilitie,Third Party Payments,Home Care,568,26/07/2018,0718-00473,0.00,1518.00,R,Affinity Trust,No
Http://opendatacommunities.org/id/metropolitan-district-council/leeds,Leeds City Council as Accountable Body,31/07/2018,Social Services Pooled Budgets,Jcs For People With Learning Disabilitie,Third Party Payments,Home Care,568,26/07/2018,0718-00474,0.00,1143.76,R,Affinity Trust,No
Http://opendatacommunities.org/id/metropolitan-district-council/leeds,Leeds City Council as Accountable Body,31/07/2018,Social Services Pooled Budgets,Jcs For People With Learning Disabilitie,Third Party Payments,Home Care,568,26/07/2018,0718-00475,0.00,2780.52,R,Affinity Trust,No
Http://opendatacommunities.org/id/metropolitan-district-council/leeds,Leeds City Council as Accountable Body,31/07/2018,Social Services Pooled Budgets,Jcs For People With Learning Disabilitie,Third Party Payments,Home Care,568,26/07/2018,0718-00476,0.00,143.82,R,Affinity Trust,No
Http://opendatacommunities.org/id/metropolitan-district-council/leeds,Leeds City Council as Accountable Body,31/07/2018,Social Services Pooled Budgets,Jcs For People With Learning Disabilitie,Third Party Payments,Home Care,568,26/07/2018,0718-00477,0.00,623.22,R,Affinity Trust,No
Http://opendatacommunities.org/id/metropolitan-district-council/leeds,Leeds City Council as Accountable Body,31/07/2018,Social Services Pooled Budgets,Jcs For People With Learning Disabilitie,Third Party Payments,Home Care,568,26/07/2018,0718-00478,0.00,306.00,R,Affinity Trust,No
Http://opendatacommunities.org/id/metropolitan-district-council/leeds,Leeds City Council as Accountable Body,31/07/2018,Social Services Pooled Budgets,Jcs For People With Learning Disabilitie,Third Party Payments,Sheltered Accommodation,569,25/07/2018,0718-00479,0.00,146815.64,R,Affinity Trust North Divisional Office,No
Http://opendatacommunities.org/id/metropolitan-district-council/leeds,Leeds City Council,31/07/2018,Communities and Environment,Parks and Countryside,Transport,Hire Of Movable Plant & Machinery,315,09/07/2018,0718-00480,0.00,950.00,R,Afi-Uplift Limited,No
Http://opendatacommunities.org/id/metropolitan-district-council/leeds,Leeds City Council,31/07/2018,Communities and Environment,Parks and Countryside,Transport,Hire Of Movable Plant & Machinery,315,09/07/2018,0718-00481,0.00,950.00,R,Afi-Uplift Limited,No
Http://opendatacommunities.org/id/metropolitan-district-council/leeds,Leeds City Council,31/07/2018,City Development,Employment & Skills,Supplies and Services,College Contracts,276,20/07/2018,0718-00482,0.00,8100.00,R,Age Uk Leeds,No
Http://opendatacommunities.org/id/metropolitan-district-council/leeds,Leeds City Council,31/07/2018,City Development,Highways,Capital,Construction,3,31/07/2018,0718-00483,0.00,504420.63,C,Aggregate Industries Uk Ltd,No
Http://opendatacommunities.org/id/metropolitan-district-council/leeds,Leeds City Council,31/07/2018,Resources and Housing,Finance,Support Services,Legal Disbursements,411,18/07/2018,0718-00484,0.00,296.00,R,Ahern Rudden Quigley Solicitors,No
Http://opendatacommunities.org/id/metropolitan-district-council/leeds,Leeds City Council,31/07/2018,Communities and Environment,Parks And Countryside  ,Supplies and Services,Other Hired And Contracted Services,265,06/06/2018,0718-00485,0.00,25.83,R,Ahvla,Yes
Http://opendatacommunities.org/id/metropolitan-district-council/leeds,Leeds City Council as Accountable Body,31/07/2018,Social Services Pooled Budgets,Leeds Community Equip Store Pooled Budgt,Supplies and Services,Other Equipment,203,06/07/2018,0718-00486,0.00,2284.90,R,Aidapt Bathrooms Ltd,No
Http://opendatacommunities.org/id/metropolitan-district-council/leeds,Leeds City Council as Accountable Body,31/07/2018,Social Services Pooled Budgets,Leeds Community Equip Store Pooled Budgt,Supplies and Services,Other Equipment,203,06/07/2018,0718-00487,0.00,228.00,R,Aidapt Bathrooms Ltd,No
Http://opendatacommunities.org/id/metropolitan-district-council/leeds,Leeds City Council as Accountable Body,31/07/2018,Social Services Pooled Budgets,Leeds Community Equip Store Pooled Budgt,Supplies and Services,Other Equipment,203,06/07/2018,0718-00488,0.00,214.00,R,Aidapt Bathrooms Ltd,No
Http://opendatacommunities.org/id/metropolitan-district-council/leeds,Leeds City Council as Accountable Body,31/07/2018,Social Services Pooled Budgets,Leeds Community Equip Store Pooled Budgt,Supplies and Services,Other Equipment,203,13/07/2018,0718-00489,0.00,549.70,R,Aidapt Bathrooms Ltd,No
Http://opendatacommunities.org/id/metropolitan-district-council/leeds,Leeds City Council as Accountable Body,31/07/2018,Social Services Pooled Budgets,Leeds Community Equip Store Pooled Budgt,Supplies and Services,Other Equipment,203,13/07/2018,0718-00490,0.00,716.70,R,Aidapt Bathrooms Ltd,No
Http://opendatacommunities.org/id/metropolitan-district-council/leeds,Leeds City Council as Accountable Body,31/07/2018,Social Services Pooled Budgets,Leeds Community Equip Store Pooled Budgt,Supplies and Services,Other Equipment,203,13/07/2018,0718-00491,0.00,1024.70,R,Aidapt Bathrooms Ltd,No
Http://opendatacommunities.org/id/metropolitan-district-council/leeds,Leeds City Council as Accountable Body,31/07/2018,Social Services Pooled Budgets,Leeds Community Equip Store Pooled Budgt,Supplies and Services,Other Equipment,203,13/07/2018,0718-00492,0.00,55.00,R,Aidapt Bathrooms Ltd,No
Http://opendatacommunities.org/id/metropolitan-district-council/leeds,Leeds City Council as Accountable Body,31/07/2018,Social Services Pooled Budgets,Leeds Community Equip Store Pooled Budgt,Supplies and Services,Other Equipment,203,13/07/2018,0718-00493,0.00,1274.50,R,Aidapt Bathrooms Ltd,No
Http://opendatacommunities.org/id/metropolitan-district-council/leeds,Leeds City Council as Accountable Body,31/07/2018,Social Services Pooled Budgets,Leeds Community Equip Store Pooled Budgt,Supplies and Services,Other Equipment,203,27/07/2018,0718-00494,0.00,665.60,R,Aidapt Bathrooms Ltd,No
Http://opendatacommunities.org/id/metropolitan-district-council/leeds,Leeds City Council as Accountable Body,31/07/2018,Social Services Pooled Budgets,Leeds Community Equip Store Pooled Budgt,Supplies and Services,Other Equipment,203,27/07/2018,0718-00495,0.00,79.80,R,Aidapt Bathrooms Ltd,No
Http://opendatacommunities.org/id/metropolitan-district-council/leeds,Leeds City Council as Accountable Body,31/07/2018,Social Services Pooled Budgets,Leeds Community Equip Store Pooled Budgt,Supplies and Services,Other Equipment,203,27/07/2018,0718-00496,0.00,302.00,R,Aidapt Bathrooms Ltd,No
Http://opendatacommunities.org/id/metropolitan-district-council/leeds,Leeds City Council,31/07/2018,Resources and Housing,Leeds Building Services,Supplies and Services,Operational Materials,205,17/07/2018,0718-00497,0.00,67.37,R,Air Conditioning Accessories,No
Http://opendatacommunities.org/id/metropolitan-district-council/leeds,Leeds City Council,31/07/2018,Resources and Housing,Leeds Building Services,Supplies and Services,Operational Materials,205,17/07/2018,0718-00498,0.00,200.00,R,Air Conditioning Accessories,No
Http://opendatacommunities.org/id/metropolitan-district-council/leeds,Leeds City Council,31/07/2018,Resources and Housing,Leeds Building Services,Supplies and Services,Operational Materials,205,17/07/2018,0718-00499,0.00,102.56,R,Air Conditioning Accessories,No
Http://opendatacommunities.org/id/metropolitan-district-council/leeds,Leeds City Council,31/07/2018,Resources and Housing,Leeds Building Services,Supplies and Services,Operational Materials,205,19/07/2018,0718-00500,0.00,18.20,R,Air Conditioning Accessories,No
Http://opendatacommunities.org/id/metropolitan-district-council/leeds,Leeds City Council,31/07/2018,Resources and Housing,Leeds Building Services,Supplies and Services,Operational Materials,205,19/07/2018,0718-00501,0.00,24.67,R,Air Conditioning Accessories,No
Http://opendatacommunities.org/id/metropolitan-district-council/leeds,Leeds City Council,31/07/2018,Resources and Housing,Leeds Building Services,Supplies and Services,Operational Materials,205,27/07/2018,0718-00502,0.00,150.57,R,Air Conditioning Accessories,No
Http://opendatacommunities.org/id/metropolitan-district-council/leeds,Leeds City Council,31/07/2018,Resources and Housing,Leeds Building Services,Supplies and Services,Operational Materials,205,27/07/2018,0718-00503,0.00,20.86,R,Air Conditioning Accessories,No
Http://opendatacommunities.org/id/metropolitan-district-council/leeds,Leeds City Council,31/07/2018,Resources and Housing,Leeds Building Services,Supplies and Services,Operational Materials,205,27/07/2018,0718-00504,0.00,66.00,R,Air Conditioning Accessories,No
Http://opendatacommunities.org/id/metropolitan-district-council/leeds,Leeds City Council,31/07/2018,Resources and Housing,Leeds Building Services,Supplies and Services,Operational Materials,205,31/07/2018,0718-00505,0.00,17.28,R,Air Conditioning Accessories,No
Http://opendatacommunities.org/id/metropolitan-district-council/leeds,Leeds City Council,31/07/2018,Resources and Housing,Leeds Building Services,Supplies and Services,Operational Materials,205,31/07/2018,0718-00506,0.00,59.49,R,Air Conditioning Accessories,No
Http://opendatacommunities.org/id/metropolitan-district-council/leeds,Leeds City Council,31/07/2018,Communities and Environment,Environmental Health,Supplies and Services,Other Hired And Contracted Services,265,02/07/2018,0718-00507,0.00,9.86,R,Air Liquide Uk,No
Http://opendatacommunities.org/id/metropolitan-district-council/leeds,Leeds City Council,31/07/2018,Communities and Environment,Environmental Health,Supplies and Services,Other Hired And Contracted Services,265,02/07/2018,0718-00508,0.00,15.03,R,Air Liquide Uk,No
Http://opendatacommunities.org/id/metropolitan-district-council/leeds,Leeds City Council,31/07/2018,Resources and Housing,Leeds Building Services,Supplies and Services,Operational Materials,205,05/07/2018,0718-00509,0.00,189.71,R,Air Liquide Uk,No
Http://opendatacommunities.org/id/metropolitan-district-council/leeds,Leeds City Council,31/07/2018,Communities and Environment,Environmental Health,Supplies and Services,Other Hired And Contracted Services,265,13/07/2018,0718-00510,0.00,9.86,R,Air Liquide Uk,No
Http://opendatacommunities.org/id/metropolitan-district-council/leeds,Leeds City Council,31/07/2018,Communities and Environment,Environmental Health,Supplies and Services,Other Hired And Contracted Services,265,13/07/2018,0718-00511,0.00,69.02,R,Air Liquide Uk,No
Http://opendatacommunities.org/id/metropolitan-district-council/leeds,Leeds City Council,31/07/2018,Communities and Environment,Environmental Health,Supplies and Services,Other Hired And Contracted Services,265,27/07/2018,0718-00512,0.00,508.36,R,Air Liquide Uk,No
Http://opendatacommunities.org/id/metropolitan-district-council/leeds,Leeds City Council,31/07/2018,Resources and Housing,Leeds Building Services,Supplies and Services,Operational Materials,205,27/07/2018,0718-00513,0.00,189.71,R,Air Liquide Uk,No
Http://opendatacommunities.org/id/metropolitan-district-council/leeds,Leeds City Council,31/07/2018,Communities and Environment,Parks and Countryside,Supplies and Services,Operational Furniture And Equipment,203,06/07/2018,0718-00514,0.00,528.20,R,Air Solutions (Leeds) Ltd,No
Http://opendatacommunities.org/id/metropolitan-district-council/leeds,Leeds City Council,31/07/2018,Adults and Health,Services For Older People - 65 And Over,Third Party Payments,Residential Care Dementia,571,25/07/2018,0718-00515,0.00,-2322.57,R,Aire View Residential Home,No
Http://opendatacommunities.org/id/metropolitan-district-council/leeds,Leeds City Council,31/07/2018,Adults and Health,Services For Older People - 65 And Over,Third Party Payments,Residential,580,25/07/2018,0718-00516,0.00,7505.69,R,Aire View Residential Home,No
Http://opendatacommunities.org/id/metropolitan-district-council/leeds,Leeds City Council,31/07/2018,Adults and Health,Services For Older People - 65 And Over,Third Party Payments,Residential Care Dementia,571,25/07/2018,0718-00517,0.00,4185.48,R,Airedale Care Home,No
Http://opendatacommunities.org/id/metropolitan-district-council/leeds,Leeds City Council,31/07/2018,Adults and Health,Services For Older People - 65 And Over,Third Party Payments,Residential,580,25/07/2018,0718-00518,0.00,24993.68,R,Airedale Care Home,No
Http://opendatacommunities.org/id/metropolitan-district-council/leeds,Leeds City Council,31/07/2018,Children and Families,Social Care,Supplies and Services,Operational Furniture And Equipment,203,03/07/2018,0718-00519,0.00,1345.00,R,Airedale Catering Equipment Ltd,No
Http://opendatacommunities.org/id/metropolitan-district-council/leeds,Leeds City Council,31/07/2018,Resources and Housing,Commercial Services,Supplies and Services,Other Hired And Contracted Services,265,04/07/2018,0718-00520,0.00,546.00,R,Airedale Catering Equipment Ltd,No
Http://opendatacommunities.org/id/metropolitan-district-council/leeds,Leeds City Council,31/07/2018,Resources and Housing,Commercial Services,Supplies and Services,Operational Furniture And Equipment,203,11/07/2018,0718-00521,0.00,556.00,R,Airedale Catering Equipment Ltd,No
Http://opendatacommunities.org/id/metropolitan-district-council/leeds,Leeds City Council,31/07/2018,Resources and Housing,Commercial Services,Supplies and Services,Operational Furniture And Equipment,203,13/07/2018,0718-00522,0.00,1330.00,R,Airedale Catering Equipment Ltd,No
Http://opendatacommunities.org/id/metropolitan-district-council/leeds,Leeds City Council,31/07/2018,Resources and Housing,Commercial Services,Supplies and Services,Operational Furniture And Equipment,203,25/07/2018,0718-00523,0.00,1390.00,R,Airedale Catering Equipment Ltd,No
Http://opendatacommunities.org/id/metropolitan-district-council/leeds,Leeds City Council,31/07/2018,Resources and Housing,Commercial Services,Supplies and Services,Operational Furniture And Equipment,203,25/07/2018,0718-00524,0.00,2560.00,R,Airedale Catering Equipment Ltd,No
Http://opendatacommunities.org/id/metropolitan-district-council/leeds,Leeds City Council,31/07/2018,Children and Families,Social Care,Supplies and Services,Operational Furniture And Equipment,203,27/07/2018,0718-00525,0.00,3996.00,R,Airedale Catering Equipment Ltd,No
Http://opendatacommunities.org/id/metropolitan-district-council/leeds,Leeds City Council,31/07/2018,Resources and Housing,Commercial Services,Supplies and Services,Other Hired And Contracted Services,265,19/07/2018,0718-00526,0.00,303.75,R,Air-Weigh Europe Limited,No
Http://opendatacommunities.org/id/metropolitan-district-council/leeds,Leeds City Council as Accountable Body,31/07/2018,Social Services Pooled Budgets,Jcs For People With Learning Disabilitie,Third Party Payments,Residential,580,25/07/2018,0718-00527,0.00,6173.24,R,Aitch Care Homes,No
Http://opendatacommunities.org/id/metropolitan-district-council/leeds,Leeds City Council,31/07/2018,Resources and Housing,Commercial Services,Supplies and Services,Other Hired And Contracted Services,265,23/07/2018,0718-00528,0.00,675.00,R,REDACTED PERSONAL DATA,No
Http://opendatacommunities.org/id/metropolitan-district-council/leeds,Leeds City Council,31/07/2018,Adults and Health,Services For Older People Under 65 P/Dis,Third Party Payments,Home Care,568,09/07/2018,0718-00529,0.00,16.59,R,Aj Community Care Ltd,No
Http://opendatacommunities.org/id/metropolitan-district-council/leeds,Leeds City Council,31/07/2018,Adults and Health,Services For Older People - 65 And Over,Third Party Payments,Home Care,568,27/07/2018,0718-00530,0.00,20076.67,R,Aj Community Care Ltd,No
Http://opendatacommunities.org/id/metropolitan-district-council/leeds,Leeds City Council,31/07/2018,Adults and Health,Services For Older People - 65 And Over,Third Party Payments,Home Care,568,27/07/2018,0718-00531,0.00,6121.71,R,Aj Community Care Ltd,No
Http://opendatacommunities.org/id/metropolitan-district-council/leeds,Leeds City Council,31/07/2018,Adults and Health,Services For Older People Under 65 P/Dis,Third Party Payments,Home Care,568,27/07/2018,0718-00532,0.00,5811.66,R,Aj Community Care Ltd,No
Http://opendatacommunities.org/id/metropolitan-district-council/leeds,Leeds City Council,31/07/2018,Adults and Health,Services For Older People Under 65 P/Dis,Third Party Payments,Home Care,568,27/07/2018,0718-00533,0.00,4313.40,R,Aj Community Care Ltd,No
Http://opendatacommunities.org/id/metropolitan-district-council/leeds,Leeds City Council,31/07/2018,Resources and Housing,Leeds Building Services,Supplies and Services,Stores - Central And Other Depots,005,05/07/2018,0718-00534,0.00,515.80,R,Ajm Fixings & Power Tools Ltd,No
Http://opendatacommunities.org/id/metropolitan-district-council/leeds,Leeds City Council,31/07/2018,Resources and Housing,Leeds Building Services,Supplies and Services,Operational Furniture And Equipment,203,05/07/2018,0718-00535,0.00,4492.96,R,Ajm Fixings & Power Tools Ltd,No
Http://opendatacommunities.org/id/metropolitan-district-council/leeds,Leeds City Council,31/07/2018,Resources and Housing,Leeds Building Services,Supplies and Services,Operational Materials,205,05/07/2018,0718-00536,0.00,158.40,R,Ajm Fixings & Power Tools Ltd,No
Http://opendatacommunities.org/id/metropolitan-district-council/leeds,Leeds City Council,31/07/2018,Resources and Housing,Leeds Building Services,Supplies and Services,Operational Furniture And Equipment,203,13/07/2018,0718-00537,0.00,138.20,R,Ajm Fixings & Power Tools Ltd,No
Http://opendatacommunities.org/id/metropolitan-district-council/leeds,Leeds City Council,31/07/2018,Resources and Housing,Leeds Building Services,Supplies and Services,Operational Furniture And Equipment,203,17/07/2018,0718-00538,0.00,704.00,R,Ajm Fixings & Power Tools Ltd,No
Http://opendatacommunities.org/id/metropolitan-district-council/leeds,Leeds City Council,31/07/2018,Resources and Housing,Leeds Building Services,Supplies and Services,Operational Furniture And Equipment,203,17/07/2018,0718-00539,0.00,223.56,R,Ajm Fixings & Power Tools Ltd,No
Http://opendatacommunities.org/id/metropolitan-district-council/leeds,Leeds City Council,31/07/2018,Resources and Housing,Leeds Building Services,Supplies and Services,Operational Furniture And Equipment,203,17/07/2018,0718-00540,0.00,1116.68,R,Ajm Fixings & Power Tools Ltd,No
Http://opendatacommunities.org/id/metropolitan-district-council/leeds,Leeds City Council,31/07/2018,Resources and Housing,Leeds Building Services,Supplies and Services,Operational Furniture And Equipment,203,17/07/2018,0718-00541,0.00,396.00,R,Ajm Fixings & Power Tools Ltd,No
Http://opendatacommunities.org/id/metropolitan-district-council/leeds,Leeds City Council,31/07/2018,Resources and Housing,Leeds Building Services,Supplies and Services,Stores - Central And Other Depots,005,19/07/2018,0718-00542,0.00,270.28,R,Ajm Fixings & Power Tools Ltd,No
Http://opendatacommunities.org/id/metropolitan-district-council/leeds,Leeds City Council,31/07/2018,Resources and Housing,Leeds Building Services,Supplies and Services,Operational Furniture And Equipment,203,19/07/2018,0718-00543,0.00,2958.00,R,Ajm Fixings & Power Tools Ltd,No
Http://opendatacommunities.org/id/metropolitan-district-council/leeds,Leeds City Council,31/07/2018,Resources and Housing,Leeds Building Services,Supplies and Services,Operational Furniture And Equipment,203,19/07/2018,0718-00544,0.00,2115.30,R,Ajm Fixings & Power Tools Ltd,No
Http://opendatacommunities.org/id/metropolitan-district-council/leeds,Leeds City Council,31/07/2018,Resources and Housing,Leeds Building Services,Supplies and Services,Operational Furniture And Equipment,203,19/07/2018,0718-00545,0.00,315.00,R,Ajm Fixings & Power Tools Ltd,No
Http://opendatacommunities.org/id/metropolitan-district-council/leeds,Leeds City Council,31/07/2018,Resources and Housing,Leeds Building Services,Supplies and Services,Operational Furniture And Equipment,203,19/07/2018,0718-00546,0.00,861.97,R,Ajm Fixings & Power Tools Ltd,No
Http://opendatacommunities.org/id/metropolitan-district-council/leeds,Leeds City Council,31/07/2018,Resources and Housing,Leeds Building Services,Supplies and Services,Operational Furniture And Equipment,203,19/07/2018,0718-00547,0.00,59.81,R,Ajm Fixings & Power Tools Ltd,No
Http://opendatacommunities.org/id/metropolitan-district-council/leeds,Leeds City Council,31/07/2018,Resources and Housing,Leeds Building Services,Supplies and Services,Operational Furniture And Equipment,203,26/07/2018,0718-00548,0.00,2869.00,R,Ajm Fixings & Power Tools Ltd,No
Http://opendatacommunities.org/id/metropolitan-district-council/leeds,Leeds City Council,31/07/2018,Resources and Housing,Leeds Building Services,Supplies and Services,Operational Furniture And Equipment,203,27/07/2018,0718-00549,0.00,382.22,R,Ajm Fixings & Power Tools Ltd,No
Http://opendatacommunities.org/id/metropolitan-district-council/leeds,Leeds City Council,31/07/2018,Resources and Housing,Leeds Building Services,Supplies and Services,Operational Furniture And Equipment,203,30/07/2018,0718-00550,0.00,493.00,R,Ajm Fixings & Power Tools Ltd,No
Http://opendatacommunities.org/id/metropolitan-district-council/leeds,Leeds City Council,31/07/2018,Resources and Housing,Leeds Building Services,Supplies and Services,Stores - Central And Other Depots,005,31/07/2018,0718-00551,0.00,647.40,R,Ajm Fixings & Power Tools Ltd,No
Http://opendatacommunities.org/id/metropolitan-district-council/leeds,Leeds City Council,31/07/2018,Resources and Housing,Leeds Building Services,Supplies and Services,Stores - Central And Other Depots,005,31/07/2018,0718-00552,0.00,336.00,R,Ajm Fixings & Power Tools Ltd,No
Http://opendatacommunities.org/id/metropolitan-district-council/leeds,Leeds City Council,31/07/2018,Resources and Housing,Leeds Building Services,Supplies and Services,Stores - Central And Other Depots,005,31/07/2018,0718-00553,0.00,372.10,R,Ajm Fixings & Power Tools Ltd,No
Http://opendatacommunities.org/id/metropolitan-district-council/leeds,Leeds City Council,31/07/2018,Resources and Housing,Leeds Building Services,Supplies and Services,Operational Materials,205,31/07/2018,0718-00554,0.00,487.50,R,Ajm Fixings & Power Tools Ltd,No
Http://opendatacommunities.org/id/metropolitan-district-council/leeds,Leeds City Council,31/07/2018,Resources and Housing,Commercial Services,Transport,Vehicle Spares,345,06/07/2018,0718-00555,0.00,79.51,R,Albert Jagger Limited,No
Http://opendatacommunities.org/id/metropolitan-district-council/leeds,Leeds City Council,31/07/2018,Communities and Environment,Communities,Supplies and Services,Computer Software & Equipment,214,25/07/2018,0718-00556,0.00,1075.00,R,Alcium Software Ltd,No
Http://opendatacommunities.org/id/metropolitan-district-council/leeds,Leeds City Council,31/07/2018,Children and Families,Social Care  ,Supplies and Services,Food & Drink,231,07/06/2018,0718-00557,0.00,29.76,R,Aldi,Yes
Http://opendatacommunities.org/id/metropolitan-district-council/leeds,Leeds City Council,31/07/2018,Children and Families,Social Care  ,Supplies and Services,Food & Drink,231,05/06/2018,0718-00558,0.00,73.40,R,Aldi 49 779,Yes
Http://opendatacommunities.org/id/metropolitan-district-council/leeds,Leeds City Council,31/07/2018,Children and Families,Social Care  ,Supplies and Services,Food & Drink,231,08/06/2018,0718-00559,0.00,30.34,R,Aldi 49 779,Yes
Http://opendatacommunities.org/id/metropolitan-district-council/leeds,Leeds City Council,31/07/2018,Children and Families,Social Care  ,Transfer Payments,Leaving Care Allowances,634,18/06/2018,0718-00560,0.00,10.24,R,Aldi 71 779,Yes
Http://opendatacommunities.org/id/metropolitan-district-council/leeds,Leeds City Council,31/07/2018,Children and Families,Social Care  ,Supplies and Services,Teaching Materials,202,20/06/2018,0718-00561,0.00,9.62,R,Aldi 71 779,Yes
Http://opendatacommunities.org/id/metropolitan-district-council/leeds,Leeds City Council,31/07/2018,Children and Families,Social Care  ,Supplies and Services,Food & Drink,231,24/06/2018,0718-00562,0.00,46.02,R,Aldi 85 779,Yes
Http://opendatacommunities.org/id/metropolitan-district-council/leeds,Leeds City Council,31/07/2018,Children and Families,Social Care  ,Supplies and Services,Food & Drink,231,25/06/2018,0718-00563,0.00,42.69,R,Aldi 85 779,Yes
Http://opendatacommunities.org/id/metropolitan-district-council/leeds,Leeds City Council,31/07/2018,Children and Families,Social Care  ,Supplies and Services,Food & Drink,231,17/06/2018,0718-00564,0.00,14.68,R,Aldi 88 779,Yes
Http://opendatacommunities.org/id/metropolitan-district-council/leeds,Leeds City Council,31/07/2018,City Development,Highways  ,Supplies and Services,Food & Drink,231,26/06/2018,0718-00565,0.00,22.35,R,Aldi 88 779,Yes
Http://opendatacommunities.org/id/metropolitan-district-council/leeds,Leeds City Council,31/07/2018,Communities and Environment,Customer Access,Supplies and Services,Other Hired And Contracted Services,265,05/07/2018,0718-00566,0.00,30.00,R,Alena Zueva,No
Http://opendatacommunities.org/id/metropolitan-district-council/leeds,Leeds City Council,31/07/2018,Children and Families,Social Care,Support Services,Legal Disbursements,411,10/07/2018,0718-00567,0.00,149.72,R,Alere Toxicology Plc,No
Http://opendatacommunities.org/id/metropolitan-district-council/leeds,Leeds City Council,31/07/2018,Children and Families,Social Care,Support Services,Legal Disbursements,411,10/07/2018,0718-00568,0.00,122.80,R,Alere Toxicology Plc,No
Http://opendatacommunities.org/id/metropolitan-district-council/leeds,Leeds City Council,31/07/2018,Children and Families,Social Care,Support Services,Legal Disbursements,411,12/07/2018,0718-00569,0.00,77.75,R,Alere Toxicology Plc,No
Http://opendatacommunities.org/id/metropolitan-district-council/leeds,Leeds City Council,31/07/2018,Children and Families,Social Care,Support Services,Legal Disbursements,411,13/07/2018,0718-00570,0.00,77.75,R,Alere Toxicology Plc,No
Http://opendatacommunities.org/id/metropolitan-district-council/leeds,Leeds City Council,31/07/2018,Children and Families,Social Care,Support Services,Legal Disbursements,411,25/07/2018,0718-00571,0.00,103.68,R,Alere Toxicology Plc,No
Http://opendatacommunities.org/id/metropolitan-district-council/leeds,Leeds City Council,31/07/2018,Children and Families,Social Care,Support Services,Legal Disbursements,411,27/07/2018,0718-00572,0.00,162.00,R,Alere Toxicology Plc,No
Http://opendatacommunities.org/id/metropolitan-district-council/leeds,Leeds City Council,31/07/2018,Communities and Environment,Car Parking Services,Income,Penalties  Fines & Car Parking Charges,934,18/07/2018,0718-00573,0.00,5.20,R,REDACTED PERSONAL DATA,No
Http://opendatacommunities.org/id/metropolitan-district-council/leeds,Leeds City Council,31/07/2018,City Development,Libraries  Arts & Heritage,Supplies and Services,Non-Recurring Grants,227,06/07/2018,0718-00574,0.00,1000.00,R,Alex Palmer,No
Http://opendatacommunities.org/id/metropolitan-district-council/leeds,Leeds City Council,31/07/2018,Children and Families,Social Care,Support Services,Legal Disbursements,411,06/07/2018,0718-00575,0.00,361.00,R,Alex Taylor,No
Http://opendatacommunities.org/id/metropolitan-district-council/leeds,Leeds City Council,31/07/2018,Children and Families,Social Care,Support Services,Legal Disbursements,411,20/07/2018,0718-00576,0.00,6500.00,R,Alex Taylor,No
Http://opendatacommunities.org/id/metropolitan-district-council/leeds,Leeds City Council,31/07/2018,Children and Families,Social Care,Support Services,Legal Disbursements,411,26/07/2018,0718-00577,0.00,361.00,R,Alex Taylor,No
Http://opendatacommunities.org/id/metropolitan-district-council/leeds,Leeds City Council,31/07/2018,Resources and Housing,Commercial Services,Supplies and Services,Other Hired And Contracted Services,265,05/07/2018,0718-00578,0.00,130.00,R,Alex Wagg,No
Http://opendatacommunities.org/id/metropolitan-district-council/leeds,Leeds City Council,31/07/2018,Resources and Housing,Commercial Services,Supplies and Services,Other Hired And Contracted Services,265,05/07/2018,0718-00579,0.00,140.00,R,Alex Wagg,No
Http://opendatacommunities.org/id/metropolitan-district-council/leeds,Leeds City Council,31/07/2018,Resources and Housing,Commercial Services,Supplies and Services,Other Hired And Contracted Services,265,05/07/2018,0718-00580,0.00,40.00,R,Alex Wagg,No
Http://opendatacommunities.org/id/metropolitan-district-council/leeds,Leeds City Council,31/07/2018,Resources and Housing,Commercial Services,Transport,Vehicle Spares,345,05/07/2018,0718-00581,0.00,380.00,R,Alex Wagg,No
Http://opendatacommunities.org/id/metropolitan-district-council/leeds,Leeds City Council,31/07/2018,Resources and Housing,Commercial Services,Transport,Vehicle Spares,345,05/07/2018,0718-00582,0.00,745.00,R,Alex Wagg,No
Http://opendatacommunities.org/id/metropolitan-district-council/leeds,Leeds City Council,31/07/2018,Resources and Housing,Commercial Services,Transport,Vehicle Spares,345,12/07/2018,0718-00583,0.00,134.00,R,Alex Wagg,No
Http://opendatacommunities.org/id/metropolitan-district-council/leeds,Leeds City Council,31/07/2018,Resources and Housing,Commercial Services,Supplies and Services,Other Hired And Contracted Services,265,19/07/2018,0718-00584,0.00,45.00,R,Alex Wagg,No
Http://opendatacommunities.org/id/metropolitan-district-council/leeds,Leeds City Council,31/07/2018,Resources and Housing,Commercial Services,Supplies and Services,Other Hired And Contracted Services,265,19/07/2018,0718-00585,0.00,355.00,R,Alex Wagg,No
Http://opendatacommunities.org/id/metropolitan-district-council/leeds,Leeds City Council,31/07/2018,Resources and Housing,Commercial Services,Supplies and Services,Other Hired And Contracted Services,265,19/07/2018,0718-00586,0.00,60.00,R,Alex Wagg,No
Http://opendatacommunities.org/id/metropolitan-district-council/leeds,Leeds City Council,31/07/2018,Resources and Housing,Commercial Services,Supplies and Services,Other Hired And Contracted Services,265,19/07/2018,0718-00587,0.00,80.00,R,Alex Wagg,No
Http://opendatacommunities.org/id/metropolitan-district-council/leeds,Leeds City Council,31/07/2018,Resources and Housing,Commercial Services,Supplies and Services,Other Hired And Contracted Services,265,19/07/2018,0718-00588,0.00,60.00,R,Alex Wagg,No
Http://opendatacommunities.org/id/metropolitan-district-council/leeds,Leeds City Council,31/07/2018,Resources and Housing,Commercial Services,Transport,Vehicle Spares,345,19/07/2018,0718-00589,0.00,168.00,R,Alex Wagg,No
Http://opendatacommunities.org/id/metropolitan-district-council/leeds,Leeds City Council,31/07/2018,City Development,Recreation,Income,Swimming Bath Charges,923,16/07/2018,0718-00590,0.00,160.00,R,REDACTED PERSONAL DATA,No
Http://opendatacommunities.org/id/metropolitan-district-council/leeds,Leeds City Council,31/07/2018,Adults and Health,Services For Older People - 65 And Over,Third Party Payments,Residential Care Dementia,571,25/07/2018,0718-00591,0.00,22915.74,R,Alexander Residential Home,No
Http://opendatacommunities.org/id/metropolitan-district-council/leeds,Leeds City Council,31/07/2018,Adults and Health,Services For Older People - 65 And Over,Third Party Payments,Residential,580,25/07/2018,0718-00592,0.00,17959.80,R,Alexander Residential Home,No
Http://opendatacommunities.org/id/metropolitan-district-council/leeds,Leeds City Council,31/07/2018,Communities and Environment,Customer Access,Supplies and Services,Other Hired And Contracted Services,265,05/07/2018,0718-00593,0.00,842.50,R,Alexandra Costenco,No
Http://opendatacommunities.org/id/metropolitan-district-council/leeds,Leeds City Council,31/07/2018,Adults and Health,Services For Older People - 65 And Over,Third Party Payments,Residential,580,25/07/2018,0718-00594,0.00,9734.65,R,Alexandra Court,No
Http://opendatacommunities.org/id/metropolitan-district-council/leeds,Leeds City Council,31/07/2018,Children and Families,Social Care,Third Party Payments,Services Rendered By Other Organisations,511,13/07/2018,0718-00595,0.00,25.50,R,REDACTED PERSONAL DATA,No
Http://opendatacommunities.org/id/metropolitan-district-council/leeds,Leeds City Council,31/07/2018,Children and Families,Social Care  ,Supplies and Services,Clothing & Uniforms,241,05/06/2018,0718-00596,0.00,191.70,R,Alexandra Website,Yes
Http://opendatacommunities.org/id/metropolitan-district-council/leeds,Leeds City Council,31/07/2018,Children and Families,Social Care  ,Supplies and Services,Clothing & Uniforms,241,11/06/2018,0718-00597,0.00,27.96,R,Alexandra Website,Yes
Http://opendatacommunities.org/id/metropolitan-district-council/leeds,Leeds City Council,31/07/2018,Children and Families,Social Care  ,Supplies and Services,Clothing & Uniforms,241,22/06/2018,0718-00598,0.00,125.91,R,Alexandra Website,Yes
Http://opendatacommunities.org/id/metropolitan-district-council/leeds,Leeds City Council,31/07/2018,Children and Families,Social Care  ,Supplies and Services,Clothing & Uniforms,241,26/06/2018,0718-00599,0.00,25.19,R,Alexandra Website,Yes
Http://opendatacommunities.org/id/metropolitan-district-council/leeds,Leeds City Council,31/07/2018,Resources and Housing,Leeds Building Services,Supplies and Services,Other Hired And Contracted Services,265,04/07/2018,0718-00600,0.00,200.00,R,Alfred Bagnall & Sons (Leeds) Ltd,No
Http://opendatacommunities.org/id/metropolitan-district-council/leeds,Leeds City Council,31/07/2018,Resources and Housing,Leeds Building Services,Supplies and Services,Other Hired And Contracted Services,265,04/07/2018,0718-00601,0.00,5519.90,R,Alfred Bagnall & Sons (Leeds) Ltd,No
Http://opendatacommunities.org/id/metropolitan-district-council/leeds,Leeds City Council,31/07/2018,Resources and Housing,Leeds Building Services,Supplies and Services,Other Hired And Contracted Services,265,05/07/2018,0718-00602,0.00,9064.23,R,Alfred Bagnall & Sons (Leeds) Ltd,No
Http://opendatacommunities.org/id/metropolitan-district-council/leeds,Leeds City Council,31/07/2018,Resources and Housing,Leeds Building Services,Supplies and Services,Other Hired And Contracted Services,265,06/07/2018,0718-00603,0.00,400.00,R,Alfred Bagnall & Sons (Leeds) Ltd,No
Http://opendatacommunities.org/id/metropolitan-district-council/leeds,Leeds City Council,31/07/2018,Resources and Housing,Leeds Building Services,Supplies and Services,Other Hired And Contracted Services,265,13/07/2018,0718-00604,0.00,695.00,R,Alfred Bagnall & Sons (Leeds) Ltd,No
Http://opendatacommunities.org/id/metropolitan-district-council/leeds,Leeds City Council,31/07/2018,Children and Families,Social Care,Premises,Painting Interior,193,27/07/2018,0718-00605,0.00,9178.70,R,Alfred Bagnall & Sons (Leeds) Ltd,No
Http://opendatacommunities.org/id/metropolitan-district-council/leeds,Leeds City Council,31/07/2018,Resources and Housing,Corporate Property Management,Capital,Construction,3,27/07/2018,0718-00606,0.00,2500.00,C,Alfred Bagnall & Sons (Leeds) Ltd,No
Http://opendatacommunities.org/id/metropolitan-district-council/leeds,Leeds City Council,31/07/2018,Resources and Housing,Leeds Building Services,Supplies and Services,Other Hired And Contracted Services,265,27/07/2018,0718-00607,0.00,400.00,R,Alfred Bagnall & Sons (Leeds) Ltd,No
Http://opendatacommunities.org/id/metropolitan-district-council/leeds,Leeds City Council,31/07/2018,Resources and Housing,Leeds Building Services,Supplies and Services,Other Hired And Contracted Services,265,27/07/2018,0718-00608,0.00,180.00,R,Alfred Bagnall & Sons (Leeds) Ltd,No
Http://opendatacommunities.org/id/metropolitan-district-council/leeds,Leeds City Council,31/07/2018,Communities and Environment,Customer Access,Supplies and Services,Other Hired And Contracted Services,265,05/07/2018,0718-00609,0.00,615.75,R,Ali Pourakaberian,No
Http://opendatacommunities.org/id/metropolitan-district-council/leeds,Leeds City Council,31/07/2018,City Development,Libraries  Arts & Heritage,Supplies and Services,Bought In Professional Services,277,20/07/2018,0718-00610,0.00,100.00,R,Alice Miller,No
Http://opendatacommunities.org/id/metropolitan-district-council/leeds,Leeds City Council,31/07/2018,Children and Families,Learning,Supplies and Services,Teaching Materials,202,17/07/2018,0718-00611,0.00,39.39,R,REDACTED PERSONAL DATA,No
Http://opendatacommunities.org/id/metropolitan-district-council/leeds,Leeds City Council,31/07/2018,Children and Families,Partnerships & Health,Employees,Training & Development,70,16/07/2018,0718-00612,0.00,1416.64,R,REDACTED PERSONAL DATA,No
Http://opendatacommunities.org/id/metropolitan-district-council/leeds,Leeds City Council,31/07/2018,Children and Families,Social Care  ,Third Party Payments,Contact,548,31/05/2018,0718-00613,0.00,14.50,R,Alien Rock,Yes
Http://opendatacommunities.org/id/metropolitan-district-council/leeds,Leeds City Council,31/07/2018,Children and Families,Social Care,Third Party Payments,Services Rendered By Other Organisations,511,11/07/2018,0718-00614,0.00,1234.20,R,REDACTED PERSONAL DATA,No
Http://opendatacommunities.org/id/metropolitan-district-council/leeds,Leeds City Council,31/07/2018,Children and Families,Social Care,Third Party Payments,Services Rendered By Other Organisations,511,11/07/2018,0718-00615,0.00,198.90,R,REDACTED PERSONAL DATA,No
Http://opendatacommunities.org/id/metropolitan-district-council/leeds,Leeds City Council,31/07/2018,Children and Families,Social Care,Third Party Payments,Services Rendered By Other Organisations,511,13/07/2018,0718-00616,0.00,828.75,R,REDACTED PERSONAL DATA,No
Http://opendatacommunities.org/id/metropolitan-district-council/leeds,Leeds City Council,31/07/2018,Children and Families,Social Care,Third Party Payments,Placement Support,550,02/07/2018,0718-00617,0.00,89.00,R,REDACTED PERSONAL DATA,No
Http://opendatacommunities.org/id/metropolitan-district-council/leeds,Leeds City Council,31/07/2018,City Development,Libraries  Arts & Heritage,Supplies and Services,Other Hired And Contracted Services,265,11/07/2018,0718-00618,0.00,200.00,R,Alison Wilding,No
Http://opendatacommunities.org/id/metropolitan-district-council/leeds,Leeds City Council,31/07/2018,Children and Families,Social Care,Transfer Payments,Leaving Care Allowances,634,04/07/2018,0718-00619,0.00,180.00,R,All Abode,No
Http://opendatacommunities.org/id/metropolitan-district-council/leeds,Leeds City Council,31/07/2018,Resources and Housing,Leeds Building Services,Supplies and Services,Other Hired And Contracted Services,265,02/07/2018,0718-00620,0.00,250.00,R,All Clear Solutions Ltd,No
Http://opendatacommunities.org/id/metropolitan-district-council/leeds,Leeds City Council,31/07/2018,Resources and Housing,Leeds Building Services,Supplies and Services,Other Hired And Contracted Services,265,02/07/2018,0718-00621,0.00,195.00,R,All Clear Solutions Ltd,No
Http://opendatacommunities.org/id/metropolitan-district-council/leeds,Leeds City Council,31/07/2018,Resources and Housing,Leeds Building Services,Supplies and Services,Other Hired And Contracted Services,265,02/07/2018,0718-00622,0.00,195.00,R,All Clear Solutions Ltd,No
Http://opendatacommunities.org/id/metropolitan-district-council/leeds,Leeds City Council,31/07/2018,Resources and Housing,Leeds Building Services,Supplies and Services,Other Hired And Contracted Services,265,04/07/2018,0718-00623,0.00,195.00,R,All Clear Solutions Ltd,No
Http://opendatacommunities.org/id/metropolitan-district-council/leeds,Leeds City Council,31/07/2018,Resources and Housing,Leeds Building Services,Supplies and Services,Other Hired And Contracted Services,265,18/07/2018,0718-00624,0.00,295.00,R,All Clear Solutions Ltd,No
Http://opendatacommunities.org/id/metropolitan-district-council/leeds,Leeds City Council,31/07/2018,Resources and Housing,Leeds Building Services,Supplies and Services,Other Hired And Contracted Services,265,18/07/2018,0718-00625,0.00,195.00,R,All Clear Solutions Ltd,No
Http://opendatacommunities.org/id/metropolitan-district-council/leeds,Leeds City Council,31/07/2018,Resources and Housing,Leeds Building Services,Supplies and Services,Other Hired And Contracted Services,265,18/07/2018,0718-00626,0.00,195.00,R,All Clear Solutions Ltd,No
Http://opendatacommunities.org/id/metropolitan-district-council/leeds,Leeds City Council,31/07/2018,Resources and Housing,Leeds Building Services,Supplies and Services,Other Hired And Contracted Services,265,18/07/2018,0718-00627,0.00,195.00,R,All Clear Solutions Ltd,No
Http://opendatacommunities.org/id/metropolitan-district-council/leeds,Leeds City Council,31/07/2018,Resources and Housing,Leeds Building Services,Supplies and Services,Other Hired And Contracted Services,265,18/07/2018,0718-00628,0.00,250.00,R,All Clear Solutions Ltd,No
Http://opendatacommunities.org/id/metropolitan-district-council/leeds,Leeds City Council,31/07/2018,Resources and Housing,Leeds Building Services,Supplies and Services,Other Hired And Contracted Services,265,20/07/2018,0718-00629,0.00,250.00,R,All Clear Solutions Ltd,No
Http://opendatacommunities.org/id/metropolitan-district-council/leeds,Leeds City Council,31/07/2018,Resources and Housing,Leeds Building Services,Supplies and Services,Other Hired And Contracted Services,265,23/07/2018,0718-00630,0.00,195.00,R,All Clear Solutions Ltd,No
Http://opendatacommunities.org/id/metropolitan-district-council/leeds,Leeds City Council,31/07/2018,Resources and Housing,Leeds Building Services,Supplies and Services,Other Hired And Contracted Services,265,27/07/2018,0718-00631,0.00,195.00,R,All Clear Solutions Ltd,No
Http://opendatacommunities.org/id/metropolitan-district-council/leeds,Leeds City Council,31/07/2018,Resources and Housing,Leeds Building Services,Supplies and Services,Other Hired And Contracted Services,265,27/07/2018,0718-00632,0.00,250.00,R,All Clear Solutions Ltd,No
Http://opendatacommunities.org/id/metropolitan-district-council/leeds,Leeds City Council,31/07/2018,Children and Families,Social Care,Third Party Payments,Services Rendered By Other Organisations,511,11/07/2018,0718-00633,0.00,1193.40,R,All Stars Childcare,No
Http://opendatacommunities.org/id/metropolitan-district-council/leeds,Leeds City Council,31/07/2018,Children and Families,Social Care,Third Party Payments,Services Rendered By Other Organisations,511,13/07/2018,0718-00634,0.00,13651.00,R,All Stars Childcare,No
Http://opendatacommunities.org/id/metropolitan-district-council/leeds,Leeds City Council as Accountable Body,31/07/2018,Social Services Pooled Budgets,Jcs For People With Learning Disabilitie,Third Party Payments,Sheltered Accommodation,569,25/07/2018,0718-00635,0.00,13578.36,R,Allerton Avenue,No
Http://opendatacommunities.org/id/metropolitan-district-council/leeds,Leeds City Council,31/07/2018,Adults and Health,Services For Older People - 65 And Over,Third Party Payments,Nursing Care Dementia,574,25/07/2018,0718-00636,0.00,2094.28,R,Allerton Park N H,No
Http://opendatacommunities.org/id/metropolitan-district-council/leeds,Leeds City Council,31/07/2018,Resources and Housing,Finance,Supplies and Services,Bank Charges,263,02/07/2018,0718-00637,0.00,-116.17,R,Alliance & Leicester Commercial Bank,No
Http://opendatacommunities.org/id/metropolitan-district-council/leeds,Leeds City Council,31/07/2018,Resources and Housing,Finance,Supplies and Services,Bank Charges,263,05/07/2018,0718-00638,0.00,100.00,R,Alliance & Leicester Commercial Bank,No
Http://opendatacommunities.org/id/metropolitan-district-council/leeds,Leeds City Council,31/07/2018,Resources and Housing,Finance,Supplies and Services,Bank Charges,263,05/07/2018,0718-00639,0.00,624.58,R,Alliance & Leicester Commercial Bank,No
Http://opendatacommunities.org/id/metropolitan-district-council/leeds,Leeds City Council,31/07/2018,City Development,Libraries  Arts & Heritage  ,Supplies and Services,Food & Drink,231,14/06/2018,0718-00640,0.00,25.70,R,Alliance Disposables,Yes
Http://opendatacommunities.org/id/metropolitan-district-council/leeds,Leeds City Council,31/07/2018,Resources and Housing,Commercial Services,Transport,Vehicle Spares,345,27/07/2018,0718-00641,0.00,225.00,R,Alliance Electronics Ltd,No
Http://opendatacommunities.org/id/metropolitan-district-council/leeds,Leeds City Council,31/07/2018,City Development,Recreation,Supplies and Services,Printing,215,12/07/2018,0718-00642,0.00,85.80,R,Alliance Leisure Service Ltd,No
Http://opendatacommunities.org/id/metropolitan-district-council/leeds,Leeds City Council,31/07/2018,City Development,Recreation,Supplies and Services,Advertising,211,13/07/2018,0718-00643,0.00,2904.00,R,Alliance Leisure Service Ltd,No
Http://opendatacommunities.org/id/metropolitan-district-council/leeds,Leeds City Council,31/07/2018,City Development,Highways,Supplies and Services,Other Hired And Contracted Services,265,02/07/2018,0718-00644,0.00,1176.10,R,Allied Exploration & Geotechnics Ltd,No
Http://opendatacommunities.org/id/metropolitan-district-council/leeds,Leeds City Council,31/07/2018,City Development,Highways,Supplies and Services,Other Hired And Contracted Services,265,02/07/2018,0718-00645,0.00,6216.40,R,Allied Exploration & Geotechnics Ltd,No
Http://opendatacommunities.org/id/metropolitan-district-council/leeds,Leeds City Council,31/07/2018,City Development,Highways,Supplies and Services,Other Hired And Contracted Services,265,02/07/2018,0718-00646,0.00,685.00,R,Allied Exploration & Geotechnics Ltd,No
Http://opendatacommunities.org/id/metropolitan-district-council/leeds,Leeds City Council,31/07/2018,City Development,Highways,Supplies and Services,Other Hired And Contracted Services,265,02/07/2018,0718-00647,0.00,8549.65,R,Allied Exploration & Geotechnics Ltd,No
Http://opendatacommunities.org/id/metropolitan-district-council/leeds,Leeds City Council,31/07/2018,City Development,Highways,Capital,Other Costs,7,13/07/2018,0718-00648,0.00,220.10,C,Allied Exploration & Geotechnics Ltd,No
Http://opendatacommunities.org/id/metropolitan-district-council/leeds,Leeds City Council,31/07/2018,City Development,Highways,Capital,Other Costs,7,13/07/2018,0718-00649,0.00,80.00,C,Allied Exploration & Geotechnics Ltd,No
Http://opendatacommunities.org/id/metropolitan-district-council/leeds,Leeds City Council,31/07/2018,City Development,Highways,Supplies and Services,Other Hired And Contracted Services,265,13/07/2018,0718-00650,0.00,616.00,R,Allied Exploration & Geotechnics Ltd,No
Http://opendatacommunities.org/id/metropolitan-district-council/leeds,Leeds City Council,31/07/2018,Resources and Housing,HRA Council Housing Growth Programme,Capital,Other Costs,7,13/07/2018,0718-00651,0.00,9086.03,C,Allied Exploration & Geotechnics Ltd,No
Http://opendatacommunities.org/id/metropolitan-district-council/leeds,Leeds City Council,31/07/2018,Adults and Health,Services For Older People - 65 And Over,Third Party Payments,Home Care,568,06/07/2018,0718-00652,0.00,13246.85,R,Allied Healthcare,No
Http://opendatacommunities.org/id/metropolitan-district-council/leeds,Leeds City Council,31/07/2018,Adults and Health,Services For Older People - 65 And Over,Third Party Payments,Home Care,568,06/07/2018,0718-00653,0.00,9600.89,R,Allied Healthcare,No
Http://opendatacommunities.org/id/metropolitan-district-council/leeds,Leeds City Council,31/07/2018,Adults and Health,Services For Older People - 65 And Over,Third Party Payments,Home Care,568,06/07/2018,0718-00654,0.00,12111.56,R,Allied Healthcare,No
Http://opendatacommunities.org/id/metropolitan-district-council/leeds,Leeds City Council,31/07/2018,Adults and Health,Services For Older People - 65 And Over,Third Party Payments,Home Care,568,06/07/2018,0718-00655,0.00,1698.97,R,Allied Healthcare,No
Http://opendatacommunities.org/id/metropolitan-district-council/leeds,Leeds City Council,31/07/2018,Adults and Health,Services For Older People - 65 And Over,Third Party Payments,Home Care,568,06/07/2018,0718-00656,0.00,2043.72,R,Allied Healthcare,No
Http://opendatacommunities.org/id/metropolitan-district-council/leeds,Leeds City Council,31/07/2018,Adults and Health,Services For Older People Under 65 P/Dis,Third Party Payments,Home Care,568,06/07/2018,0718-00657,0.00,12764.89,R,Allied Healthcare,No
Http://opendatacommunities.org/id/metropolitan-district-council/leeds,Leeds City Council,31/07/2018,Adults and Health,Services For Older People Under 65 P/Dis,Third Party Payments,Home Care,568,06/07/2018,0718-00658,0.00,4382.50,R,Allied Healthcare,No
Http://opendatacommunities.org/id/metropolitan-district-council/leeds,Leeds City Council,31/07/2018,Adults and Health,Services For Older People Under 65 P/Dis,Third Party Payments,Home Care,568,06/07/2018,0718-00659,0.00,1135.44,R,Allied Healthcare,No
Http://opendatacommunities.org/id/metropolitan-district-council/leeds,Leeds City Council as Accountable Body,31/07/2018,Social Services Pooled Budgets,Jcs For People With Learning Disabilitie,Third Party Payments,Home Care,568,09/07/2018,0718-00660,0.00,12950.00,R,Allied Healthcare,No
Http://opendatacommunities.org/id/metropolitan-district-council/leeds,Leeds City Council,31/07/2018,Adults and Health,Other Generic Services,Third Party Payments,Home Care,568,12/07/2018,0718-00661,0.00,6544.31,R,Allied Healthcare,No
Http://opendatacommunities.org/id/metropolitan-district-council/leeds,Leeds City Council,31/07/2018,Adults and Health,Other Generic Services,Third Party Payments,Home Care,568,12/07/2018,0718-00662,0.00,15597.52,R,Allied Healthcare,No
Http://opendatacommunities.org/id/metropolitan-district-council/leeds,Leeds City Council as Accountable Body,31/07/2018,Social Services Pooled Budgets,Jcs For People With Learning Disabilitie,Third Party Payments,Home Care,568,12/07/2018,0718-00663,0.00,200.16,R,Allied Healthcare,No
Http://opendatacommunities.org/id/metropolitan-district-council/leeds,Leeds City Council,31/07/2018,Children and Families,Social Care,Third Party Payments,Services Rendered By Voluntary Sector,505,13/07/2018,0718-00664,0.00,684.00,R,Allied Healthcare,No
Http://opendatacommunities.org/id/metropolitan-district-council/leeds,Leeds City Council as Accountable Body,31/07/2018,Social Services Pooled Budgets,Jcs For People With Learning Disabilitie,Third Party Payments,Home Care,568,23/07/2018,0718-00665,0.00,16931.39,R,Allied Healthcare,No
Http://opendatacommunities.org/id/metropolitan-district-council/leeds,Leeds City Council as Accountable Body,31/07/2018,Social Services Pooled Budgets,Jcs For People With Learning Disabilitie,Third Party Payments,Home Care,568,23/07/2018,0718-00666,0.00,12967.50,R,Allied Healthcare,No
Http://opendatacommunities.org/id/metropolitan-district-council/leeds,Leeds City Council as Accountable Body,31/07/2018,Social Services Pooled Budgets,Jcs For People With Learning Disabilitie,Third Party Payments,Home Care,568,23/07/2018,0718-00667,0.00,1319.33,R,Allied Healthcare,No
Http://opendatacommunities.org/id/metropolitan-district-council/leeds,Leeds City Council as Accountable Body,31/07/2018,Social Services Pooled Budgets,Jcs For People With Learning Disabilitie,Third Party Payments,Home Care,568,23/07/2018,0718-00668,0.00,-1183.64,R,Allied Healthcare,No
Http://opendatacommunities.org/id/metropolitan-district-council/leeds,Leeds City Council as Accountable Body,31/07/2018,Social Services Pooled Budgets,Jcs For People With Learning Disabilitie,Third Party Payments,Home Care,568,23/07/2018,0718-00669,0.00,52.50,R,Allied Healthcare,No
Http://opendatacommunities.org/id/metropolitan-district-council/leeds,Leeds City Council as Accountable Body,31/07/2018,Social Services Pooled Budgets,Jcs For People With Learning Disabilitie,Third Party Payments,Home Care,568,23/07/2018,0718-00670,0.00,-1307.19,R,Allied Healthcare,No
Http://opendatacommunities.org/id/metropolitan-district-council/leeds,Leeds City Council as Accountable Body,31/07/2018,Social Services Pooled Budgets,Jcs For People With Learning Disabilitie,Third Party Payments,Home Care,568,24/07/2018,0718-00671,0.00,1196.52,R,Allied Healthcare,No
Http://opendatacommunities.org/id/metropolitan-district-council/leeds,Leeds City Council as Accountable Body,31/07/2018,Social Services Pooled Budgets,Jcs For People With Learning Disabilitie,Third Party Payments,Home Care,568,24/07/2018,0718-00672,0.00,14875.21,R,Allied Healthcare,No
Http://opendatacommunities.org/id/metropolitan-district-council/leeds,Leeds City Council,31/07/2018,Children and Families,Social Care,Third Party Payments,Services Rendered By Other Organisations,511,13/07/2018,0718-00673,0.00,165.75,R,Allison Dickinson,No
Http://opendatacommunities.org/id/metropolitan-district-council/leeds,Leeds City Council,31/07/2018,Resources and Housing,Finance,Supplies and Services,Bank Charges,263,02/07/2018,0718-00674,0.00,115.31,R,Allpay Limted,No
Http://opendatacommunities.org/id/metropolitan-district-council/leeds,Leeds City Council,31/07/2018,Resources and Housing,Finance,Supplies and Services,Bank Charges,263,02/07/2018,0718-00675,0.00,2723.13,R,Allpay Limted,No
Http://opendatacommunities.org/id/metropolitan-district-council/leeds,Leeds City Council,31/07/2018,Resources and Housing,Finance,Supplies and Services,Bank Charges,263,02/07/2018,0718-00676,0.00,3.86,R,Allpay Limted,No
Http://opendatacommunities.org/id/metropolitan-district-council/leeds,Leeds City Council,31/07/2018,Resources and Housing,Finance,Supplies and Services,Bank Charges,263,02/07/2018,0718-00677,0.00,5693.00,R,Allpay Limted,No
Http://opendatacommunities.org/id/metropolitan-district-council/leeds,Leeds City Council,31/07/2018,Resources and Housing,Finance,Supplies and Services,Bank Charges,263,02/07/2018,0718-00678,0.00,11163.16,R,Allpay Limted,No
Http://opendatacommunities.org/id/metropolitan-district-council/leeds,Leeds City Council,31/07/2018,Resources and Housing,Finance,Supplies and Services,Bank Charges,263,02/07/2018,0718-00679,0.00,349.95,R,Allpay Limted,No
Http://opendatacommunities.org/id/metropolitan-district-council/leeds,Leeds City Council,31/07/2018,Strategic Landlord,Housing Management,Supplies and Services,Other Hired And Contracted Services,265,05/07/2018,0718-00680,0.00,319.41,R,Allpay Limted,No
Http://opendatacommunities.org/id/metropolitan-district-council/leeds,Leeds City Council,31/07/2018,Strategic Landlord,Housing Management,Supplies and Services,Other Hired And Contracted Services,265,05/07/2018,0718-00681,0.00,15.25,R,Allpay Limted,No
Http://opendatacommunities.org/id/metropolitan-district-council/leeds,Leeds City Council,31/07/2018,Strategic Landlord,Housing Management,Supplies and Services,Other Hired And Contracted Services,265,05/07/2018,0718-00682,0.00,0.46,R,Allpay Limted,No
Http://opendatacommunities.org/id/metropolitan-district-council/leeds,Leeds City Council,31/07/2018,Resources and Housing,Strategic Housing Partnership & Support  ,Supplies and Services,Other Hired And Contracted Services,265,08/06/2018,0718-00683,0.00,45.00,R,Allpay Ltd,Yes
Http://opendatacommunities.org/id/metropolitan-district-council/leeds,Leeds City Council,31/07/2018,Children and Families,Learning,Transport,Fuel (Non LCC Supplies),321,09/07/2018,0718-00684,0.00,2047.16,R,Allstar Business Solutions Ltd,No
Http://opendatacommunities.org/id/metropolitan-district-council/leeds,Leeds City Council,31/07/2018,City Development,Highways,Transport,Fuel (Non LCC Supplies),321,09/07/2018,0718-00685,0.00,382.81,R,Allstar Business Solutions Ltd,No
Http://opendatacommunities.org/id/metropolitan-district-council/leeds,Leeds City Council,31/07/2018,Communities and Environment,Parks and Countryside,Transport,Fuel (Non LCC Supplies),321,09/07/2018,0718-00686,0.00,532.38,R,Allstar Business Solutions Ltd,No
Http://opendatacommunities.org/id/metropolitan-district-council/leeds,Leeds City Council,31/07/2018,Resources and Housing,Democratic Services,Transport,Fuel (Non LCC Supplies),321,09/07/2018,0718-00687,0.00,43.69,R,Allstar Business Solutions Ltd,No
Http://opendatacommunities.org/id/metropolitan-district-council/leeds,Leeds City Council,31/07/2018,Resources and Housing,Leeds Building Services,Transport,Fuel (Non LCC Supplies),321,13/07/2018,0718-00688,0.00,50.49,R,Allstar Business Solutions Ltd,No
Http://opendatacommunities.org/id/metropolitan-district-council/leeds,Leeds City Council,31/07/2018,Resources and Housing,Leeds Building Services,Transport,Fuel (Non LCC Supplies),321,30/07/2018,0718-00689,0.00,19.90,R,Allstar Business Solutions Ltd,No
Http://opendatacommunities.org/id/metropolitan-district-council/leeds,Leeds City Council,31/07/2018,Resources and Housing,Leeds Building Services  ,Premises,Maintenance Of Buildings,101,13/06/2018,0718-00690,0.00,86.00,R,Almanda Carpets Ltd,Yes
Http://opendatacommunities.org/id/metropolitan-district-council/leeds,Leeds City Council,31/07/2018,Resources and Housing,SP Contracts & SECC,Third Party Payments,Supporting Ppl - Block Gross Chargeable,514,25/07/2018,0718-00691,0.00,29.77,R,Alpha (Rsl) Limited,No
Http://opendatacommunities.org/id/metropolitan-district-council/leeds,Leeds City Council,31/07/2018,Children and Families,Social Care,Support Services,Legal Disbursements,411,04/07/2018,0718-00692,0.00,141.67,R,Alphabiolabs,No
Http://opendatacommunities.org/id/metropolitan-district-council/leeds,Leeds City Council,31/07/2018,Children and Families,Social Care,Support Services,Legal Disbursements,411,04/07/2018,0718-00693,0.00,419.00,R,Alphabiolabs,No
Http://opendatacommunities.org/id/metropolitan-district-council/leeds,Leeds City Council,31/07/2018,Children and Families,Social Care,Support Services,Legal Disbursements,411,06/07/2018,0718-00694,0.00,162.25,R,Alphabiolabs,No
Http://opendatacommunities.org/id/metropolitan-district-council/leeds,Leeds City Council,31/07/2018,Children and Families,Social Care,Support Services,Legal Disbursements,411,06/07/2018,0718-00695,0.00,123.34,R,Alphabiolabs,No
Http://opendatacommunities.org/id/metropolitan-district-council/leeds,Leeds City Council,31/07/2018,Children and Families,Social Care,Support Services,Legal Disbursements,411,09/07/2018,0718-00696,0.00,860.00,R,Alphabiolabs,No
Http://opendatacommunities.org/id/metropolitan-district-council/leeds,Leeds City Council,31/07/2018,Children and Families,Social Care,Support Services,Legal Disbursements,411,09/07/2018,0718-00697,0.00,286.33,R,Alphabiolabs,No
Http://opendatacommunities.org/id/metropolitan-district-council/leeds,Leeds City Council,31/07/2018,Children and Families,Social Care,Support Services,Legal Disbursements,411,13/07/2018,0718-00698,0.00,197.25,R,Alphabiolabs,No
Http://opendatacommunities.org/id/metropolitan-district-council/leeds,Leeds City Council,31/07/2018,Children and Families,Social Care,Support Services,Legal Disbursements,411,18/07/2018,0718-00699,0.00,746.00,R,Alphabiolabs,No
Http://opendatacommunities.org/id/metropolitan-district-council/leeds,Leeds City Council,31/07/2018,Children and Families,Social Care,Support Services,Legal Disbursements,411,20/07/2018,0718-00700,0.00,170.00,R,Alphabiolabs,No
Http://opendatacommunities.org/id/metropolitan-district-council/leeds,Leeds City Council,31/07/2018,Children and Families,Social Care,Support Services,Legal Disbursements,411,20/07/2018,0718-00701,0.00,123.00,R,Alphabiolabs,No
Http://opendatacommunities.org/id/metropolitan-district-council/leeds,Leeds City Council,31/07/2018,Children and Families,Social Care,Support Services,Legal Disbursements,411,20/07/2018,0718-00702,0.00,107.50,R,Alphabiolabs,No
Http://opendatacommunities.org/id/metropolitan-district-council/leeds,Leeds City Council,31/07/2018,Children and Families,Social Care,Support Services,Legal Disbursements,411,20/07/2018,0718-00703,0.00,107.50,R,Alphabiolabs,No
Http://opendatacommunities.org/id/metropolitan-district-council/leeds,Leeds City Council,31/07/2018,Children and Families,Social Care,Support Services,Legal Disbursements,411,20/07/2018,0718-00704,0.00,266.00,R,Alphabiolabs,No
Http://opendatacommunities.org/id/metropolitan-district-council/leeds,Leeds City Council,31/07/2018,Children and Families,Social Care,Support Services,Legal Disbursements,411,20/07/2018,0718-00705,0.00,320.00,R,Alphabiolabs,No
Http://opendatacommunities.org/id/metropolitan-district-council/leeds,Leeds City Council,31/07/2018,Children and Families,Social Care,Support Services,Legal Disbursements,411,20/07/2018,0718-00706,0.00,399.00,R,Alphabiolabs,No
Http://opendatacommunities.org/id/metropolitan-district-council/leeds,Leeds City Council,31/07/2018,Children and Families,Social Care,Support Services,Legal Disbursements,411,25/07/2018,0718-00707,0.00,173.01,R,Alphabiolabs,No
Http://opendatacommunities.org/id/metropolitan-district-council/leeds,Leeds City Council,31/07/2018,Children and Families,Social Care,Support Services,Legal Disbursements,411,25/07/2018,0718-00708,0.00,116.34,R,Alphabiolabs,No
Http://opendatacommunities.org/id/metropolitan-district-council/leeds,Leeds City Council,31/07/2018,Children and Families,Social Care,Support Services,Legal Disbursements,411,26/07/2018,0718-00709,0.00,180.01,R,Alphabiolabs,No
Http://opendatacommunities.org/id/metropolitan-district-council/leeds,Leeds City Council,31/07/2018,Children and Families,Social Care,Support Services,Legal Disbursements,411,27/07/2018,0718-00710,0.00,77.50,R,Alphabiolabs,No
Http://opendatacommunities.org/id/metropolitan-district-council/leeds,Leeds City Council,31/07/2018,Children and Families,Social Care,Support Services,Legal Disbursements,411,27/07/2018,0718-00711,0.00,679.00,R,Alphabiolabs,No
Http://opendatacommunities.org/id/metropolitan-district-council/leeds,Leeds City Council,31/07/2018,Resources and Housing,Strategy and Improvement,Supplies and Services,Memberships,226,27/07/2018,0718-00712,0.00,14934.87,R,Alps (Alkemygold Ltd),No
Http://opendatacommunities.org/id/metropolitan-district-council/leeds,Leeds City Council,31/07/2018,Communities and Environment,Environmental Health,Supplies and Services,Other Hired And Contracted Services,265,16/07/2018,0718-00713,0.00,84.23,R,Als Environmental Limited,No
Http://opendatacommunities.org/id/metropolitan-district-council/leeds,Leeds City Council,31/07/2018,Communities and Environment,Environmental Health,Supplies and Services,Other Hired And Contracted Services,265,16/07/2018,0718-00714,0.00,84.23,R,Als Environmental Limited,No
Http://opendatacommunities.org/id/metropolitan-district-council/leeds,Leeds City Council,31/07/2018,Communities and Environment,Environmental Health,Supplies and Services,Other Hired And Contracted Services,265,16/07/2018,0718-00715,0.00,101.10,R,Als Environmental Limited,No
Http://opendatacommunities.org/id/metropolitan-district-council/leeds,Leeds City Council,31/07/2018,Communities and Environment,Environmental Health,Supplies and Services,Other Hired And Contracted Services,265,16/07/2018,0718-00716,0.00,84.23,R,Als Environmental Limited,No
Http://opendatacommunities.org/id/metropolitan-district-council/leeds,Leeds City Council,31/07/2018,Communities and Environment,Environmental Health,Supplies and Services,Other Hired And Contracted Services,265,16/07/2018,0718-00717,0.00,84.23,R,Als Environmental Limited,No
Http://opendatacommunities.org/id/metropolitan-district-council/leeds,Leeds City Council,31/07/2018,Communities and Environment,Environmental Health,Supplies and Services,Other Hired And Contracted Services,265,16/07/2018,0718-00718,0.00,124.73,R,Als Environmental Limited,No
Http://opendatacommunities.org/id/metropolitan-district-council/leeds,Leeds City Council,31/07/2018,Communities and Environment,Environmental Health,Supplies and Services,Other Hired And Contracted Services,265,16/07/2018,0718-00719,0.00,84.23,R,Als Environmental Limited,No
Http://opendatacommunities.org/id/metropolitan-district-council/leeds,Leeds City Council,31/07/2018,City Development,Markets & City Centre Management  ,Supplies and Services,City Centre Enhancement,295,12/06/2018,0718-00720,0.00,15.00,R,Alter 8,Yes
Http://opendatacommunities.org/id/metropolitan-district-council/leeds,Leeds City Council,31/07/2018,Children and Families,Social Care  ,Supplies and Services,Admission Charges To Schools,283,21/06/2018,0718-00721,0.00,550.00,R,Alton Towers Park,Yes
Http://opendatacommunities.org/id/metropolitan-district-council/leeds,Leeds City Council,31/07/2018,Communities and Environment,Elections  Licensing and Registration,Premises,Rents,141,04/07/2018,0718-00722,0.00,260.00,R,Alwoodley Community Association,No
Http://opendatacommunities.org/id/metropolitan-district-council/leeds,Leeds City Council,31/07/2018,Strategic Accounts,Miscellaneous,Supplies and Services,Non-Recurring Grants,227,30/07/2018,0718-00723,0.00,100.00,R,Alzheimers Research Uk,No
Http://opendatacommunities.org/id/metropolitan-district-council/leeds,Leeds City Council,31/07/2018,City Development,Support Services,Supplies and Services,Publication And Promotion,267,02/07/2018,0718-00724,0.00,2000.00,R,Ama Ltd,No
Http://opendatacommunities.org/id/metropolitan-district-council/leeds,Leeds City Council,31/07/2018,Communities and Environment,Customer Access,Supplies and Services,Other Hired And Contracted Services,265,05/07/2018,0718-00725,0.00,263.25,R,Amad Mezori,No
Http://opendatacommunities.org/id/metropolitan-district-council/leeds,Leeds City Council,31/07/2018,Children and Families,Social Care,Third Party Payments,Services Rendered By Other Organisations,511,13/07/2018,0718-00726,0.00,994.50,R,REDACTED PERSONAL DATA,No
Http://opendatacommunities.org/id/metropolitan-district-council/leeds,Leeds City Council,31/07/2018,Children and Families,Social Care,Third Party Payments,Services Rendered By Other Organisations,511,13/07/2018,0718-00727,0.00,331.51,R,REDACTED PERSONAL DATA,No
Http://opendatacommunities.org/id/metropolitan-district-council/leeds,Leeds City Council,31/07/2018,Children and Families,Social Care,Third Party Payments,Services Rendered By Other Organisations,511,13/07/2018,0718-00728,0.00,778.35,R,REDACTED PERSONAL DATA,No
Http://opendatacommunities.org/id/metropolitan-district-council/leeds,Leeds City Council,31/07/2018,Children and Families,Social Care,Third Party Payments,Services Rendered By Other Organisations,511,11/07/2018,0718-00729,0.00,397.80,R,REDACTED PERSONAL DATA,No
Http://opendatacommunities.org/id/metropolitan-district-council/leeds,Leeds City Council,31/07/2018,Children and Families,Social Care,Third Party Payments,Services Rendered By Other Organisations,511,13/07/2018,0718-00730,0.00,497.25,R,REDACTED PERSONAL DATA,No
Http://opendatacommunities.org/id/metropolitan-district-council/leeds,Leeds City Council,31/07/2018,Children and Families,Social Care  ,Premises,Maintenance Of Buildings,101,26/06/2018,0718-00731,0.00,44.00,R,Amari Plastics Plc,Yes
Http://opendatacommunities.org/id/metropolitan-district-council/leeds,Leeds City Council,31/07/2018,Resources and Housing,Leeds Building Services,Supplies and Services,Operational Materials,205,05/07/2018,0718-00732,0.00,63.24,R,Amari Plastics Plc,No
Http://opendatacommunities.org/id/metropolitan-district-council/leeds,Leeds City Council,31/07/2018,Resources and Housing,Leeds Building Services,Supplies and Services,Operational Materials,205,27/07/2018,0718-00733,0.00,94.00,R,Amari Plastics Plc,No
Http://opendatacommunities.org/id/metropolitan-district-council/leeds,Leeds City Council,31/07/2018,Children and Families,Social Care,Third Party Payments,Services Rendered By Other Organisations,511,11/07/2018,0718-00734,0.00,4972.50,R,Amazing Grace Early Years Childcare,No
Http://opendatacommunities.org/id/metropolitan-district-council/leeds,Leeds City Council,31/07/2018,Children and Families,Social Care,Third Party Payments,Services Rendered By Other Organisations,511,13/07/2018,0718-00735,0.00,28177.50,R,Amazing Grace Early Years Childcare,No
Http://opendatacommunities.org/id/metropolitan-district-council/leeds,Leeds City Council,31/07/2018,Adults and Health,Public Health  ,Supplies and Services,Office Consumables,210,16/06/2018,0718-00736,0.00,9.99,R,Amazon Digital Svcs,Yes
Http://opendatacommunities.org/id/metropolitan-district-council/leeds,Leeds City Council,31/07/2018,Children and Families,Social Care  ,Supplies and Services,Teaching Materials,202,22/06/2018,0718-00737,0.00,3.99,R,Amazon Digital Svcs,Yes
Http://opendatacommunities.org/id/metropolitan-district-council/leeds,Leeds City Council,31/07/2018,City Development,Libraries  Arts & Heritage  ,Supplies and Services,Operational Materials,205,31/05/2018,0718-00738,0.00,10.00,R,Amazon Eu Amazon.Co.Uk,Yes
Http://opendatacommunities.org/id/metropolitan-district-council/leeds,Leeds City Council,31/07/2018,City Development,Libraries  Arts & Heritage  ,Supplies and Services,Operational Materials,205,31/05/2018,0718-00739,0.00,23.47,R,Amazon Eu Amazon.Co.Uk,Yes
Http://opendatacommunities.org/id/metropolitan-district-council/leeds,Leeds City Council,31/07/2018,Children and Families,Social Care  ,Supplies and Services,Teaching Materials,202,03/06/2018,0718-00740,0.00,6.88,R,Amazon Eu Amazon.Co.Uk,Yes
Http://opendatacommunities.org/id/metropolitan-district-council/leeds,Leeds City Council,31/07/2018,City Development,Libraries  Arts & Heritage  ,Supplies and Services,Operational Materials,205,05/06/2018,0718-00741,0.00,3.16,R,Amazon Eu Amazon.Co.Uk,Yes
Http://opendatacommunities.org/id/metropolitan-district-council/leeds,Leeds City Council,31/07/2018,Strategic Landlord,Property And Contracts  ,Supplies and Services,Computer Software & Equipment,214,05/06/2018,0718-00742,0.00,187.50,R,Amazon Eu Amazon.Co.Uk,Yes
Http://opendatacommunities.org/id/metropolitan-district-council/leeds,Leeds City Council,31/07/2018,Children and Families,Social Care  ,Supplies and Services,Teaching Furniture & Equipment,207,06/06/2018,0718-00743,0.00,35.94,R,Amazon Eu Amazon.Co.Uk,Yes
Http://opendatacommunities.org/id/metropolitan-district-council/leeds,Leeds City Council,31/07/2018,Children and Families,Social Care  ,Supplies and Services,Teaching Furniture & Equipment,207,06/06/2018,0718-00744,0.00,6.99,R,Amazon Eu Amazon.Co.Uk,Yes
Http://opendatacommunities.org/id/metropolitan-district-council/leeds,Leeds City Council,31/07/2018,Children and Families,Social Care  ,Supplies and Services,Teaching Furniture & Equipment,207,06/06/2018,0718-00745,0.00,6.99,R,Amazon Eu Amazon.Co.Uk,Yes
Http://opendatacommunities.org/id/metropolitan-district-council/leeds,Leeds City Council,31/07/2018,Children and Families,Social Care  ,Transfer Payments,Payments To Residents,622,06/06/2018,0718-00746,0.00,57.59,R,Amazon Eu Amazon.Co.Uk,Yes
Http://opendatacommunities.org/id/metropolitan-district-council/leeds,Leeds City Council,31/07/2018,City Development,Libraries  Arts & Heritage  ,Supplies and Services,Operational Materials,205,08/06/2018,0718-00747,0.00,44.24,R,Amazon Eu Amazon.Co.Uk,Yes
Http://opendatacommunities.org/id/metropolitan-district-council/leeds,Leeds City Council,31/07/2018,Children and Families,Social Care  ,Supplies and Services,Operational Furniture And Equipment,203,13/06/2018,0718-00748,0.00,90.83,R,Amazon Eu Amazon.Co.Uk,Yes
Http://opendatacommunities.org/id/metropolitan-district-council/leeds,Leeds City Council,31/07/2018,Children and Families,Social Care  ,Supplies and Services,Other Hired And Contracted Services,265,13/06/2018,0718-00749,0.00,21.65,R,Amazon Eu Amazon.Co.Uk,Yes
Http://opendatacommunities.org/id/metropolitan-district-council/leeds,Leeds City Council,31/07/2018,Children and Families,Social Care  ,Supplies and Services,Teaching Furniture & Equipment,207,14/06/2018,0718-00750,0.00,24.95,R,Amazon Eu Amazon.Co.Uk,Yes
Http://opendatacommunities.org/id/metropolitan-district-council/leeds,Leeds City Council,31/07/2018,Children and Families,Social Care  ,Third Party Payments,Placement Support,550,14/06/2018,0718-00751,0.00,16.39,R,Amazon Eu Amazon.Co.Uk,Yes
Http://opendatacommunities.org/id/metropolitan-district-council/leeds,Leeds City Council,31/07/2018,Communities and Environment,Waste Management  ,Supplies and Services,Operational Materials,205,14/06/2018,0718-00752,0.00,250.20,R,Amazon Eu Amazon.Co.Uk,Yes
Http://opendatacommunities.org/id/metropolitan-district-council/leeds,Leeds City Council,31/07/2018,City Development,Libraries  Arts & Heritage  ,Supplies and Services,Operational Materials,205,15/06/2018,0718-00753,0.00,22.12,R,Amazon Eu Amazon.Co.Uk,Yes
Http://opendatacommunities.org/id/metropolitan-district-council/leeds,Leeds City Council,31/07/2018,City Development,Libraries  Arts & Heritage  ,Supplies and Services,Operational Materials,205,15/06/2018,0718-00754,0.00,37.92,R,Amazon Eu Amazon.Co.Uk,Yes
Http://opendatacommunities.org/id/metropolitan-district-council/leeds,Leeds City Council,31/07/2018,City Development,Libraries  Arts & Heritage  ,Supplies and Services,Operational Materials,205,20/06/2018,0718-00755,0.00,44.24,R,Amazon Eu Amazon.Co.Uk,Yes
Http://opendatacommunities.org/id/metropolitan-district-council/leeds,Leeds City Council,31/07/2018,City Development,Libraries  Arts & Heritage  ,Supplies and Services,Operational Materials,205,20/06/2018,0718-00756,0.00,37.92,R,Amazon Eu Amazon.Co.Uk,Yes
Http://opendatacommunities.org/id/metropolitan-district-council/leeds,Leeds City Council,31/07/2018,City Development,Highways  ,Supplies and Services,Office Consumables,210,25/06/2018,0718-00757,0.00,19.48,R,Amazon Eu Amazon.Co.Uk,Yes
Http://opendatacommunities.org/id/metropolitan-district-council/leeds,Leeds City Council,31/07/2018,City Development,Highways  ,Supplies and Services,Office Consumables,210,27/06/2018,0718-00758,0.00,2.91,R,Amazon Eu Amazon.Co.Uk,Yes
Http://opendatacommunities.org/id/metropolitan-district-council/leeds,Leeds City Council,31/07/2018,Communities and Environment,Benefits  Wlefare And Poverty  ,Supplies and Services,Office Furniture & Equipment,201,28/06/2018,0718-00759,0.00,7.60,R,Amazon Eu Amazon.Co.Uk,Yes
Http://opendatacommunities.org/id/metropolitan-district-council/leeds,Leeds City Council,31/07/2018,City Development,Recreation,Supplies and Services,Operational Furniture And Equipment,203,06/07/2018,0718-00760,0.00,559.61,R,Amazon Leisure Uk Ltd,No
Http://opendatacommunities.org/id/metropolitan-district-council/leeds,Leeds City Council,31/07/2018,City Development,Recreation,Supplies and Services,Operational Furniture And Equipment,203,06/07/2018,0718-00761,0.00,88.50,R,Amazon Leisure Uk Ltd,No
Http://opendatacommunities.org/id/metropolitan-district-council/leeds,Leeds City Council,31/07/2018,City Development,Recreation,Supplies and Services,Operational Furniture And Equipment,203,12/07/2018,0718-00762,0.00,1870.25,R,Amazon Leisure Uk Ltd,No
Http://opendatacommunities.org/id/metropolitan-district-council/leeds,Leeds City Council,31/07/2018,City Development,Recreation,Supplies and Services,Operational Furniture And Equipment,203,12/07/2018,0718-00763,0.00,5568.81,R,Amazon Leisure Uk Ltd,No
Http://opendatacommunities.org/id/metropolitan-district-council/leeds,Leeds City Council,31/07/2018,City Development,Recreation,Supplies and Services,Operational Furniture And Equipment,203,13/07/2018,0718-00764,0.00,710.89,R,Amazon Leisure Uk Ltd,No
Http://opendatacommunities.org/id/metropolitan-district-council/leeds,Leeds City Council,31/07/2018,City Development,Recreation,Supplies and Services,Operational Furniture And Equipment,203,13/07/2018,0718-00765,0.00,1028.40,R,Amazon Leisure Uk Ltd,No
Http://opendatacommunities.org/id/metropolitan-district-council/leeds,Leeds City Council,31/07/2018,City Development,Recreation,Supplies and Services,Operational Furniture And Equipment,203,27/07/2018,0718-00766,0.00,360.00,R,Amazon Leisure Uk Ltd,No
Http://opendatacommunities.org/id/metropolitan-district-council/leeds,Leeds City Council,31/07/2018,City Development,Recreation,Supplies and Services,Operational Furniture And Equipment,203,27/07/2018,0718-00767,0.00,818.04,R,Amazon Leisure Uk Ltd,No
Http://opendatacommunities.org/id/metropolitan-district-council/leeds,Leeds City Council,31/07/2018,Communities and Environment,Customer Access  ,Supplies and Services,Other Hired And Contracted Services,265,03/06/2018,0718-00768,0.00,7.99,R,Amazon Prime,Yes
Http://opendatacommunities.org/id/metropolitan-district-council/leeds,Leeds City Council,31/07/2018,Children and Families,Partnerships & Health  ,Supplies and Services,Office Consumables,210,06/06/2018,0718-00769,0.00,79.00,R,Amazon Prime,Yes
Http://opendatacommunities.org/id/metropolitan-district-council/leeds,Leeds City Council,31/07/2018,Communities and Environment,Customer Access  ,Supplies and Services,Other Hired And Contracted Services,265,06/06/2018,0718-00770,0.00,-7.99,R,Amazon Prime,Yes
Http://opendatacommunities.org/id/metropolitan-district-council/leeds,Leeds City Council,31/07/2018,Communities and Environment,Benefits  Wlefare And Poverty  ,Supplies and Services,Other Hired And Contracted Services,265,07/06/2018,0718-00771,0.00,7.99,R,Amazon Prime,Yes
